body_name,organisational_unit,expenditure_category,expenditure_code,paid_date,trans_no,amount,type,supplier_id,supplier_name
Oxford City Council,Direct Services,Subscriptions,D3703,05/04/2016,46289405_1,2240,Revenue,20000000_46289405,Infomill
Oxford City Council,General Fund,VAT Pro Forma Invoices,Z110205,05/04/2016,46289405_2,448,Revenue,20000000_46289405,Infomill
Oxford City Council,HRA,Day to Day Repairs - Occupied,B1180,26/04/2016,46289602_1,2000,Revenue,20000000_46289602,
Oxford City Council,Community Services,Relocation Expenses,A0701,26/04/2016,46289612_1,4000,Revenue,20000000_46289612,Phoenix Sports Association
Oxford City Council,General Fund,AR Refunds (Sundries & Periodics),Z400404,04/05/2016,46289723_1,587.52,Revenue,20000000_46289723,Benugo Ltd. 
Oxford City Council,Suspense,Creditors - BACS,J8810,17/05/2016,46289842_1,620,Revenue,20000000_46289842,University of Oxford
Oxford City Council,Suspense,Creditors - BACS,J8810,24/05/2016,46289974_1,8376.55,Revenue,20000000_46289974,L A Leisure Ltd. 
Oxford City Council,Housing and Property,Compensation,D3805,07/06/2016,46290113_1,750,Revenue,20000000_46290113,
Oxford City Council,Housing and Property,Reactive Maintenance & Minor Repairs,B1101,03/06/2016,46290122_1,3150,Revenue,20000000_46290122,Thames Valley Region Ltd
Oxford City Council,Suspense,Property Rents/Income,K9550,14/06/2016,46290144_1,37500,Revenue,20000000_46290144,Bills Restaurants ltd
Oxford City Council,Suspense,Property Rents/Income,K9550,14/06/2016,46290144_2,639.04,Revenue,20000000_46290144,Bills Restaurants ltd
Oxford City Council,Suspense,Bank Credits Suspense,K9901,14/06/2016,46290159_1,393,Revenue,20000000_46290159,Keble College
Oxford City Council,Suspense,Bank Credits Suspense,K9901,14/06/2016,46290159_2,150,Revenue,20000000_46290159,Keble College
Oxford City Council,Suspense,Insurance Employee Related,A0801,17/06/2016,46290201_1,2077.5,Revenue,20000000_46290201,C.L. Legal Ltd. 
Oxford City Council,Housing and Property,Rent Allowance Cheques (Home Choice),F5033,05/04/2016,46289353_1,1091.04,Revenue,20000010_46289353,
Oxford City Council,Housing and Property,Rent Allowance Cheques (Home Choice),F5033,05/04/2016,46289355_1,1000,Revenue,20000010_46289355,
Oxford City Council,Housing and Property,Homeless Prevention,D3426,05/04/2016,46289356_1,1500,Revenue,20000010_46289356,
Oxford City Council,Housing and Property,Rent Allowance Cheques (Home Choice),F5033,05/04/2016,46289357_1,1500,Revenue,20000010_46289357,
Oxford City Council,Housing and Property,Rent Allowance Cheques (Home Choice),F5033,05/04/2016,46289358_1,2239.05,Revenue,20000010_46289358,
Oxford City Council,Housing and Property,Rent Allowance Cheques (Home Choice),F5033,05/04/2016,46289374_1,1275,Revenue,20000010_46289374,
Oxford City Council,Housing and Property,Rent Allowance Cheques (Home Choice),F5033,05/04/2016,46289376_1,1500,Revenue,20000010_46289376,
Oxford City Council,Housing and Property,Rent Allowance Cheques (Home Choice),F5033,05/04/2016,46289383_1,921.3,Revenue,20000010_46289383,
Oxford City Council,Housing and Property,Rent Allowance Cheques (Home Choice),F5033,12/04/2016,46289472_1,1275,Revenue,20000010_46289472,
Oxford City Council,Housing and Property,Rent Allowance Cheques (Home Choice),F5033,19/04/2016,46289540_1,932.76,Revenue,20000010_46289540,
Oxford City Council,Housing and Property,Rent Allowance Cheques (Home Choice),F5033,19/04/2016,46289541_1,600,Revenue,20000010_46289541,
Oxford City Council,Housing and Property,Rent Allowance Cheques (Home Choice),F5033,19/04/2016,46289542_1,2442.6,Revenue,20000010_46289542,
Oxford City Council,Housing and Property,Rent Allowance Cheques (Home Choice),F5033,19/04/2016,46289550_1,1931,Revenue,20000010_46289550,
Oxford City Council,Housing and Property,Rent Allowance Cheques (Home Choice),F5033,19/04/2016,46289576_1,2500,Revenue,20000010_46289576,
Oxford City Council,Housing and Property,Rent Allowance Cheques (Home Choice),F5033,26/04/2016,46289597_1,2500,Revenue,20000010_46289597,
Oxford City Council,Housing and Property,Rent Allowance Cheques (Home Choice),F5033,26/04/2016,46289607_1,1091.04,Revenue,20000010_46289607,
Oxford City Council,Housing and Property,Rent Allowance Cheques (Home Choice),F5033,26/04/2016,46289615_1,1668.16,Revenue,20000010_46289615,
Oxford City Council,Housing and Property,Rent Allowance Cheques (Home Choice),F5033,26/04/2016,46289615_2,900,Revenue,20000010_46289615,
Oxford City Council,Housing and Property,Rent Allowance Cheques (Home Choice),F5033,26/04/2016,46289615_3,834.08,Revenue,20000010_46289615,
Oxford City Council,Housing and Property,Rent Allowance Cheques (Home Choice),F5033,26/04/2016,46289615_4,132,Revenue,20000010_46289615,
Oxford City Council,HRA,Special Events,D3807,26/04/2016,46289616_1,1988.48,Revenue,20000010_46289616,
Oxford City Council,Housing and Property,Rent Allowance Cheques (Home Choice),F5033,26/04/2016,46289640_1,1152,Revenue,20000010_46289640,
Oxford City Council,HRA,Special Events,D3807,26/04/2016,46289651_1,575.87,Revenue,20000010_46289651,
Oxford City Council,Housing and Property,Rent Allowance Cheques (Home Choice),F5033,26/04/2016,46289657_1,731.04,Revenue,20000010_46289657,
Oxford City Council,Housing and Property,Rent Allowance Cheques (Home Choice),F5033,26/04/2016,46289658_1,1100,Revenue,20000010_46289658,
Oxford City Council,Housing and Property,Rent,B1701,04/05/2016,46289687_1,675,Revenue,20000010_46289687,
Oxford City Council,Housing and Property,Rent Allowance Cheques (Home Choice),F5033,04/05/2016,46289693_1,1419.77,Revenue,20000010_46289693,
Oxford City Council,Housing and Property,Rent Allowance Cheques (Home Choice),F5033,04/05/2016,46289694_1,1100,Revenue,20000010_46289694,
Oxford City Council,Housing and Property,Rent Allowance Cheques (Home Choice),F5033,04/05/2016,46289695_1,1700,Revenue,20000010_46289695,
Oxford City Council,Housing and Property,Rent Allowance Cheques (Home Choice),F5033,04/05/2016,46289724_1,791.04,Revenue,20000010_46289724,
Oxford City Council,Housing and Property,Rent Allowance Cheques (Home Choice),F5033,10/05/2016,46289744_1,1225,Revenue,20000010_46289744,ABBEY PROPERTIES
Oxford City Council,Housing and Property,Rent Allowance Cheques (Home Choice),F5033,10/05/2016,46289746_1,767.75,Revenue,20000010_46289746,
Oxford City Council,Housing and Property,Rent Allowance Cheques (Home Choice),F5033,10/05/2016,46289759_1,2450,Revenue,20000010_46289759,ABBEY PROPERTIES
Oxford City Council,Housing and Property,Rent Allowance Cheques (Home Choice),F5033,24/05/2016,46289968_1,1000,Revenue,20000010_46289968,
Oxford City Council,Housing and Property,Rent Allowance Cheques (Home Choice),F5033,24/05/2016,46289968_2,1150,Revenue,20000010_46289968,
Oxford City Council,Housing and Property,Rent Allowance Cheques (Home Choice),F5033,24/05/2016,46289968_3,575,Revenue,20000010_46289968,
Oxford City Council,Housing and Property,Rent Allowance Cheques (Home Choice),F5033,24/05/2016,46289968_4,2300,Revenue,20000010_46289968,
Oxford City Council,Housing and Property,Rent Allowance Cheques (Home Choice),F5033,24/05/2016,46289971_1,1123.92,Revenue,20000010_46289971,
Oxford City Council,Housing and Property,Rent Allowance Cheques (Home Choice),F5033,24/05/2016,46289972_1,1692,Revenue,20000010_46289972,
Oxford City Council,HRA,Special Events,D3807,01/06/2016,46290022_1,1144.64,Revenue,20000010_46290022,
Oxford City Council,HRA,Special Events,D3807,01/06/2016,46290024_1,552.36,Revenue,20000010_46290024,
Oxford City Council,HRA,Electrical Upgrades,B1150,07/06/2016,46290107_1,505.75,Revenue,20000010_46290107,
Oxford City Council,Housing and Property,Rent Allowance Cheques (Home Choice),F5033,14/06/2016,46290163_1,1200,Revenue,20000010_46290163,
Oxford City Council,Housing and Property,Rent Allowance Cheques (Home Choice),F5033,14/06/2016,46290164_1,1126,Revenue,20000010_46290164,
Oxford City Council,Housing and Property,Rent Allowance Cheques (Home Choice),F5033,14/06/2016,46290165_1,1400,Revenue,20000010_46290165,
Oxford City Council,Housing and Property,Rent Allowance Cheques (Home Choice),F5033,14/06/2016,46290165_2,100,Revenue,20000010_46290165,
Oxford City Council,Housing and Property,Rent Allowance Cheques (Home Choice),F5033,14/06/2016,46290165_3,1000,Revenue,20000010_46290165,
Oxford City Council,Housing and Property,Rent Allowance Cheques (Home Choice),F5033,14/06/2016,46290165_4,2800,Revenue,20000010_46290165,
Oxford City Council,Housing and Property,Rent Allowance Cheques (Home Choice),F5033,21/06/2016,46290189_1,818.52,Revenue,20000010_46290189,
Oxford City Council,Housing and Property,Rent Allowance Cheques (Home Choice),F5033,21/06/2016,46290190_1,629.6,Revenue,20000010_46290190,
Oxford City Council,Housing and Property,Rent Allowance Cheques (Home Choice),F5033,21/06/2016,46290191_1,608.19,Revenue,20000010_46290191,
Oxford City Council,Housing and Property,Rent Allowance Cheques (Home Choice),F5033,21/06/2016,46290205_1,900,Revenue,20000010_46290205,Homexperts
Oxford City Council,Housing and Property,Rent Allowance Cheques (Home Choice),F5033,21/06/2016,46290205_2,1110,Revenue,20000010_46290205,Homexperts
Oxford City Council,Housing and Property,Rent Allowance Cheques (Home Choice),F5033,21/06/2016,46290205_3,390.75,Revenue,20000010_46290205,Homexperts
Oxford City Council,Housing and Property,Rent Allowance Cheques (Home Choice),F5033,21/06/2016,46290209_1,1106.87,Revenue,20000010_46290209,Cherwell Property Services Ltd. 
Oxford City Council,Housing and Property,Rent Allowance Cheques (Home Choice),F5033,21/06/2016,46290211_1,1221.3,Revenue,20000010_46290211,
Oxford City Council,HRA,Special Events,D3807,28/06/2016,46290238_1,616,Revenue,20000010_46290238,
Oxford City Council,Housing and Property,Rent Allowance Cheques (Home Choice),F5033,28/06/2016,46290272_1,1036,Revenue,20000010_46290272,
Oxford City Council,Housing and Property,Rent Allowance Cheques (Home Choice),F5033,28/06/2016,46290273_1,610.65,Revenue,20000010_46290273,
Oxford City Council,HRA,Special Events,D3807,28/06/2016,46290296_1,1294.46,Revenue,20000010_46290296,
Oxford City Council,Housing and Property,Other Miscellaneous Expenses,D3811,19/04/2016,46289575_1,1041.67,Revenue,20000018_46289575,
Oxford City Council,Housing and Property,Homeless Prevention,D3426,26/04/2016,46289629_1,575,Revenue,20000018_46289629,
Oxford City Council,Housing and Property,Homeless Prevention,D3426,26/04/2016,46289637_1,555,Revenue,20000018_46289637,HomeXperts
Oxford City Council,Housing and Property,Homeless Prevention,D3426,26/04/2016,46289641_1,625,Revenue,20000018_46289641,Surelet Cheltenham
Oxford City Council,Housing and Property,Homeless Prevention,D3426,17/05/2016,46289831_1,625,Revenue,20000018_46289831,Surelet Cheltenham
Oxford City Council,Housing and Property,Homeless Prevention,D3426,17/05/2016,46289832_1,680,Revenue,20000018_46289832,Property Plus
Oxford City Council,Housing and Property,Homeless Prevention,D3426,17/05/2016,46289833_1,575,Revenue,20000018_46289833,Rhodes & Sons
Oxford City Council,Housing and Property,Homeless Prevention,D3426,17/05/2016,46289834_1,555,Revenue,20000018_46289834,HomeXperts
Oxford City Council,Housing and Property,Homeless Prevention,D3426,24/05/2016,46289949_1,700,Revenue,20000018_46289949,
Oxford City Council,Housing and Property,Homeless Prevention,D3426,24/05/2016,46289950_1,760,Revenue,20000018_46289950,
Oxford City Council,Housing and Property,Homeless Prevention,D3426,14/06/2016,46290140_1,575,Revenue,20000018_46290140,
Oxford City Council,Housing and Property,Homeless Prevention,D3426,14/06/2016,46290141_1,625,Revenue,20000018_46290141,Surelet Cheltenham
Oxford City Council,Housing and Property,Homeless Prevention,D3426,28/06/2016,46290297_1,575,Revenue,20000018_46290297,
Oxford City Council,Housing and Property,Homeless Prevention,D3426,28/06/2016,46290297_2,61,Revenue,20000018_46290297,
Oxford City Council,Community Services,Contributions,D3702,05/04/2016,46289301_1,3000,Revenue,20000019_46289301,Barton United FC
Oxford City Council,Community Services,Contributions,D3702,05/04/2016,46289306_1,500,Revenue,20000019_46289306,Polstead Playgroup
Oxford City Council,Direct Services,Grants,D3701,05/04/2016,46289360_1,2016,Revenue,20000019_46289360,EAST WARD ALLOTMENT ASSOCIATION
Oxford City Council,Direct Services,Grants,D3701,05/04/2016,46289366_1,750,Revenue,20000019_46289366,BARRACKS LANE ALLOTMENTS
Oxford City Council,Community Services,Instructors & Coaching Fees,D3413,12/04/2016,46289430_1,1000,Revenue,20000019_46289430,Oxford |University Hospitals NHS Trust
Oxford City Council,Community Services,Contributions,D3702,19/04/2016,46289557_1,750,Revenue,20000019_46289557,
Oxford City Council,Community Services,Grants,D3701,10/05/2016,46289785_1,5000,Revenue,20000019_46289785,VIVA NETWORK
Oxford City Council,HRA,Grants,D3701,20/05/2016,46289938_1,903,Revenue,20000019_46289938,Donnington Tenants & Residents Association
Oxford City Council,Community Services,Grants,D3701,24/05/2016,46289948_1,800,Revenue,20000019_46289948,Oxford Hindu Temple & Community Centre Project
Oxford City Council,Community Services,Grants,D3701,24/05/2016,46289976_1,1000,Revenue,20000019_46289976,Chabad of Oxford
Oxford City Council,Community Services,General Contracted Services,D3401,01/06/2016,46289987_1,833.33,Revenue,20000019_46289987,Mandala Theatre Company CIC
Oxford City Council,Community Services,Contributions,D3702,01/06/2016,46290053_1,600,Revenue,20000019_46290053,Upper Wolvercote Allotments Associaton
Oxford City Council,Community Services,Contributions,D3702,28/06/2016,46290244_1,500,Revenue,20000019_46290244,MANDALA THEATRE COMPANY CIC
Oxford City Council,Community Services,Contributions,D3702,28/06/2016,46290282_1,1000,Revenue,20000019_46290282,HOLY FAMILY CHURCH
Oxford City Council,Community Services,Contributions,D3702,28/06/2016,46290283_1,500,Revenue,20000019_46290283,PCC OF LITTLEMORE
Oxford City Council,Community Services,Temporary Bureau Staffing,A0108,19/04/2016,46289547_1,1633.24,Revenue,20000200,CHAMPION EMPLOYMENT LTD
Oxford City Council,Financial Services,Temporary Bureau Staffing,A0108,19/04/2016,46289547_10,9351.84,Revenue,20000200,CHAMPION EMPLOYMENT LTD
Oxford City Council,Business Improvement,Temporary Bureau Staffing,A0108,19/04/2016,46289547_11,434.7,Revenue,20000200,CHAMPION EMPLOYMENT LTD
Oxford City Council,Business Improvement,Temporary Bureau Staffing,A0108,19/04/2016,46289547_12,10613.02,Revenue,20000200,CHAMPION EMPLOYMENT LTD
Oxford City Council,Direct Services,Temporary Bureau Staffing,A0108,19/04/2016,46289547_13,1909.05,Revenue,20000200,CHAMPION EMPLOYMENT LTD
Oxford City Council,Environmental Sustainability,Temporary Bureau Staffing,A0108,19/04/2016,46289547_14,1925,Revenue,20000200,CHAMPION EMPLOYMENT LTD
Oxford City Council,Planning & Regulatory,Temporary Bureau Staffing,A0108,19/04/2016,46289547_15,1950.24,Revenue,20000200,CHAMPION EMPLOYMENT LTD
Oxford City Council,Planning & Regulatory,Temporary Bureau Staffing,A0108,19/04/2016,46289547_16,1732.34,Revenue,20000200,CHAMPION EMPLOYMENT LTD
Oxford City Council,Community Services,Temporary Bureau Staffing,A0108,19/04/2016,46289547_17,2236.28,Revenue,20000200,CHAMPION EMPLOYMENT LTD
Oxford City Council,Direct Services,Temporary Bureau Staffing,A0108,19/04/2016,46289547_18,1392.75,Revenue,20000200,CHAMPION EMPLOYMENT LTD
Oxford City Council,Direct Services,Temporary Bureau Staffing,A0108,19/04/2016,46289547_19,85.58,Revenue,20000200,CHAMPION EMPLOYMENT LTD
Oxford City Council,Direct Services,Temporary Bureau Staffing,A0108,19/04/2016,46289547_2,1684.32,Revenue,20000200,CHAMPION EMPLOYMENT LTD
Oxford City Council,Planning & Regulatory,Temporary Bureau Staffing,A0108,19/04/2016,46289547_20,2071.9,Revenue,20000200,CHAMPION EMPLOYMENT LTD
Oxford City Council,Planning & Regulatory,Temporary Bureau Staffing,A0108,19/04/2016,46289547_21,6925.11,Revenue,20000200,CHAMPION EMPLOYMENT LTD
Oxford City Council,Community Services,Temporary Bureau Staffing,A0108,19/04/2016,46289547_22,2125.4,Revenue,20000200,CHAMPION EMPLOYMENT LTD
Oxford City Council,Financial Services,Temporary Bureau Staffing,A0108,19/04/2016,46289547_23,1200,Revenue,20000200,CHAMPION EMPLOYMENT LTD
Oxford City Council,Assistant Chief Executive,Temporary Bureau Staffing,A0108,19/04/2016,46289547_24,2179.02,Revenue,20000200,CHAMPION EMPLOYMENT LTD
Oxford City Council,Direct Services,Temporary Bureau Staffing,A0108,19/04/2016,46289547_25,1734.3,Revenue,20000200,CHAMPION EMPLOYMENT LTD
Oxford City Council,HRA,Main Contractor,Y021,19/04/2016,46289547_26,7380,Capital,20000200,CHAMPION EMPLOYMENT LTD
Oxford City Council,Direct Services,Temporary Bureau Staffing,A0108,19/04/2016,46289547_27,2333.48,Revenue,20000200,CHAMPION EMPLOYMENT LTD
Oxford City Council,Direct Services,Temporary Bureau Staffing,A0108,19/04/2016,46289547_28,9902.92,Revenue,20000200,CHAMPION EMPLOYMENT LTD
Oxford City Council,Direct Services,Temporary Bureau Staffing,A0108,19/04/2016,46289547_29,1789.11,Revenue,20000200,CHAMPION EMPLOYMENT LTD
Oxford City Council,Community Services,Temporary Bureau Staffing,A0108,19/04/2016,46289547_3,2039.14,Revenue,20000200,CHAMPION EMPLOYMENT LTD
Oxford City Council,Direct Services,Temporary Bureau Staffing,A0108,19/04/2016,46289547_30,1693.8,Revenue,20000200,CHAMPION EMPLOYMENT LTD
Oxford City Council,Direct Services,Temporary Bureau Staffing,A0108,19/04/2016,46289547_31,18973.56,Revenue,20000200,CHAMPION EMPLOYMENT LTD
Oxford City Council,Direct Services,Temporary Bureau Staffing,A0108,19/04/2016,46289547_32,3993.81,Revenue,20000200,CHAMPION EMPLOYMENT LTD
Oxford City Council,Direct Services,Temporary Bureau Staffing,A0108,19/04/2016,46289547_33,2755.4,Revenue,20000200,CHAMPION EMPLOYMENT LTD
Oxford City Council,Direct Services,Temporary Bureau Staffing,A0108,19/04/2016,46289547_34,4068.25,Revenue,20000200,CHAMPION EMPLOYMENT LTD
Oxford City Council,Community Services,Temporary Bureau Staffing,A0108,19/04/2016,46289547_35,439.25,Revenue,20000200,CHAMPION EMPLOYMENT LTD
Oxford City Council,Environmental Sustainability,Temporary Bureau Staffing,A0108,19/04/2016,46289547_36,41.5,Revenue,20000200,CHAMPION EMPLOYMENT LTD
Oxford City Council,Community Services,Temporary Bureau Staffing,A0108,19/04/2016,46289547_4,462.68,Revenue,20000200,CHAMPION EMPLOYMENT LTD
Oxford City Council,Business Improvement,Temporary Bureau Staffing,A0108,19/04/2016,46289547_5,5700,Revenue,20000200,CHAMPION EMPLOYMENT LTD
Oxford City Council,Business Improvement,Temporary Bureau Staffing,A0108,19/04/2016,46289547_6,5945.36,Revenue,20000200,CHAMPION EMPLOYMENT LTD
Oxford City Council,Business Improvement,Temporary Bureau Staffing,A0108,19/04/2016,46289547_7,2433.16,Revenue,20000200,CHAMPION EMPLOYMENT LTD
Oxford City Council,Business Improvement,Temporary Bureau Staffing,A0108,19/04/2016,46289547_8,14451.04,Revenue,20000200,CHAMPION EMPLOYMENT LTD
Oxford City Council,Transformation,Temporary Bureau Staffing,A0108,19/04/2016,46289547_9,875.61,Revenue,20000200,CHAMPION EMPLOYMENT LTD
Oxford City Council,Community Services,Temporary Bureau Staffing,A0108,24/05/2016,46289928_1,906.67,Revenue,20000200,CHAMPION EMPLOYMENT LTD
Oxford City Council,Financial Services,Temporary Bureau Staffing,A0108,24/05/2016,46289928_10,6473.04,Revenue,20000200,CHAMPION EMPLOYMENT LTD
Oxford City Council,Business Improvement,Temporary Bureau Staffing,A0108,24/05/2016,46289928_11,5023.89,Revenue,20000200,CHAMPION EMPLOYMENT LTD
Oxford City Council,Business Improvement,Temporary Bureau Staffing,A0108,24/05/2016,46289928_12,11114.98,Revenue,20000200,CHAMPION EMPLOYMENT LTD
Oxford City Council,Planning & Regulatory,Temporary Bureau Staffing,A0108,24/05/2016,46289928_13,2512.82,Revenue,20000200,CHAMPION EMPLOYMENT LTD
Oxford City Council,Planning & Regulatory,Temporary Bureau Staffing,A0108,24/05/2016,46289928_14,1874.83,Revenue,20000200,CHAMPION EMPLOYMENT LTD
Oxford City Council,Community Services,Temporary Bureau Staffing,A0108,24/05/2016,46289928_15,2652.78,Revenue,20000200,CHAMPION EMPLOYMENT LTD
Oxford City Council,Planning & Regulatory,Temporary Bureau Staffing,A0108,24/05/2016,46289928_16,4896,Revenue,20000200,CHAMPION EMPLOYMENT LTD
Oxford City Council,Planning & Regulatory,Temporary Bureau Staffing,A0108,24/05/2016,46289928_17,3038.32,Revenue,20000200,CHAMPION EMPLOYMENT LTD
Oxford City Council,Financial Services,Temporary Bureau Staffing,A0108,24/05/2016,46289928_18,5400,Revenue,20000200,CHAMPION EMPLOYMENT LTD
Oxford City Council,Assistant Chief Executive,Temporary Bureau Staffing,A0108,24/05/2016,46289928_19,1471.88,Revenue,20000200,CHAMPION EMPLOYMENT LTD
Oxford City Council,Direct Services,Temporary Bureau Staffing,A0108,24/05/2016,46289928_2,3549.35,Revenue,20000200,CHAMPION EMPLOYMENT LTD
Oxford City Council,Direct Services,Temporary Bureau Staffing,A0108,24/05/2016,46289928_20,2254.59,Revenue,20000200,CHAMPION EMPLOYMENT LTD
Oxford City Council,HRA,Main Contractor,Y021,24/05/2016,46289928_21,5940,Capital,20000200,CHAMPION EMPLOYMENT LTD
Oxford City Council,Direct Services,Temporary Bureau Staffing,A0108,24/05/2016,46289928_22,2717.49,Revenue,20000200,CHAMPION EMPLOYMENT LTD
Oxford City Council,Direct Services,Temporary Bureau Staffing,A0108,24/05/2016,46289928_23,18518.74,Revenue,20000200,CHAMPION EMPLOYMENT LTD
Oxford City Council,Direct Services,Temporary Bureau Staffing,A0108,24/05/2016,46289928_24,1839.66,Revenue,20000200,CHAMPION EMPLOYMENT LTD
Oxford City Council,Direct Services,Temporary Bureau Staffing,A0108,24/05/2016,46289928_25,2578.28,Revenue,20000200,CHAMPION EMPLOYMENT LTD
Oxford City Council,Direct Services,Temporary Bureau Staffing,A0108,24/05/2016,46289928_26,20400.28,Revenue,20000200,CHAMPION EMPLOYMENT LTD
Oxford City Council,Direct Services,Temporary Bureau Staffing,A0108,24/05/2016,46289928_27,5194.56,Revenue,20000200,CHAMPION EMPLOYMENT LTD
Oxford City Council,Direct Services,Temporary Bureau Staffing,A0108,24/05/2016,46289928_28,8062.96,Revenue,20000200,CHAMPION EMPLOYMENT LTD
Oxford City Council,Direct Services,Temporary Bureau Staffing,A0108,24/05/2016,46289928_29,10331.81,Revenue,20000200,CHAMPION EMPLOYMENT LTD
Oxford City Council,Community Services,Temporary Bureau Staffing,A0108,24/05/2016,46289928_3,1913.49,Revenue,20000200,CHAMPION EMPLOYMENT LTD
Oxford City Council,Direct Services,Temporary Bureau Staffing,A0108,24/05/2016,46289928_30,1693.77,Revenue,20000200,CHAMPION EMPLOYMENT LTD
Oxford City Council,Direct Services,Temporary Bureau Staffing,A0108,24/05/2016,46289928_31,1496.48,Revenue,20000200,CHAMPION EMPLOYMENT LTD
Oxford City Council,Direct Services,Temporary Bureau Staffing,A0108,24/05/2016,46289928_32,13.28,Revenue,20000200,CHAMPION EMPLOYMENT LTD
Oxford City Council,Community Services,Temporary Bureau Staffing,A0108,24/05/2016,46289928_4,2599.1,Revenue,20000200,CHAMPION EMPLOYMENT LTD
Oxford City Council,Business Improvement,Temporary Bureau Staffing,A0108,24/05/2016,46289928_5,2700,Revenue,20000200,CHAMPION EMPLOYMENT LTD
Oxford City Council,Business Improvement,Temporary Bureau Staffing,A0108,24/05/2016,46289928_6,4128.23,Revenue,20000200,CHAMPION EMPLOYMENT LTD
Oxford City Council,Business Improvement,Temporary Bureau Staffing,A0108,24/05/2016,46289928_7,12170.23,Revenue,20000200,CHAMPION EMPLOYMENT LTD
Oxford City Council,Business Improvement,Temporary Bureau Staffing,A0108,24/05/2016,46289928_8,18086.38,Revenue,20000200,CHAMPION EMPLOYMENT LTD
Oxford City Council,Transformation,Temporary Bureau Staffing,A0108,24/05/2016,46289928_9,1509.03,Revenue,20000200,CHAMPION EMPLOYMENT LTD
Oxford City Council,Community Services,Temporary Bureau Staffing,A0108,28/06/2016,46290212_1,597.79,Revenue,20000200,CHAMPION EMPLOYMENT LTD
Oxford City Council,Financial Services,Temporary Bureau Staffing,A0108,28/06/2016,46290212_10,2430.36,Revenue,20000200,CHAMPION EMPLOYMENT LTD
Oxford City Council,Financial Services,Temporary Bureau Staffing,A0108,28/06/2016,46290212_11,2193.47,Revenue,20000200,CHAMPION EMPLOYMENT LTD
Oxford City Council,Business Improvement,Temporary Bureau Staffing,A0108,28/06/2016,46290212_12,1415.88,Revenue,20000200,CHAMPION EMPLOYMENT LTD
Oxford City Council,Business Improvement,Temporary Bureau Staffing,A0108,28/06/2016,46290212_13,11476.26,Revenue,20000200,CHAMPION EMPLOYMENT LTD
Oxford City Council,Planning & Regulatory,Temporary Bureau Staffing,A0108,28/06/2016,46290212_14,1568.23,Revenue,20000200,CHAMPION EMPLOYMENT LTD
Oxford City Council,Direct Services,Temporary Bureau Staffing,A0108,28/06/2016,46290212_15,1146.37,Revenue,20000200,CHAMPION EMPLOYMENT LTD
Oxford City Council,Assistant Chief Executive,Main Contractor,Y021,28/06/2016,46290212_16,230,Capital,20000200,CHAMPION EMPLOYMENT LTD
Oxford City Council,Planning & Regulatory,Temporary Bureau Staffing,A0108,28/06/2016,46290212_17,6852.24,Revenue,20000200,CHAMPION EMPLOYMENT LTD
Oxford City Council,Financial Services,Temporary Bureau Staffing,A0108,28/06/2016,46290212_18,5550,Revenue,20000200,CHAMPION EMPLOYMENT LTD
Oxford City Council,Community Services,Temporary Bureau Staffing,A0108,28/06/2016,46290212_19,693.11,Revenue,20000200,CHAMPION EMPLOYMENT LTD
Oxford City Council,Direct Services,Temporary Bureau Staffing,A0108,28/06/2016,46290212_2,1997.35,Revenue,20000200,CHAMPION EMPLOYMENT LTD
Oxford City Council,Assistant Chief Executive,Temporary Bureau Staffing,A0108,28/06/2016,46290212_20,2421.1,Revenue,20000200,CHAMPION EMPLOYMENT LTD
Oxford City Council,Direct Services,Temporary Bureau Staffing,A0108,28/06/2016,46290212_21,1527.66,Revenue,20000200,CHAMPION EMPLOYMENT LTD
Oxford City Council,HRA,Main Contractor,Y021,28/06/2016,46290212_22,4320,Capital,20000200,CHAMPION EMPLOYMENT LTD
Oxford City Council,Direct Services,Temporary Bureau Staffing,A0108,28/06/2016,46290212_23,1126.95,Revenue,20000200,CHAMPION EMPLOYMENT LTD
Oxford City Council,Direct Services,Temporary Bureau Staffing,A0108,28/06/2016,46290212_24,2604.37,Revenue,20000200,CHAMPION EMPLOYMENT LTD
Oxford City Council,Direct Services,Temporary Bureau Staffing,A0108,28/06/2016,46290212_25,2829.33,Revenue,20000200,CHAMPION EMPLOYMENT LTD
Oxford City Council,Direct Services,Temporary Bureau Staffing,A0108,28/06/2016,46290212_26,18939.9,Revenue,20000200,CHAMPION EMPLOYMENT LTD
Oxford City Council,Direct Services,Temporary Bureau Staffing,A0108,28/06/2016,46290212_27,1522.68,Revenue,20000200,CHAMPION EMPLOYMENT LTD
Oxford City Council,Direct Services,Temporary Bureau Staffing,A0108,28/06/2016,46290212_28,2093.86,Revenue,20000200,CHAMPION EMPLOYMENT LTD
Oxford City Council,Direct Services,Temporary Bureau Staffing,A0108,28/06/2016,46290212_29,24758.33,Revenue,20000200,CHAMPION EMPLOYMENT LTD
Oxford City Council,Community Services,Temporary Bureau Staffing,A0108,28/06/2016,46290212_3,2185.96,Revenue,20000200,CHAMPION EMPLOYMENT LTD
Oxford City Council,Direct Services,Temporary Bureau Staffing,A0108,28/06/2016,46290212_30,317.9,Revenue,20000200,CHAMPION EMPLOYMENT LTD
Oxford City Council,Direct Services,Temporary Bureau Staffing,A0108,28/06/2016,46290212_31,3983.29,Revenue,20000200,CHAMPION EMPLOYMENT LTD
Oxford City Council,Direct Services,Temporary Bureau Staffing,A0108,28/06/2016,46290212_32,4185.95,Revenue,20000200,CHAMPION EMPLOYMENT LTD
Oxford City Council,Direct Services,Temporary Bureau Staffing,A0108,28/06/2016,46290212_33,10529.27,Revenue,20000200,CHAMPION EMPLOYMENT LTD
Oxford City Council,Direct Services,Temporary Bureau Staffing,A0108,28/06/2016,46290212_34,1112.31,Revenue,20000200,CHAMPION EMPLOYMENT LTD
Oxford City Council,Direct Services,Temporary Bureau Staffing,A0108,28/06/2016,46290212_35,68.91,Revenue,20000200,CHAMPION EMPLOYMENT LTD
Oxford City Council,Direct Services,Temporary Bureau Staffing,A0108,28/06/2016,46290212_4,1916.9,Revenue,20000200,CHAMPION EMPLOYMENT LTD
Oxford City Council,Community Services,Temporary Bureau Staffing,A0108,28/06/2016,46290212_5,1499.7,Revenue,20000200,CHAMPION EMPLOYMENT LTD
Oxford City Council,Business Improvement,Temporary Bureau Staffing,A0108,28/06/2016,46290212_6,1431.52,Revenue,20000200,CHAMPION EMPLOYMENT LTD
Oxford City Council,Business Improvement,Temporary Bureau Staffing,A0108,28/06/2016,46290212_7,6840,Revenue,20000200,CHAMPION EMPLOYMENT LTD
Oxford City Council,Business Improvement,Temporary Bureau Staffing,A0108,28/06/2016,46290212_8,17856.87,Revenue,20000200,CHAMPION EMPLOYMENT LTD
Oxford City Council,Transformation,Temporary Bureau Staffing,A0108,28/06/2016,46290212_9,1040.18,Revenue,20000200,CHAMPION EMPLOYMENT LTD
Oxford City Council,Direct Services,Direct Services Supplies & Services,D3311,10/05/2016,60055155_1,1639,Revenue,20000209,AMITY INSULATION SERVICES LTD
Oxford City Council,HRA,Asbestos Work,B1106,28/06/2016,60057162_1,900,Revenue,20000209,AMITY INSULATION SERVICES LTD
Oxford City Council,HRA,Asbestos Work,B1106,28/06/2016,60057163_0,900,Revenue,20000209,AMITY INSULATION SERVICES LTD
Oxford City Council,Housing and Property,Services Maintenance (Planned),B1103,05/04/2016,46289342_1,140,Revenue,20000210,BARKER & EVANS LTD
Oxford City Council,Housing and Property,Services Maintenance (Planned),B1103,05/04/2016,46289342_2,957.57,Revenue,20000210,BARKER & EVANS LTD
Oxford City Council,Direct Services,Services Maintenance (Planned),B1103,05/04/2016,46289342_3,3907.86,Revenue,20000210,BARKER & EVANS LTD
Oxford City Council,Housing and Property,Services Maintenance (Planned),B1103,05/04/2016,46289342_4,87.5,Revenue,20000210,BARKER & EVANS LTD
Oxford City Council,Direct Services,Services Maintenance (Planned),B1103,05/04/2016,46289342_5,140,Revenue,20000210,BARKER & EVANS LTD
Oxford City Council,Housing and Property,Services Maintenance (Planned),B1103,05/04/2016,46289342_6,412.49,Revenue,20000210,BARKER & EVANS LTD
Oxford City Council,Housing and Property,Services Maintenance (Planned),B1103,12/04/2016,46289474_1,117.12,Revenue,20000210,BARKER & EVANS LTD
Oxford City Council,Direct Services,Services Maintenance (Planned),B1103,12/04/2016,46289474_10,534.28,Revenue,20000210,BARKER & EVANS LTD
Oxford City Council,Housing and Property,Services Maintenance (Planned),B1103,12/04/2016,46289474_2,332.5,Revenue,20000210,BARKER & EVANS LTD
Oxford City Council,Direct Services,Services Maintenance (Planned),B1103,12/04/2016,46289474_3,175,Revenue,20000210,BARKER & EVANS LTD
Oxford City Council,Housing and Property,Services Maintenance (Planned),B1103,12/04/2016,46289474_4,499.76,Revenue,20000210,BARKER & EVANS LTD
Oxford City Council,Housing and Property,Services Maintenance (Planned),B1103,12/04/2016,46289474_5,2465.22,Revenue,20000210,BARKER & EVANS LTD
Oxford City Council,Direct Services,Services Maintenance (Planned),B1103,12/04/2016,46289474_6,122.5,Revenue,20000210,BARKER & EVANS LTD
Oxford City Council,Housing and Property,Services Maintenance (Planned),B1103,12/04/2016,46289474_7,385,Revenue,20000210,BARKER & EVANS LTD
Oxford City Council,Direct Services,Services Maintenance (Planned),B1103,12/04/2016,46289474_8,175,Revenue,20000210,BARKER & EVANS LTD
Oxford City Council,Housing and Property,Services Maintenance (Planned),B1103,12/04/2016,46289474_9,801.68,Revenue,20000210,BARKER & EVANS LTD
Oxford City Council,Housing and Property,Services Maintenance (Planned),B1103,17/05/2016,46289846_1,6558,Revenue,20000210,BARKER & EVANS LTD
Oxford City Council,Housing and Property,Services Maintenance (Planned),B1103,17/05/2016,46289846_2,175,Revenue,20000210,BARKER & EVANS LTD
Oxford City Council,Housing and Property,Services Maintenance (Planned),B1103,17/05/2016,46289846_3,175,Revenue,20000210,BARKER & EVANS LTD
Oxford City Council,Direct Services,Services Maintenance (Planned),B1103,17/05/2016,46289846_4,1366.46,Revenue,20000210,BARKER & EVANS LTD
Oxford City Council,Direct Services,Services Maintenance (Planned),B1103,17/05/2016,46289846_5,53.26,Revenue,20000210,BARKER & EVANS LTD
Oxford City Council,Housing and Property,Services Maintenance (Planned),B1103,17/05/2016,46289846_6,3299.11,Revenue,20000210,BARKER & EVANS LTD
Oxford City Council,Direct Services,Direct Services Supplies & Services,D3311,05/04/2016,60053755_0,2234.12,Revenue,20000210,BARKER & EVANS LTD
Oxford City Council,Direct Services,Direct Services Supplies & Services,D3311,05/04/2016,60053766_1,592.33,Revenue,20000210,BARKER & EVANS LTD
Oxford City Council,Direct Services,Direct Services Supplies & Services,D3311,04/05/2016,60055057_1,4348.59,Revenue,20000210,BARKER & EVANS LTD
Oxford City Council,Direct Services,Direct Services Supplies & Services,D3311,04/05/2016,60055058_0,606.66,Revenue,20000210,BARKER & EVANS LTD
Oxford City Council,Direct Services,Direct Services Supplies & Services,D3311,04/05/2016,60055059_1,945,Revenue,20000210,BARKER & EVANS LTD
Oxford City Council,Direct Services,Direct Services Supplies & Services,D3311,04/05/2016,60055060_0,4008.67,Revenue,20000210,BARKER & EVANS LTD
Oxford City Council,Direct Services,Direct Services Supplies & Services,D3311,04/05/2016,60055067_1,1792.88,Revenue,20000210,BARKER & EVANS LTD
Oxford City Council,Direct Services,Direct Services Supplies & Services,D3311,10/05/2016,60055158_0,878,Revenue,20000210,BARKER & EVANS LTD
Oxford City Council,Direct Services,Direct Services Supplies & Services,D3311,10/05/2016,60055160_0,531.99,Revenue,20000210,BARKER & EVANS LTD
Oxford City Council,Direct Services,Direct Services Supplies & Services,D3311,10/05/2016,60055180_0,1673.42,Revenue,20000210,BARKER & EVANS LTD
Oxford City Council,Direct Services,Direct Services Supplies & Services,D3311,01/06/2016,60056179_0,899.76,Revenue,20000210,BARKER & EVANS LTD
Oxford City Council,Direct Services,Direct Services Supplies & Services,D3311,07/06/2016,60056399_0,21618.37,Revenue,20000210,BARKER & EVANS LTD
Oxford City Council,Direct Services,Direct Services Supplies & Services,D3311,07/06/2016,60056402_0,4497,Revenue,20000210,BARKER & EVANS LTD
Oxford City Council,Direct Services,Direct Services Supplies & Services,D3311,28/06/2016,60057389_1,1341.99,Revenue,20000210,BARKER & EVANS LTD
Oxford City Council,Direct Services,Direct Services Supplies & Services,D3311,28/06/2016,60057390_0,556.25,Revenue,20000210,BARKER & EVANS LTD
Oxford City Council,Environmental Development,Grants-Private Persons,Y005,21/06/2016,1028731_0,3963.7,Capital,20000222,ELLIOTT & JORDAN LTD
Oxford City Council,Regeneration and Major Projects Team,Main Contractor,Y021,05/04/2016,48021483_1,11877.83,Capital,20000225,FERGAL CONTRACTING CO LTD
Oxford City Council,Regeneration and Major Projects Team,Main Contractor,Y021,24/05/2016,48021531_1,18610.47,Capital,20000225,FERGAL CONTRACTING CO LTD
Oxford City Council,Environmental Development,Grants-Private Persons,Y005,05/04/2016,1026146_0,1700.46,Capital,20000227,GEORGE HENRY & CO RELAY LTD
Oxford City Council,Direct Services,Direct Services Supplies & Services,D3311,05/04/2016,60053821_0,670,Revenue,20000233,JONES & REEVES
Oxford City Council,Direct Services,Direct Services Supplies & Services,D3311,05/04/2016,60053822_1,700,Revenue,20000233,JONES & REEVES
Oxford City Council,Direct Services,Direct Services Supplies & Services,D3311,19/04/2016,60054411_0,14898.2,Revenue,20000233,JONES & REEVES
Oxford City Council,Direct Services,Direct Services Supplies & Services,D3311,19/04/2016,60054412_1,11727.6,Revenue,20000233,JONES & REEVES
Oxford City Council,Direct Services,Direct Services Supplies & Services,D3311,10/05/2016,60055304_1,17008.1,Revenue,20000233,JONES & REEVES
Oxford City Council,Direct Services,Direct Services Supplies & Services,D3311,01/06/2016,60056198_0,5800,Revenue,20000233,JONES & REEVES
Oxford City Council,Direct Services,Direct Services Supplies & Services,D3311,01/06/2016,60056199_1,5800,Revenue,20000233,JONES & REEVES
Oxford City Council,Direct Services,Direct Services Supplies & Services,D3311,01/06/2016,60056200_0,5800,Revenue,20000233,JONES & REEVES
Oxford City Council,Direct Services,Direct Services Supplies & Services,D3311,01/06/2016,60056201_1,5800,Revenue,20000233,JONES & REEVES
Oxford City Council,Direct Services,Direct Services Supplies & Services,D3311,12/04/2016,60054067_0,1468,Revenue,20000244,OXFORD REFRIGERATION LTD
Oxford City Council,Direct Services,General Contracted Services,D3401,21/06/2016,60056999_1,1943,Revenue,20000244,OXFORD REFRIGERATION LTD
Oxford City Council,Direct Services,General Contracted Services,D3401,28/06/2016,60057141_1,4100,Revenue,20000244,OXFORD REFRIGERATION LTD
Oxford City Council,Housing and Property,Services Maintenance (Planned),B1103,05/04/2016,46289419_1,5046.81,Revenue,20000249,SSE CONTRACTING LTD
Oxford City Council,Housing and Property,Services Maintenance (Planned),B1103,05/04/2016,46289419_2,75,Revenue,20000249,SSE CONTRACTING LTD
Oxford City Council,Direct Services,Services Maintenance (Planned),B1103,05/04/2016,46289419_3,1271.62,Revenue,20000249,SSE CONTRACTING LTD
Oxford City Council,Direct Services,Services Maintenance (Planned),B1103,05/04/2016,46289419_4,362.7,Revenue,20000249,SSE CONTRACTING LTD
Oxford City Council,Direct Services,Health & Safety,B1309,05/04/2016,46289419_5,75,Revenue,20000249,SSE CONTRACTING LTD
Oxford City Council,Direct Services,Health & Safety,B1309,05/04/2016,46289419_6,2235.9,Revenue,20000249,SSE CONTRACTING LTD
Oxford City Council,Direct Services,Health & Safety,B1309,05/04/2016,46289419_7,1184,Revenue,20000249,SSE CONTRACTING LTD
Oxford City Council,Housing and Property,Services Maintenance (Planned),B1103,05/04/2016,46289419_8,4098.34,Revenue,20000249,SSE CONTRACTING LTD
Oxford City Council,Direct Services,Services Maintenance (Planned),B1103,19/04/2016,46289504_1,2235.24,Revenue,20000249,SSE CONTRACTING LTD
Oxford City Council,Housing and Property,Services Maintenance (Planned),B1103,19/04/2016,46289504_2,2258.51,Revenue,20000249,SSE CONTRACTING LTD
Oxford City Council,Housing and Property,Services Maintenance (Planned),B1103,19/04/2016,46289504_3,866.21,Revenue,20000249,SSE CONTRACTING LTD
Oxford City Council,Housing and Property,Services Maintenance (Planned),B1103,19/04/2016,46289504_4,477.75,Revenue,20000249,SSE CONTRACTING LTD
Oxford City Council,Direct Services,Direct Services Supplies & Services,D3311,05/04/2016,60053708_0,750,Revenue,20000258,L A WOOD (OXON) LTD
Oxford City Council,Direct Services,Direct Services Supplies & Services,D3311,05/04/2016,60053716_1,750,Revenue,20000258,L A WOOD (OXON) LTD
Oxford City Council,Direct Services,Direct Services Supplies & Services,D3311,05/04/2016,60053719_0,750,Revenue,20000258,L A WOOD (OXON) LTD
Oxford City Council,Direct Services,Direct Services Supplies & Services,D3311,05/04/2016,60053720_1,550,Revenue,20000258,L A WOOD (OXON) LTD
Oxford City Council,Direct Services,Direct Services Supplies & Services,D3311,26/04/2016,60054772_1,750,Revenue,20000258,L A WOOD (OXON) LTD
Oxford City Council,Direct Services,Direct Services Supplies & Services,D3311,26/04/2016,60054774_1,550,Revenue,20000258,L A WOOD (OXON) LTD
Oxford City Council,Direct Services,Direct Services Supplies & Services,D3311,26/04/2016,60054778_1,750,Revenue,20000258,L A WOOD (OXON) LTD
Oxford City Council,Direct Services,Direct Services Supplies & Services,D3311,26/04/2016,60054779_0,650,Revenue,20000258,L A WOOD (OXON) LTD
Oxford City Council,Direct Services,Direct Services Supplies & Services,D3311,21/06/2016,60057043_1,1004.91,Revenue,20000258,L A WOOD (OXON) LTD
Oxford City Council,Direct Services,Waste Disposal & Skip Hire,D3420,26/04/2016,1027724_0,1018.55,Revenue,20000263,SHEEHAN HAULAGE & PLANT HIRE LTD
Oxford City Council,Direct Services,Waste Disposal & Skip Hire,D3420,24/05/2016,1028486_0,917.8,Revenue,20000263,SHEEHAN HAULAGE & PLANT HIRE LTD
Oxford City Council,Direct Services,Waste Disposal & Skip Hire,D3420,28/06/2016,1029019_0,1214.45,Revenue,20000263,SHEEHAN HAULAGE & PLANT HIRE LTD
Oxford City Council,Direct Services,Waste Disposal & Skip Hire,D3420,07/06/2016,46290056_1,683.74,Revenue,20000263,SHEEHAN HAULAGE & PLANT HIRE LTD
Oxford City Council,Direct Services,Waste Disposal & Skip Hire,D3420,07/06/2016,46290057_1,2318.83,Revenue,20000263,SHEEHAN HAULAGE & PLANT HIRE LTD
Oxford City Council,Direct Services,Tipping Charges,D3421,05/04/2016,60053654_0,778,Revenue,20000263,SHEEHAN HAULAGE & PLANT HIRE LTD
Oxford City Council,Direct Services,Direct Services Supplies & Services,D3311,05/04/2016,60053655_1,500,Revenue,20000263,SHEEHAN HAULAGE & PLANT HIRE LTD
Oxford City Council,Direct Services,Materials,D3021,05/04/2016,60053664_0,1211.1,Revenue,20000263,SHEEHAN HAULAGE & PLANT HIRE LTD
Oxford City Council,Direct Services,Materials,D3021,05/04/2016,60053665_1,4294.68,Revenue,20000263,SHEEHAN HAULAGE & PLANT HIRE LTD
Oxford City Council,Direct Services,Materials,D3021,05/04/2016,60053666_0,6567.6,Revenue,20000263,SHEEHAN HAULAGE & PLANT HIRE LTD
Oxford City Council,Direct Services,Materials,D3021,05/04/2016,60053667_1,1837.77,Revenue,20000263,SHEEHAN HAULAGE & PLANT HIRE LTD
Oxford City Council,Direct Services,General Contracted Services,D3401,12/04/2016,60054010_0,2524.26,Revenue,20000263,SHEEHAN HAULAGE & PLANT HIRE LTD
Oxford City Council,Direct Services,General Contracted Services,D3401,12/04/2016,60054011_0,673.43,Revenue,20000263,SHEEHAN HAULAGE & PLANT HIRE LTD
Oxford City Council,Direct Services,Direct Services Supplies & Services,D3311,19/04/2016,60054239_1,500,Revenue,20000263,SHEEHAN HAULAGE & PLANT HIRE LTD
Oxford City Council,Direct Services,Tipping Charges,D3421,19/04/2016,60054241_1,574,Revenue,20000263,SHEEHAN HAULAGE & PLANT HIRE LTD
Oxford City Council,Direct Services,Tipping Charges,D3421,19/04/2016,60054242_0,680,Revenue,20000263,SHEEHAN HAULAGE & PLANT HIRE LTD
Oxford City Council,HRA,Asbestos Work,B1106,19/04/2016,60054245_1,1168,Revenue,20000263,SHEEHAN HAULAGE & PLANT HIRE LTD
Oxford City Council,Direct Services,Direct Services Supplies & Services,D3311,19/04/2016,60054246_0,610,Revenue,20000263,SHEEHAN HAULAGE & PLANT HIRE LTD
Oxford City Council,Direct Services,Tipping Charges,D3421,26/04/2016,60054579_1,788,Revenue,20000263,SHEEHAN HAULAGE & PLANT HIRE LTD
Oxford City Council,Direct Services,General Contracted Services,D3401,04/05/2016,60055023_0,1009.03,Revenue,20000263,SHEEHAN HAULAGE & PLANT HIRE LTD
Oxford City Council,Direct Services,Materials,D3021,04/05/2016,60055035_1,901.16,Revenue,20000263,SHEEHAN HAULAGE & PLANT HIRE LTD
Oxford City Council,Direct Services,CAT A Waste,D3619,17/05/2016,60055545_0,2530.55,Revenue,20000263,SHEEHAN HAULAGE & PLANT HIRE LTD
Oxford City Council,Direct Services,CAT A Waste,D3619,17/05/2016,60055546_1,1360.67,Revenue,20000263,SHEEHAN HAULAGE & PLANT HIRE LTD
Oxford City Council,Direct Services,Materials,D3021,17/05/2016,60055547_0,642.51,Revenue,20000263,SHEEHAN HAULAGE & PLANT HIRE LTD
Oxford City Council,Direct Services,Materials,D3021,17/05/2016,60055549_0,615.79,Revenue,20000263,SHEEHAN HAULAGE & PLANT HIRE LTD
Oxford City Council,Direct Services,Materials,D3021,24/05/2016,60055887_0,631.29,Revenue,20000263,SHEEHAN HAULAGE & PLANT HIRE LTD
Oxford City Council,Direct Services,Tipping Charges,D3421,07/06/2016,60056295_1,519.4,Revenue,20000263,SHEEHAN HAULAGE & PLANT HIRE LTD
Oxford City Council,Direct Services,Tipping Charges,D3421,07/06/2016,60056296_0,802,Revenue,20000263,SHEEHAN HAULAGE & PLANT HIRE LTD
Oxford City Council,Direct Services,Tipping Charges,D3421,07/06/2016,60056297_1,968,Revenue,20000263,SHEEHAN HAULAGE & PLANT HIRE LTD
Oxford City Council,Direct Services,Tipping Charges,D3421,07/06/2016,60056298_0,664,Revenue,20000263,SHEEHAN HAULAGE & PLANT HIRE LTD
Oxford City Council,Direct Services,Tipping Charges,D3421,07/06/2016,60056299_1,500,Revenue,20000263,SHEEHAN HAULAGE & PLANT HIRE LTD
Oxford City Council,Direct Services,Waste Disposal & Skip Hire,D3420,14/06/2016,60056644_1,2521.7,Revenue,20000263,SHEEHAN HAULAGE & PLANT HIRE LTD
Oxford City Council,Direct Services,Materials,D3021,14/06/2016,60056645_0,521.79,Revenue,20000263,SHEEHAN HAULAGE & PLANT HIRE LTD
Oxford City Council,Direct Services,Engineering Services Supplies and Services,D3319,14/06/2016,60056646_1,4424.18,Revenue,20000263,SHEEHAN HAULAGE & PLANT HIRE LTD
Oxford City Council,HRA,Asbestos Work,B1106,21/06/2016,60056925_1,1140,Revenue,20000263,SHEEHAN HAULAGE & PLANT HIRE LTD
Oxford City Council,Direct Services,Tipping Charges,D3421,21/06/2016,60056926_0,1022,Revenue,20000263,SHEEHAN HAULAGE & PLANT HIRE LTD
Oxford City Council,Direct Services,Tipping Charges,D3421,21/06/2016,60056927_1,706,Revenue,20000263,SHEEHAN HAULAGE & PLANT HIRE LTD
Oxford City Council,Direct Services,Tipping Charges,D3421,21/06/2016,60056928_0,766,Revenue,20000263,SHEEHAN HAULAGE & PLANT HIRE LTD
Oxford City Council,Direct Services,Tipping Charges,D3421,21/06/2016,60056929_1,818,Revenue,20000263,SHEEHAN HAULAGE & PLANT HIRE LTD
Oxford City Council,Direct Services,Materials,D3021,28/06/2016,60057366_0,634.2,Revenue,20000263,SHEEHAN HAULAGE & PLANT HIRE LTD
Oxford City Council,Direct Services,Materials,D3021,28/06/2016,60057369_1,642.95,Revenue,20000263,SHEEHAN HAULAGE & PLANT HIRE LTD
Oxford City Council,Direct Services,Direct Services Supplies & Services,D3311,26/04/2016,60054768_1,24039.6,Revenue,20000267,JOHN SHEEHAN (OXFORD) LTD
Oxford City Council,Direct Services,Sign Shop Materials,D3018,05/04/2016,60053414_1,3492,Revenue,20000278,B & M ENGINEERS LIMITED
Oxford City Council,Direct Services,Direct Services Supplies & Services,D3311,04/05/2016,60055056_0,2483.2,Revenue,20000278,B & M ENGINEERS LIMITED
Oxford City Council,Direct Services,Direct Services Supplies & Services,D3311,17/05/2016,60055430_0,933.14,Revenue,20000278,B & M ENGINEERS LIMITED
Oxford City Council,Direct Services,Sign Shop Materials,D3018,01/06/2016,60056130_0,1437.54,Revenue,20000278,B & M ENGINEERS LIMITED
Oxford City Council,Housing and Property,Reactive Maintenance & Minor Repairs,B1101,05/04/2016,1027229_0,895,Revenue,20000286,D E & H V HUSSEY
Oxford City Council,Housing and Property,Reactive Maintenance & Minor Repairs,B1101,05/04/2016,1027415_0,595,Revenue,20000286,D E & H V HUSSEY
Oxford City Council,Housing and Property,Reactive Maintenance & Minor Repairs,B1101,05/04/2016,1027416_0,889,Revenue,20000286,D E & H V HUSSEY
Oxford City Council,Housing and Property,Reactive Maintenance & Minor Repairs,B1101,05/04/2016,1027417_0,575,Revenue,20000286,D E & H V HUSSEY
Oxford City Council,Housing and Property,Reactive Maintenance & Minor Repairs,B1101,05/04/2016,1027418_0,795,Revenue,20000286,D E & H V HUSSEY
Oxford City Council,Community Services,Reactive Maintenance & Minor Repairs,B1101,05/04/2016,1027419_0,1500,Revenue,20000286,D E & H V HUSSEY
Oxford City Council,Housing and Property,Reactive Maintenance & Minor Repairs,B1101,05/04/2016,1027420_0,750,Revenue,20000286,D E & H V HUSSEY
Oxford City Council,Housing and Property,Reactive Maintenance & Minor Repairs,B1101,05/04/2016,60053459_0,1570,Revenue,20000286,D E & H V HUSSEY
Oxford City Council,HRA,Controlled Entry Maintenance,B1243,28/06/2016,46290249_1,1644.15,Revenue,20000293,TUNSTALL TELECOM LIMITED
Oxford City Council,HRA,Controlled Entry Maintenance,B1243,28/06/2016,46290249_2,95.42,Revenue,20000293,TUNSTALL TELECOM LIMITED
Oxford City Council,HRA,Controlled Entry Maintenance,B1243,28/06/2016,46290250_1,1644.15,Revenue,20000293,TUNSTALL TELECOM LIMITED
Oxford City Council,HRA,Controlled Entry Maintenance,B1243,28/06/2016,46290250_2,95.42,Revenue,20000293,TUNSTALL TELECOM LIMITED
Oxford City Council,Direct Services,General Contracted Services,D3401,07/06/2016,1028632_0,635.5,Revenue,20000397,WINDRUSH DOOR & WINDOW SERVICES LTD
Oxford City Council,Direct Services,Direct Services Supplies & Services,D3311,12/04/2016,60054019_0,561.6,Revenue,20000441,1ST CHOICE SCAFFOLDING (OXFORD) LTD
Oxford City Council,Direct Services,Direct Services Supplies & Services,D3311,26/04/2016,60054733_0,777,Revenue,20000441,1ST CHOICE SCAFFOLDING (OXFORD) LTD
Oxford City Council,Direct Services,Direct Services Supplies & Services,D3311,04/05/2016,60055050_0,561.6,Revenue,20000441,1ST CHOICE SCAFFOLDING (OXFORD) LTD
Oxford City Council,Direct Services,Direct Services Supplies & Services,D3311,01/06/2016,60056163_1,546,Revenue,20000441,1ST CHOICE SCAFFOLDING (OXFORD) LTD
Oxford City Council,Direct Services,Direct Services Supplies & Services,D3311,07/06/2016,60056391_0,608.4,Revenue,20000441,1ST CHOICE SCAFFOLDING (OXFORD) LTD
Oxford City Council,Direct Services,Materials,D3021,05/04/2016,60053480_1,769.59,Revenue,20002005,HANSON AGGREGATES
Oxford City Council,Direct Services,Materials,D3021,01/06/2016,60056135_1,580.56,Revenue,20002005,HANSON AGGREGATES
Oxford City Council,Direct Services,Materials,D3021,01/06/2016,60056136_0,804.8,Revenue,20002005,HANSON AGGREGATES
Oxford City Council,Direct Services,Materials,D3021,07/06/2016,60056353_0,683.76,Revenue,20002005,HANSON AGGREGATES
Oxford City Council,Direct Services,Materials,D3021,14/06/2016,60056606_1,868.6,Revenue,20002005,HANSON AGGREGATES
Oxford City Council,Direct Services,Materials,D3021,14/06/2016,60056607_0,851.76,Revenue,20002005,HANSON AGGREGATES
Oxford City Council,Direct Services,Materials,D3021,14/06/2016,60056608_1,588.8,Revenue,20002005,HANSON AGGREGATES
Oxford City Council,Direct Services,Materials,D3021,21/06/2016,60056989_0,540,Revenue,20002005,HANSON AGGREGATES
Oxford City Council,Direct Services,Materials,D3021,21/06/2016,60056990_1,564,Revenue,20002005,HANSON AGGREGATES
Oxford City Council,Direct Services,Materials,D3021,21/06/2016,60056991_0,836.4,Revenue,20002005,HANSON AGGREGATES
Oxford City Council,Direct Services,Materials,D3021,19/04/2016,46289529_1,677.89,Revenue,20002033,Green Machines Sweepers UK Ltd
Oxford City Council,Community Services,Grants,D3701,05/04/2016,46289390_1,7000,Revenue,20002085,FUSION
Oxford City Council,Community Services,Grants,D3701,14/06/2016,46290133_1,14128,Revenue,20002085,FUSION
Oxford City Council,HRA,Gas,B1502,28/06/2016,1027907_1,1118.41,Revenue,20002096,BRITISH GAS TRADING LTD
Oxford City Council,HRA,Rent,B1701,21/06/2016,1028979_1,1000,Revenue,20002099,CANAL & RIVER TRUST
Oxford City Council,Direct Services,Security Services,D3418,26/04/2016,1027868_1,4449.11,Revenue,20002120,OCS GROUP UK LTD T/A CANNON
Oxford City Council,Direct Services,Security Services,D3418,26/04/2016,1027917_0,543.13,Revenue,20002120,OCS GROUP UK LTD T/A CANNON
Oxford City Council,Direct Services,General Contracted Services,D3401,28/06/2016,1028941_0,543.13,Revenue,20002120,OCS GROUP UK LTD T/A CANNON
Oxford City Council,Direct Services,General Contracted Services,D3401,14/06/2016,1028981_0,543.13,Revenue,20002120,OCS GROUP UK LTD T/A CANNON
Oxford City Council,Direct Services,Security Services,D3418,14/06/2016,1028982_0,4449.11,Revenue,20002120,OCS GROUP UK LTD T/A CANNON
Oxford City Council,Direct Services,Security Services,D3418,28/06/2016,1029195_0,4449.11,Revenue,20002120,OCS GROUP UK LTD T/A CANNON
Oxford City Council,Community Services,Photocopying/Paper Supplies,D3306,26/04/2016,1027611_1,1211.87,Revenue,20002121,CANON (UK) LTD
Oxford City Council,Community Services,Photocopying/Paper Supplies,D3306,26/04/2016,1027613_1,816.89,Revenue,20002121,CANON (UK) LTD
Oxford City Council,Planning & Regulatory,Photocopying/Paper Supplies,D3306,04/05/2016,1027759_1,992.38,Revenue,20002121,CANON (UK) LTD
Oxford City Council,Direct Services,Main Contractor,Y021,05/04/2016,47984556_0,245,Capital,20002134,HARTWELL FORD KIDLINGTON
Oxford City Council,Direct Services,Main Contractor,Y021,05/04/2016,47984556_1,46.5,Capital,20002134,HARTWELL FORD KIDLINGTON
Oxford City Council,Direct Services,Main Contractor,Y021,05/04/2016,47984556_2,395,Capital,20002134,HARTWELL FORD KIDLINGTON
Oxford City Council,Direct Services,Main Contractor,Y021,05/04/2016,47984556_3,58.5,Capital,20002134,HARTWELL FORD KIDLINGTON
Oxford City Council,Direct Services,Main Contractor,Y021,05/04/2016,47984556_4,592.5,Capital,20002134,HARTWELL FORD KIDLINGTON
Oxford City Council,Direct Services,Main Contractor,Y021,05/04/2016,47984556_5,200,Capital,20002134,HARTWELL FORD KIDLINGTON
Oxford City Council,Direct Services,Main Contractor,Y021,05/04/2016,47984556_6,7852,Capital,20002134,HARTWELL FORD KIDLINGTON
Oxford City Council,Direct Services,Main Contractor,Y021,05/04/2016,47984556_7,295,Capital,20002134,HARTWELL FORD KIDLINGTON
Oxford City Council,Direct Services,Main Contractor,Y021,05/04/2016,47984556_8,295,Capital,20002134,HARTWELL FORD KIDLINGTON
Oxford City Council,Direct Services,Main Contractor,Y021,05/04/2016,47984557_1,5674.81,Capital,20002134,HARTWELL FORD KIDLINGTON
Oxford City Council,Direct Services,Main Contractor,Y021,05/04/2016,47984557_2,208.33,Capital,20002134,HARTWELL FORD KIDLINGTON
Oxford City Council,Direct Services,Main Contractor,Y021,05/04/2016,47984557_3,245,Capital,20002134,HARTWELL FORD KIDLINGTON
Oxford City Council,Direct Services,Main Contractor,Y021,05/04/2016,47984557_4,46.5,Capital,20002134,HARTWELL FORD KIDLINGTON
Oxford City Council,Direct Services,Main Contractor,Y021,05/04/2016,47984557_5,58.5,Capital,20002134,HARTWELL FORD KIDLINGTON
Oxford City Council,Direct Services,Main Contractor,Y021,05/04/2016,47984557_6,295,Capital,20002134,HARTWELL FORD KIDLINGTON
Oxford City Council,Direct Services,Main Contractor,Y021,05/04/2016,47984557_7,592.5,Capital,20002134,HARTWELL FORD KIDLINGTON
Oxford City Council,Direct Services,Main Contractor,Y021,05/04/2016,47984557_8,55,Capital,20002134,HARTWELL FORD KIDLINGTON
Oxford City Council,Direct Services,Main Contractor,Y021,05/04/2016,47984557_9,395,Capital,20002134,HARTWELL FORD KIDLINGTON
Oxford City Council,Direct Services,Main Contractor,Y021,05/04/2016,47984558_0,5674.81,Capital,20002134,HARTWELL FORD KIDLINGTON
Oxford City Council,Direct Services,Main Contractor,Y021,05/04/2016,47984558_1,208.33,Capital,20002134,HARTWELL FORD KIDLINGTON
Oxford City Council,Direct Services,Main Contractor,Y021,05/04/2016,47984558_2,245,Capital,20002134,HARTWELL FORD KIDLINGTON
Oxford City Council,Direct Services,Main Contractor,Y021,05/04/2016,47984558_3,46.5,Capital,20002134,HARTWELL FORD KIDLINGTON
Oxford City Council,Direct Services,Main Contractor,Y021,05/04/2016,47984558_4,58.5,Capital,20002134,HARTWELL FORD KIDLINGTON
Oxford City Council,Direct Services,Main Contractor,Y021,05/04/2016,47984558_5,295,Capital,20002134,HARTWELL FORD KIDLINGTON
Oxford City Council,Direct Services,Main Contractor,Y021,05/04/2016,47984558_6,592.5,Capital,20002134,HARTWELL FORD KIDLINGTON
Oxford City Council,Direct Services,Main Contractor,Y021,05/04/2016,47984558_7,55,Capital,20002134,HARTWELL FORD KIDLINGTON
Oxford City Council,Direct Services,Main Contractor,Y021,05/04/2016,47984558_8,395,Capital,20002134,HARTWELL FORD KIDLINGTON
Oxford City Council,Direct Services,Main Contractor,Y021,10/05/2016,47985095_0,285,Capital,20002134,HARTWELL FORD KIDLINGTON
Oxford City Council,Direct Services,Main Contractor,Y021,10/05/2016,47985095_1,17848.8,Capital,20002134,HARTWELL FORD KIDLINGTON
Oxford City Council,Direct Services,Main Contractor,Y021,10/05/2016,47985095_2,749,Capital,20002134,HARTWELL FORD KIDLINGTON
Oxford City Council,Direct Services,Main Contractor,Y021,10/05/2016,47985095_3,4563,Capital,20002134,HARTWELL FORD KIDLINGTON
Oxford City Council,Direct Services,Main Contractor,Y021,17/05/2016,47985197_1,245,Capital,20002134,HARTWELL FORD KIDLINGTON
Oxford City Council,Direct Services,Main Contractor,Y021,17/05/2016,47985197_2,46.5,Capital,20002134,HARTWELL FORD KIDLINGTON
Oxford City Council,Direct Services,Main Contractor,Y021,17/05/2016,47985197_3,395,Capital,20002134,HARTWELL FORD KIDLINGTON
Oxford City Council,Direct Services,Main Contractor,Y021,17/05/2016,47985197_4,58.5,Capital,20002134,HARTWELL FORD KIDLINGTON
Oxford City Council,Direct Services,Main Contractor,Y021,17/05/2016,47985197_5,592.5,Capital,20002134,HARTWELL FORD KIDLINGTON
Oxford City Council,Direct Services,Main Contractor,Y021,17/05/2016,47985197_6,200,Capital,20002134,HARTWELL FORD KIDLINGTON
Oxford City Council,Direct Services,Main Contractor,Y021,17/05/2016,47985197_7,7852,Capital,20002134,HARTWELL FORD KIDLINGTON
Oxford City Council,Direct Services,Main Contractor,Y021,17/05/2016,47985197_8,295,Capital,20002134,HARTWELL FORD KIDLINGTON
Oxford City Council,Direct Services,Main Contractor,Y021,17/05/2016,47985197_9,295,Capital,20002134,HARTWELL FORD KIDLINGTON
Oxford City Council,Direct Services,Materials,D3021,14/06/2016,47985619_0,482.05,Revenue,20002134,HARTWELL FORD KIDLINGTON
Oxford City Council,Direct Services,Materials,D3021,14/06/2016,47985619_1,13.93,Revenue,20002134,HARTWELL FORD KIDLINGTON
Oxford City Council,Direct Services,Materials,D3021,14/06/2016,47985619_2,30.19,Revenue,20002134,HARTWELL FORD KIDLINGTON
Oxford City Council,Direct Services,Materials,D3021,05/04/2016,47984548_0,39.64,Revenue,20002168,DENNIS EAGLE LTD
Oxford City Council,Direct Services,Materials,D3021,05/04/2016,47984548_1,865.91,Revenue,20002168,DENNIS EAGLE LTD
Oxford City Council,Direct Services,Materials,D3021,19/04/2016,47984748_0,205.9,Revenue,20002168,DENNIS EAGLE LTD
Oxford City Council,Direct Services,Materials,D3021,19/04/2016,47984748_1,268,Revenue,20002168,DENNIS EAGLE LTD
Oxford City Council,Direct Services,Materials,D3021,19/04/2016,47984748_2,83.64,Revenue,20002168,DENNIS EAGLE LTD
Oxford City Council,Direct Services,Materials,D3021,19/04/2016,47984748_3,54.73,Revenue,20002168,DENNIS EAGLE LTD
Oxford City Council,Direct Services,Materials,D3021,19/04/2016,47984748_4,61.97,Revenue,20002168,DENNIS EAGLE LTD
Oxford City Council,Direct Services,Materials,D3021,04/05/2016,47984942_1,777.08,Revenue,20002168,DENNIS EAGLE LTD
Oxford City Council,Direct Services,Materials,D3021,14/06/2016,47985557_0,638.51,Revenue,20002168,DENNIS EAGLE LTD
Oxford City Council,Direct Services,Materials,D3021,14/06/2016,47985557_1,19.07,Revenue,20002168,DENNIS EAGLE LTD
Oxford City Council,Direct Services,Materials,D3021,14/06/2016,47985557_2,8.24,Revenue,20002168,DENNIS EAGLE LTD
Oxford City Council,Direct Services,Materials,D3021,21/06/2016,47985693_1,585.27,Revenue,20002168,DENNIS EAGLE LTD
Oxford City Council,Direct Services,Direct Services Supplies & Services,D3311,05/04/2016,60053564_1,1224.61,Revenue,20002183,EYRE & ELLISTON LTD
Oxford City Council,Direct Services,Direct Services Supplies & Services,D3311,05/04/2016,60053614_1,1758.72,Revenue,20002183,EYRE & ELLISTON LTD
Oxford City Council,Direct Services,Materials,D3021,12/04/2016,60053933_1,5929.06,Revenue,20002183,EYRE & ELLISTON LTD
Oxford City Council,Direct Services,Materials,D3021,12/04/2016,60053964_0,557.96,Revenue,20002183,EYRE & ELLISTON LTD
Oxford City Council,Direct Services,Materials,D3021,12/04/2016,60053973_1,2378.84,Revenue,20002183,EYRE & ELLISTON LTD
Oxford City Council,Direct Services,Materials,D3021,12/04/2016,60053974_0,535.2,Revenue,20002183,EYRE & ELLISTON LTD
Oxford City Council,Direct Services,Materials,D3021,19/04/2016,60054140_0,1315.01,Revenue,20002183,EYRE & ELLISTON LTD
Oxford City Council,Direct Services,Materials,D3021,19/04/2016,60054184_1,914.98,Revenue,20002183,EYRE & ELLISTON LTD
Oxford City Council,Direct Services,Direct Services Supplies & Services,D3311,19/04/2016,60054201_0,859.32,Revenue,20002183,EYRE & ELLISTON LTD
Oxford City Council,Direct Services,Materials,D3021,19/04/2016,60054237_1,597.52,Revenue,20002183,EYRE & ELLISTON LTD
Oxford City Council,Direct Services,Materials,D3021,19/04/2016,60054341_0,1154.94,Revenue,20002183,EYRE & ELLISTON LTD
Oxford City Council,Direct Services,Materials,D3021,19/04/2016,60054342_1,1659.55,Revenue,20002183,EYRE & ELLISTON LTD
Oxford City Council,Direct Services,Materials,D3021,26/04/2016,60054573_1,715.1,Revenue,20002183,EYRE & ELLISTON LTD
Oxford City Council,Direct Services,Materials,D3021,04/05/2016,60054887_1,1111.05,Revenue,20002183,EYRE & ELLISTON LTD
Oxford City Council,Direct Services,Materials,D3021,04/05/2016,60054888_0,3308.44,Revenue,20002183,EYRE & ELLISTON LTD
Oxford City Council,Direct Services,Materials,D3021,04/05/2016,60054889_1,3264.72,Revenue,20002183,EYRE & ELLISTON LTD
Oxford City Council,Direct Services,Materials,D3021,04/05/2016,60054890_0,6508.97,Revenue,20002183,EYRE & ELLISTON LTD
Oxford City Council,Direct Services,Materials,D3021,04/05/2016,60054893_1,2833.31,Revenue,20002183,EYRE & ELLISTON LTD
Oxford City Council,Direct Services,Direct Services Supplies & Services,D3311,04/05/2016,60055001_1,621.16,Revenue,20002183,EYRE & ELLISTON LTD
Oxford City Council,Direct Services,Materials,D3021,10/05/2016,60055133_1,982.23,Revenue,20002183,EYRE & ELLISTON LTD
Oxford City Council,Direct Services,Materials,D3021,10/05/2016,60055146_0,1939.6,Revenue,20002183,EYRE & ELLISTON LTD
Oxford City Council,Direct Services,Materials,D3021,10/05/2016,60055148_0,3582.88,Revenue,20002183,EYRE & ELLISTON LTD
Oxford City Council,Direct Services,Materials,D3021,10/05/2016,60055150_0,995.5,Revenue,20002183,EYRE & ELLISTON LTD
Oxford City Council,Direct Services,Materials,D3021,10/05/2016,60055153_1,2434.07,Revenue,20002183,EYRE & ELLISTON LTD
Oxford City Council,Direct Services,Materials,D3021,17/05/2016,60055522_0,1928.75,Revenue,20002183,EYRE & ELLISTON LTD
Oxford City Council,Direct Services,Materials,D3021,24/05/2016,60055688_1,2023,Revenue,20002183,EYRE & ELLISTON LTD
Oxford City Council,Direct Services,Materials,D3021,24/05/2016,60055689_0,1548.21,Revenue,20002183,EYRE & ELLISTON LTD
Oxford City Council,Direct Services,Materials,D3021,24/05/2016,60055702_0,2669.77,Revenue,20002183,EYRE & ELLISTON LTD
Oxford City Council,Direct Services,Materials,D3021,24/05/2016,60055705_1,715.1,Revenue,20002183,EYRE & ELLISTON LTD
Oxford City Council,Direct Services,Materials,D3021,24/05/2016,60055787_1,3184.1,Revenue,20002183,EYRE & ELLISTON LTD
Oxford City Council,Direct Services,Materials,D3021,24/05/2016,60055788_0,2078,Revenue,20002183,EYRE & ELLISTON LTD
Oxford City Council,Direct Services,Materials,D3021,01/06/2016,60056094_0,1241.29,Revenue,20002183,EYRE & ELLISTON LTD
Oxford City Council,Direct Services,Materials,D3021,01/06/2016,60056117_0,3038.3,Revenue,20002183,EYRE & ELLISTON LTD
Oxford City Council,Direct Services,Materials,D3021,14/06/2016,60056537_0,18984.98,Revenue,20002183,EYRE & ELLISTON LTD
Oxford City Council,Direct Services,Direct Services Supplies & Services,D3311,14/06/2016,60056542_1,839.58,Revenue,20002183,EYRE & ELLISTON LTD
Oxford City Council,Direct Services,Direct Services Supplies & Services,D3311,14/06/2016,60056544_1,515.56,Revenue,20002183,EYRE & ELLISTON LTD
Oxford City Council,Direct Services,Materials,D3021,21/06/2016,60056905_1,927.69,Revenue,20002183,EYRE & ELLISTON LTD
Oxford City Council,Direct Services,Materials,D3021,21/06/2016,60056907_1,6835.88,Revenue,20002183,EYRE & ELLISTON LTD
Oxford City Council,Direct Services,Materials,D3021,28/06/2016,60057110_1,896,Revenue,20002183,EYRE & ELLISTON LTD
Oxford City Council,Direct Services,Materials,D3021,28/06/2016,60057156_1,7851.69,Revenue,20002183,EYRE & ELLISTON LTD
Oxford City Council,Direct Services,Direct Services Supplies & Services,D3311,28/06/2016,60057255_0,17420,Revenue,20002183,EYRE & ELLISTON LTD
Oxford City Council,Direct Services,Materials,D3021,12/04/2016,47984687_0,2490,Revenue,20002198,FRENCO SERVICE REPLACMNTS LTD
Oxford City Council,Direct Services,Materials,D3021,04/05/2016,47984949_0,479.38,Revenue,20002198,FRENCO SERVICE REPLACMNTS LTD
Oxford City Council,Direct Services,Materials,D3021,04/05/2016,47984949_1,359.17,Revenue,20002198,FRENCO SERVICE REPLACMNTS LTD
Oxford City Council,Direct Services,Materials,D3021,04/05/2016,47984949_2,295.6,Revenue,20002198,FRENCO SERVICE REPLACMNTS LTD
Oxford City Council,Direct Services,Materials,D3021,24/05/2016,47985292_1,92.34,Revenue,20002198,FRENCO SERVICE REPLACMNTS LTD
Oxford City Council,Direct Services,Materials,D3021,24/05/2016,47985292_2,203.82,Revenue,20002198,FRENCO SERVICE REPLACMNTS LTD
Oxford City Council,Direct Services,Materials,D3021,24/05/2016,47985292_3,450,Revenue,20002198,FRENCO SERVICE REPLACMNTS LTD
Oxford City Council,Direct Services,Materials,D3021,24/05/2016,47985292_5,1750,Revenue,20002198,FRENCO SERVICE REPLACMNTS LTD
Oxford City Council,Direct Services,Materials,D3021,24/05/2016,47985292_6,63,Revenue,20002198,FRENCO SERVICE REPLACMNTS LTD
Oxford City Council,Direct Services,Materials,D3021,24/05/2016,47985292_7,7.08,Revenue,20002198,FRENCO SERVICE REPLACMNTS LTD
Oxford City Council,Direct Services,Materials,D3021,01/06/2016,47985458_0,2450,Revenue,20002198,FRENCO SERVICE REPLACMNTS LTD
Oxford City Council,Direct Services,Waste Disposal & Skip Hire,D3420,14/06/2016,1029188_0,979.28,Revenue,20002222,GRUNDON WASTE MANAGEMENT LTD
Oxford City Council,Direct Services,Waste Disposal & Skip Hire,D3420,28/06/2016,1029457_0,1825.72,Revenue,20002222,GRUNDON WASTE MANAGEMENT LTD
Oxford City Council,Direct Services,Materials,D3021,05/04/2016,47984581_0,504,Revenue,20002241,HURLEY INDUSTRIAL CLEANING EQU
Oxford City Council,Direct Services,Materials,D3021,21/06/2016,47985695_1,630,Revenue,20002241,HURLEY INDUSTRIAL CLEANING EQU
Oxford City Council,Suspense,Materials,D3021,12/04/2016,60053864_1,848.4,Revenue,20002249,INSTARMAC LTD
Oxford City Council,Suspense,Materials,D3021,19/04/2016,60054314_0,633.92,Revenue,20002249,INSTARMAC LTD
Oxford City Council,Suspense,Materials,D3021,17/05/2016,60055536_0,1304.8,Revenue,20002249,INSTARMAC LTD
Oxford City Council,Suspense,Materials,D3021,24/05/2016,60055820_1,543.4,Revenue,20002249,INSTARMAC LTD
Oxford City Council,Suspense,Materials,D3021,24/05/2016,60055821_0,543.4,Revenue,20002249,INSTARMAC LTD
Oxford City Council,Suspense,Materials,D3021,01/06/2016,60056031_1,848.4,Revenue,20002249,INSTARMAC LTD
Oxford City Council,Suspense,Materials,D3021,01/06/2016,60056032_1,1765.12,Revenue,20002249,INSTARMAC LTD
Oxford City Council,Suspense,Other Miscellaneous Expenses,D3811,04/05/2016,46289727_1,4296.2,Revenue,20002254,GRAFTON MERCHANTING GB LTD
Oxford City Council,Suspense,Other Miscellaneous Expenses,D3811,10/05/2016,46289803_1,543.76,Revenue,20002254,GRAFTON MERCHANTING GB LTD
Oxford City Council,Suspense,Other Miscellaneous Expenses,D3811,10/05/2016,46289807_1,520.48,Revenue,20002254,GRAFTON MERCHANTING GB LTD
Oxford City Council,Suspense,Other Miscellaneous Expenses,D3811,01/06/2016,46289993_1,1154.74,Revenue,20002254,GRAFTON MERCHANTING GB LTD
Oxford City Council,Suspense,Other Miscellaneous Expenses,D3811,01/06/2016,46290006_1,728.73,Revenue,20002254,GRAFTON MERCHANTING GB LTD
Oxford City Council,Direct Services,Materials,D3021,05/04/2016,60053419_0,3838.18,Revenue,20002254,GRAFTON MERCHANTING GB LTD
Oxford City Council,Direct Services,Materials,D3021,05/04/2016,60053421_0,1085.24,Revenue,20002254,GRAFTON MERCHANTING GB LTD
Oxford City Council,Direct Services,Materials,D3021,05/04/2016,60053426_1,1757.46,Revenue,20002254,GRAFTON MERCHANTING GB LTD
Oxford City Council,Direct Services,Direct Services Supplies & Services,D3311,05/04/2016,60053429_0,561.43,Revenue,20002254,GRAFTON MERCHANTING GB LTD
Oxford City Council,Direct Services,Direct Services Supplies & Services,D3311,05/04/2016,60053430_1,618.86,Revenue,20002254,GRAFTON MERCHANTING GB LTD
Oxford City Council,Direct Services,Direct Services Supplies & Services,D3311,05/04/2016,60053431_0,536.17,Revenue,20002254,GRAFTON MERCHANTING GB LTD
Oxford City Council,Direct Services,Direct Services Supplies & Services,D3311,05/04/2016,60053432_1,618.86,Revenue,20002254,GRAFTON MERCHANTING GB LTD
Oxford City Council,Direct Services,Direct Services Supplies & Services,D3311,05/04/2016,60053433_0,612.65,Revenue,20002254,GRAFTON MERCHANTING GB LTD
Oxford City Council,Direct Services,Direct Services Supplies & Services,D3311,05/04/2016,60053435_0,952.17,Revenue,20002254,GRAFTON MERCHANTING GB LTD
Oxford City Council,Direct Services,Materials,D3021,05/04/2016,60053438_1,679.04,Revenue,20002254,GRAFTON MERCHANTING GB LTD
Oxford City Council,Direct Services,Direct Services Supplies & Services,D3311,05/04/2016,60053461_0,502.8,Revenue,20002254,GRAFTON MERCHANTING GB LTD
Oxford City Council,Direct Services,Materials,D3021,05/04/2016,60053463_0,5020.8,Revenue,20002254,GRAFTON MERCHANTING GB LTD
Oxford City Council,Direct Services,Materials,D3021,05/04/2016,60053542_1,1862.69,Revenue,20002254,GRAFTON MERCHANTING GB LTD
Oxford City Council,Direct Services,Direct Services Supplies & Services,D3311,05/04/2016,60053543_0,612.65,Revenue,20002254,GRAFTON MERCHANTING GB LTD
Oxford City Council,Direct Services,Direct Services Supplies & Services,D3311,05/04/2016,60053544_1,660.81,Revenue,20002254,GRAFTON MERCHANTING GB LTD
Oxford City Council,Direct Services,Direct Services Supplies & Services,D3311,05/04/2016,60053545_0,612.65,Revenue,20002254,GRAFTON MERCHANTING GB LTD
Oxford City Council,Direct Services,Direct Services Supplies & Services,D3311,05/04/2016,60053546_1,618.86,Revenue,20002254,GRAFTON MERCHANTING GB LTD
Oxford City Council,Direct Services,Direct Services Supplies & Services,D3311,05/04/2016,60053547_0,618.86,Revenue,20002254,GRAFTON MERCHANTING GB LTD
Oxford City Council,Direct Services,Direct Services Supplies & Services,D3311,05/04/2016,60053548_1,520.48,Revenue,20002254,GRAFTON MERCHANTING GB LTD
Oxford City Council,Direct Services,Materials,D3021,05/04/2016,60053553_0,724.39,Revenue,20002254,GRAFTON MERCHANTING GB LTD
Oxford City Council,Direct Services,Materials,D3021,05/04/2016,60053554_1,1397.5,Revenue,20002254,GRAFTON MERCHANTING GB LTD
Oxford City Council,Direct Services,Materials,D3021,05/04/2016,60053555_0,1128.75,Revenue,20002254,GRAFTON MERCHANTING GB LTD
Oxford City Council,Direct Services,Direct Services Supplies & Services,D3311,05/04/2016,60053556_1,1169.28,Revenue,20002254,GRAFTON MERCHANTING GB LTD
Oxford City Council,Direct Services,Materials,D3021,05/04/2016,60053584_1,1178.08,Revenue,20002254,GRAFTON MERCHANTING GB LTD
Oxford City Council,Direct Services,Materials,D3021,05/04/2016,60053585_0,3990.47,Revenue,20002254,GRAFTON MERCHANTING GB LTD
Oxford City Council,Direct Services,Direct Services Supplies & Services,D3311,05/04/2016,60053592_1,520.48,Revenue,20002254,GRAFTON MERCHANTING GB LTD
Oxford City Council,Direct Services,Direct Services Supplies & Services,D3311,05/04/2016,60053594_1,514.27,Revenue,20002254,GRAFTON MERCHANTING GB LTD
Oxford City Council,Direct Services,Direct Services Supplies & Services,D3311,05/04/2016,60053596_1,664.13,Revenue,20002254,GRAFTON MERCHANTING GB LTD
Oxford City Council,Direct Services,Materials,D3021,05/04/2016,60053601_0,1152.25,Revenue,20002254,GRAFTON MERCHANTING GB LTD
Oxford City Council,Direct Services,Materials,D3021,05/04/2016,60053644_0,1355.59,Revenue,20002254,GRAFTON MERCHANTING GB LTD
Oxford City Council,Direct Services,Direct Services Supplies & Services,D3311,05/04/2016,60053645_1,544.03,Revenue,20002254,GRAFTON MERCHANTING GB LTD
Oxford City Council,Direct Services,Direct Services Supplies & Services,D3311,05/04/2016,60053646_0,618.86,Revenue,20002254,GRAFTON MERCHANTING GB LTD
Oxford City Council,Direct Services,Direct Services Supplies & Services,D3311,05/04/2016,60053647_1,514.27,Revenue,20002254,GRAFTON MERCHANTING GB LTD
Oxford City Council,Direct Services,Direct Services Supplies & Services,D3311,05/04/2016,60053648_0,514.27,Revenue,20002254,GRAFTON MERCHANTING GB LTD
Oxford City Council,Direct Services,Materials,D3021,05/04/2016,60053650_0,1224.68,Revenue,20002254,GRAFTON MERCHANTING GB LTD
Oxford City Council,Direct Services,Direct Services Supplies & Services,D3311,05/04/2016,60053677_1,946.9,Revenue,20002254,GRAFTON MERCHANTING GB LTD
Oxford City Council,Direct Services,Direct Services Supplies & Services,D3311,05/04/2016,60053679_1,642.41,Revenue,20002254,GRAFTON MERCHANTING GB LTD
Oxford City Council,Direct Services,Direct Services Supplies & Services,D3311,12/04/2016,60053902_1,514.27,Revenue,20002254,GRAFTON MERCHANTING GB LTD
Oxford City Council,Direct Services,Direct Services Supplies & Services,D3311,12/04/2016,60053903_0,564.82,Revenue,20002254,GRAFTON MERCHANTING GB LTD
Oxford City Council,Direct Services,Direct Services Supplies & Services,D3311,12/04/2016,60053904_1,574.52,Revenue,20002254,GRAFTON MERCHANTING GB LTD
Oxford City Council,Direct Services,Direct Services Supplies & Services,D3311,12/04/2016,60053905_0,514.27,Revenue,20002254,GRAFTON MERCHANTING GB LTD
Oxford City Council,Direct Services,Direct Services Supplies & Services,D3311,12/04/2016,60053906_1,574.52,Revenue,20002254,GRAFTON MERCHANTING GB LTD
Oxford City Council,Direct Services,Direct Services Supplies & Services,D3311,12/04/2016,60053907_0,612.65,Revenue,20002254,GRAFTON MERCHANTING GB LTD
Oxford City Council,Direct Services,Materials,D3021,12/04/2016,60053908_1,5130.28,Revenue,20002254,GRAFTON MERCHANTING GB LTD
Oxford City Council,Direct Services,Materials,D3021,19/04/2016,60054081_1,3578.87,Revenue,20002254,GRAFTON MERCHANTING GB LTD
Oxford City Council,Direct Services,Direct Services Supplies & Services,D3311,19/04/2016,60054082_0,618.86,Revenue,20002254,GRAFTON MERCHANTING GB LTD
Oxford City Council,Direct Services,Materials,D3021,19/04/2016,60054085_1,3517.21,Revenue,20002254,GRAFTON MERCHANTING GB LTD
Oxford City Council,Direct Services,Direct Services Supplies & Services,D3311,19/04/2016,60054086_0,659.48,Revenue,20002254,GRAFTON MERCHANTING GB LTD
Oxford City Council,Direct Services,Direct Services Supplies & Services,D3311,19/04/2016,60054088_1,1005.04,Revenue,20002254,GRAFTON MERCHANTING GB LTD
Oxford City Council,Direct Services,Direct Services Supplies & Services,D3311,19/04/2016,60054090_1,1128.41,Revenue,20002254,GRAFTON MERCHANTING GB LTD
Oxford City Council,Direct Services,Direct Services Supplies & Services,D3311,19/04/2016,60054091_0,520.48,Revenue,20002254,GRAFTON MERCHANTING GB LTD
Oxford City Council,Direct Services,Direct Services Supplies & Services,D3311,19/04/2016,60054092_1,505.63,Revenue,20002254,GRAFTON MERCHANTING GB LTD
Oxford City Council,Direct Services,Materials,D3021,19/04/2016,60054097_0,3578.26,Revenue,20002254,GRAFTON MERCHANTING GB LTD
Oxford City Council,Direct Services,Materials,D3021,19/04/2016,60054107_0,2646.82,Revenue,20002254,GRAFTON MERCHANTING GB LTD
Oxford City Council,Direct Services,Materials,D3021,19/04/2016,60054108_1,1128.75,Revenue,20002254,GRAFTON MERCHANTING GB LTD
Oxford City Council,Direct Services,Materials,D3021,19/04/2016,60054156_0,944.24,Revenue,20002254,GRAFTON MERCHANTING GB LTD
Oxford City Council,Direct Services,Materials,D3021,19/04/2016,60054157_1,7411.2,Revenue,20002254,GRAFTON MERCHANTING GB LTD
Oxford City Council,Direct Services,Direct Services Supplies & Services,D3311,19/04/2016,60054160_0,628.36,Revenue,20002254,GRAFTON MERCHANTING GB LTD
Oxford City Council,Direct Services,Direct Services Supplies & Services,D3311,19/04/2016,60054163_1,657.68,Revenue,20002254,GRAFTON MERCHANTING GB LTD
Oxford City Council,Direct Services,Direct Services Supplies & Services,D3311,19/04/2016,60054165_1,597.8,Revenue,20002254,GRAFTON MERCHANTING GB LTD
Oxford City Council,Direct Services,Materials,D3021,19/04/2016,60054169_0,568.74,Revenue,20002254,GRAFTON MERCHANTING GB LTD
Oxford City Council,Direct Services,Materials,D3021,19/04/2016,60054172_1,678.7,Revenue,20002254,GRAFTON MERCHANTING GB LTD
Oxford City Council,Direct Services,Direct Services Supplies & Services,D3311,19/04/2016,60054174_0,846.21,Revenue,20002254,GRAFTON MERCHANTING GB LTD
Oxford City Council,Direct Services,Materials,D3021,19/04/2016,60054272_0,2672.76,Revenue,20002254,GRAFTON MERCHANTING GB LTD
Oxford City Council,Direct Services,Materials,D3021,19/04/2016,60054273_1,1682.6,Revenue,20002254,GRAFTON MERCHANTING GB LTD
Oxford City Council,Direct Services,Direct Services Supplies & Services,D3311,19/04/2016,60054274_0,618.86,Revenue,20002254,GRAFTON MERCHANTING GB LTD
Oxford City Council,Direct Services,Direct Services Supplies & Services,D3311,19/04/2016,60054275_1,791.83,Revenue,20002254,GRAFTON MERCHANTING GB LTD
Oxford City Council,Direct Services,Direct Services Supplies & Services,D3311,19/04/2016,60054276_0,668.68,Revenue,20002254,GRAFTON MERCHANTING GB LTD
Oxford City Council,Direct Services,Direct Services Supplies & Services,D3311,19/04/2016,60054277_1,802.22,Revenue,20002254,GRAFTON MERCHANTING GB LTD
Oxford City Council,Direct Services,Materials,D3021,19/04/2016,60054278_0,3081.98,Revenue,20002254,GRAFTON MERCHANTING GB LTD
Oxford City Council,Direct Services,Materials,D3021,19/04/2016,60054281_1,2208.89,Revenue,20002254,GRAFTON MERCHANTING GB LTD
Oxford City Council,Direct Services,Materials,D3021,19/04/2016,60054334_1,1969.03,Revenue,20002254,GRAFTON MERCHANTING GB LTD
Oxford City Council,Direct Services,Materials,D3021,19/04/2016,60054436_0,694.6,Revenue,20002254,GRAFTON MERCHANTING GB LTD
Oxford City Council,Direct Services,Direct Services Supplies & Services,D3311,26/04/2016,60054449_0,847.33,Revenue,20002254,GRAFTON MERCHANTING GB LTD
Oxford City Council,Direct Services,Materials,D3021,26/04/2016,60054453_1,1897.58,Revenue,20002254,GRAFTON MERCHANTING GB LTD
Oxford City Council,Direct Services,Direct Services Supplies & Services,D3311,26/04/2016,60054454_0,659.94,Revenue,20002254,GRAFTON MERCHANTING GB LTD
Oxford City Council,Direct Services,Direct Services Supplies & Services,D3311,26/04/2016,60054455_1,520.48,Revenue,20002254,GRAFTON MERCHANTING GB LTD
Oxford City Council,Direct Services,Materials,D3021,26/04/2016,60054456_0,5129.52,Revenue,20002254,GRAFTON MERCHANTING GB LTD
Oxford City Council,Direct Services,Direct Services Supplies & Services,D3311,26/04/2016,60054463_1,513.83,Revenue,20002254,GRAFTON MERCHANTING GB LTD
Oxford City Council,Direct Services,Direct Services Supplies & Services,D3311,26/04/2016,60054464_0,600.19,Revenue,20002254,GRAFTON MERCHANTING GB LTD
Oxford City Council,Direct Services,Direct Services Supplies & Services,D3311,26/04/2016,60054466_0,742.1,Revenue,20002254,GRAFTON MERCHANTING GB LTD
Oxford City Council,Direct Services,Direct Services Supplies & Services,D3311,26/04/2016,60054469_1,658.91,Revenue,20002254,GRAFTON MERCHANTING GB LTD
Oxford City Council,Direct Services,Direct Services Supplies & Services,D3311,26/04/2016,60054471_1,560.49,Revenue,20002254,GRAFTON MERCHANTING GB LTD
Oxford City Council,Direct Services,Direct Services Supplies & Services,D3311,26/04/2016,60054472_0,607.52,Revenue,20002254,GRAFTON MERCHANTING GB LTD
Oxford City Council,Direct Services,Direct Services Supplies & Services,D3311,26/04/2016,60054473_1,618.14,Revenue,20002254,GRAFTON MERCHANTING GB LTD
Oxford City Council,Direct Services,Direct Services Supplies & Services,D3311,26/04/2016,60054475_1,666.99,Revenue,20002254,GRAFTON MERCHANTING GB LTD
Oxford City Council,Direct Services,Direct Services Supplies & Services,D3311,26/04/2016,60054476_0,508,Revenue,20002254,GRAFTON MERCHANTING GB LTD
Oxford City Council,Direct Services,Direct Services Supplies & Services,D3311,26/04/2016,60054477_1,718.91,Revenue,20002254,GRAFTON MERCHANTING GB LTD
Oxford City Council,Direct Services,Materials,D3021,26/04/2016,60054481_1,564.99,Revenue,20002254,GRAFTON MERCHANTING GB LTD
Oxford City Council,Direct Services,Materials,D3021,26/04/2016,60054482_0,646.34,Revenue,20002254,GRAFTON MERCHANTING GB LTD
Oxford City Council,Direct Services,Materials,D3021,26/04/2016,60054537_1,3114.73,Revenue,20002254,GRAFTON MERCHANTING GB LTD
Oxford City Council,Direct Services,Materials,D3021,26/04/2016,60054538_0,1405.78,Revenue,20002254,GRAFTON MERCHANTING GB LTD
Oxford City Council,Direct Services,Materials,D3021,26/04/2016,60054539_1,649.9,Revenue,20002254,GRAFTON MERCHANTING GB LTD
Oxford City Council,Direct Services,Direct Services Supplies & Services,D3311,26/04/2016,60054543_1,987.28,Revenue,20002254,GRAFTON MERCHANTING GB LTD
Oxford City Council,Direct Services,Direct Services Supplies & Services,D3311,26/04/2016,60054544_0,671.69,Revenue,20002254,GRAFTON MERCHANTING GB LTD
Oxford City Council,Direct Services,Direct Services Supplies & Services,D3311,26/04/2016,60054545_1,618.26,Revenue,20002254,GRAFTON MERCHANTING GB LTD
Oxford City Council,Direct Services,Direct Services Supplies & Services,D3311,26/04/2016,60054546_0,708.44,Revenue,20002254,GRAFTON MERCHANTING GB LTD
Oxford City Council,Direct Services,Direct Services Supplies & Services,D3311,26/04/2016,60054554_0,778.44,Revenue,20002254,GRAFTON MERCHANTING GB LTD
Oxford City Council,Direct Services,Direct Services Supplies & Services,D3311,26/04/2016,60054558_0,985.4,Revenue,20002254,GRAFTON MERCHANTING GB LTD
Oxford City Council,Direct Services,Direct Services Supplies & Services,D3311,26/04/2016,60054559_1,866.32,Revenue,20002254,GRAFTON MERCHANTING GB LTD
Oxford City Council,Direct Services,Direct Services Supplies & Services,D3311,26/04/2016,60054560_0,518.76,Revenue,20002254,GRAFTON MERCHANTING GB LTD
Oxford City Council,Direct Services,Materials,D3021,26/04/2016,60054561_1,649.9,Revenue,20002254,GRAFTON MERCHANTING GB LTD
Oxford City Council,Direct Services,Materials,D3021,26/04/2016,60054562_0,879.2,Revenue,20002254,GRAFTON MERCHANTING GB LTD
Oxford City Council,Direct Services,Materials,D3021,26/04/2016,60054715_0,975.4,Revenue,20002254,GRAFTON MERCHANTING GB LTD
Oxford City Council,Direct Services,Materials,D3021,26/04/2016,60054716_1,997.33,Revenue,20002254,GRAFTON MERCHANTING GB LTD
Oxford City Council,Direct Services,Materials,D3021,26/04/2016,60054717_0,548.57,Revenue,20002254,GRAFTON MERCHANTING GB LTD
Oxford City Council,Direct Services,Materials,D3021,26/04/2016,60054801_0,882.87,Revenue,20002254,GRAFTON MERCHANTING GB LTD
Oxford City Council,Direct Services,Direct Services Supplies & Services,D3311,26/04/2016,60054802_1,534.51,Revenue,20002254,GRAFTON MERCHANTING GB LTD
Oxford City Council,Direct Services,Direct Services Supplies & Services,D3311,26/04/2016,60054803_0,514.27,Revenue,20002254,GRAFTON MERCHANTING GB LTD
Oxford City Council,Direct Services,Direct Services Supplies & Services,D3311,26/04/2016,60054804_1,583.16,Revenue,20002254,GRAFTON MERCHANTING GB LTD
Oxford City Council,Direct Services,Materials,D3021,26/04/2016,60054809_0,1402.5,Revenue,20002254,GRAFTON MERCHANTING GB LTD
Oxford City Council,Direct Services,Materials,D3021,26/04/2016,60054811_0,3740.65,Revenue,20002254,GRAFTON MERCHANTING GB LTD
Oxford City Council,Direct Services,Direct Services Supplies & Services,D3311,26/04/2016,60054814_1,749.03,Revenue,20002254,GRAFTON MERCHANTING GB LTD
Oxford City Council,Direct Services,Direct Services Supplies & Services,D3311,26/04/2016,60054817_0,654.43,Revenue,20002254,GRAFTON MERCHANTING GB LTD
Oxford City Council,Direct Services,Materials,D3021,26/04/2016,60054818_1,1832.09,Revenue,20002254,GRAFTON MERCHANTING GB LTD
Oxford City Council,Direct Services,Materials,D3021,26/04/2016,60054819_0,774,Revenue,20002254,GRAFTON MERCHANTING GB LTD
Oxford City Council,Direct Services,Materials,D3021,04/05/2016,60054835_0,3157.47,Revenue,20002254,GRAFTON MERCHANTING GB LTD
Oxford City Council,Direct Services,Direct Services Supplies & Services,D3311,04/05/2016,60054837_0,597.2,Revenue,20002254,GRAFTON MERCHANTING GB LTD
Oxford City Council,Direct Services,Direct Services Supplies & Services,D3311,04/05/2016,60054838_1,701.02,Revenue,20002254,GRAFTON MERCHANTING GB LTD
Oxford City Council,Direct Services,Materials,D3021,04/05/2016,60054846_1,964.88,Revenue,20002254,GRAFTON MERCHANTING GB LTD
Oxford City Council,Direct Services,Materials,D3021,04/05/2016,60054916_0,588.83,Revenue,20002254,GRAFTON MERCHANTING GB LTD
Oxford City Council,Direct Services,Materials,D3021,04/05/2016,60054934_0,3926.89,Revenue,20002254,GRAFTON MERCHANTING GB LTD
Oxford City Council,Direct Services,Materials,D3021,04/05/2016,60054936_0,810.25,Revenue,20002254,GRAFTON MERCHANTING GB LTD
Oxford City Council,Direct Services,Direct Services Supplies & Services,D3311,04/05/2016,60054966_1,628.11,Revenue,20002254,GRAFTON MERCHANTING GB LTD
Oxford City Council,Direct Services,Materials,D3021,04/05/2016,60054971_0,985.97,Revenue,20002254,GRAFTON MERCHANTING GB LTD
Oxford City Council,Direct Services,Materials,D3021,04/05/2016,60054972_0,3006.28,Revenue,20002254,GRAFTON MERCHANTING GB LTD
Oxford City Council,Direct Services,Materials,D3021,04/05/2016,60054973_1,4570.92,Revenue,20002254,GRAFTON MERCHANTING GB LTD
Oxford City Council,Direct Services,Materials,D3021,04/05/2016,60054974_0,2536.29,Revenue,20002254,GRAFTON MERCHANTING GB LTD
Oxford City Council,Direct Services,Direct Services Supplies & Services,D3311,04/05/2016,60054976_0,556.09,Revenue,20002254,GRAFTON MERCHANTING GB LTD
Oxford City Council,Direct Services,Direct Services Supplies & Services,D3311,04/05/2016,60054977_1,568.64,Revenue,20002254,GRAFTON MERCHANTING GB LTD
Oxford City Council,Direct Services,Direct Services Supplies & Services,D3311,04/05/2016,60054978_0,514.27,Revenue,20002254,GRAFTON MERCHANTING GB LTD
Oxford City Council,Direct Services,Materials,D3021,04/05/2016,60054984_1,774.82,Revenue,20002254,GRAFTON MERCHANTING GB LTD
Oxford City Council,Direct Services,Direct Services Supplies & Services,D3311,04/05/2016,60055007_1,678.14,Revenue,20002254,GRAFTON MERCHANTING GB LTD
Oxford City Council,Direct Services,Materials,D3021,10/05/2016,60055115_1,1823.15,Revenue,20002254,GRAFTON MERCHANTING GB LTD
Oxford City Council,Direct Services,Materials,D3021,10/05/2016,60055117_1,620.14,Revenue,20002254,GRAFTON MERCHANTING GB LTD
Oxford City Council,Direct Services,Materials,D3021,10/05/2016,60055197_0,768.28,Revenue,20002254,GRAFTON MERCHANTING GB LTD
Oxford City Council,Direct Services,Materials,D3021,10/05/2016,60055198_1,1128.75,Revenue,20002254,GRAFTON MERCHANTING GB LTD
Oxford City Council,Direct Services,Direct Services Supplies & Services,D3311,10/05/2016,60055210_1,520.48,Revenue,20002254,GRAFTON MERCHANTING GB LTD
Oxford City Council,Direct Services,Direct Services Supplies & Services,D3311,10/05/2016,60055211_0,597.2,Revenue,20002254,GRAFTON MERCHANTING GB LTD
Oxford City Council,Direct Services,Direct Services Supplies & Services,D3311,10/05/2016,60055212_1,583.16,Revenue,20002254,GRAFTON MERCHANTING GB LTD
Oxford City Council,Direct Services,Materials,D3021,10/05/2016,60055213_0,900.57,Revenue,20002254,GRAFTON MERCHANTING GB LTD
Oxford City Council,Direct Services,Materials,D3021,10/05/2016,60055250_0,2920.33,Revenue,20002254,GRAFTON MERCHANTING GB LTD
Oxford City Council,Direct Services,Direct Services Supplies & Services,D3311,10/05/2016,60055284_0,586.51,Revenue,20002254,GRAFTON MERCHANTING GB LTD
Oxford City Council,Direct Services,Direct Services Supplies & Services,D3311,17/05/2016,60055346_0,564.51,Revenue,20002254,GRAFTON MERCHANTING GB LTD
Oxford City Council,Direct Services,Direct Services Supplies & Services,D3311,17/05/2016,60055347_1,677.03,Revenue,20002254,GRAFTON MERCHANTING GB LTD
Oxford City Council,Direct Services,Direct Services Supplies & Services,D3311,17/05/2016,60055348_0,679.27,Revenue,20002254,GRAFTON MERCHANTING GB LTD
Oxford City Council,Direct Services,Direct Services Supplies & Services,D3311,17/05/2016,60055351_1,593.17,Revenue,20002254,GRAFTON MERCHANTING GB LTD
Oxford City Council,Direct Services,Direct Services Supplies & Services,D3311,17/05/2016,60055352_0,522.64,Revenue,20002254,GRAFTON MERCHANTING GB LTD
Oxford City Council,Direct Services,Direct Services Supplies & Services,D3311,17/05/2016,60055353_1,530.29,Revenue,20002254,GRAFTON MERCHANTING GB LTD
Oxford City Council,Direct Services,Materials,D3021,17/05/2016,60055361_1,535.22,Revenue,20002254,GRAFTON MERCHANTING GB LTD
Oxford City Council,Direct Services,Materials,D3021,17/05/2016,60055412_1,2364.04,Revenue,20002254,GRAFTON MERCHANTING GB LTD
Oxford City Council,Direct Services,Materials,D3021,17/05/2016,60055413_1,649.9,Revenue,20002254,GRAFTON MERCHANTING GB LTD
Oxford City Council,Direct Services,Direct Services Supplies & Services,D3311,17/05/2016,60055415_1,529.99,Revenue,20002254,GRAFTON MERCHANTING GB LTD
Oxford City Council,Direct Services,Materials,D3021,17/05/2016,60055419_1,2526.25,Revenue,20002254,GRAFTON MERCHANTING GB LTD
Oxford City Council,Direct Services,Direct Services Supplies & Services,D3311,17/05/2016,60055434_0,686.13,Revenue,20002254,GRAFTON MERCHANTING GB LTD
Oxford City Council,Direct Services,Direct Services Supplies & Services,D3311,17/05/2016,60055456_1,602.08,Revenue,20002254,GRAFTON MERCHANTING GB LTD
Oxford City Council,Direct Services,Direct Services Supplies & Services,D3311,17/05/2016,60055463_0,572.06,Revenue,20002254,GRAFTON MERCHANTING GB LTD
Oxford City Council,Direct Services,Materials,D3021,17/05/2016,60055497_1,3584.08,Revenue,20002254,GRAFTON MERCHANTING GB LTD
Oxford City Council,Direct Services,Direct Services Supplies & Services,D3311,17/05/2016,60055502_0,909.4,Revenue,20002254,GRAFTON MERCHANTING GB LTD
Oxford City Council,Direct Services,Direct Services Supplies & Services,D3311,17/05/2016,60055503_2,975.65,Revenue,20002254,GRAFTON MERCHANTING GB LTD
Oxford City Council,Direct Services,Direct Services Supplies & Services,D3311,17/05/2016,60055504_0,1040.61,Revenue,20002254,GRAFTON MERCHANTING GB LTD
Oxford City Council,Direct Services,Direct Services Supplies & Services,D3311,17/05/2016,60055505_1,578.56,Revenue,20002254,GRAFTON MERCHANTING GB LTD
Oxford City Council,Direct Services,Direct Services Supplies & Services,D3311,17/05/2016,60055507_1,589.37,Revenue,20002254,GRAFTON MERCHANTING GB LTD
Oxford City Council,Direct Services,Direct Services Supplies & Services,D3311,17/05/2016,60055512_0,665.68,Revenue,20002254,GRAFTON MERCHANTING GB LTD
Oxford City Council,Direct Services,Materials,D3021,17/05/2016,60055513_1,565.2,Revenue,20002254,GRAFTON MERCHANTING GB LTD
Oxford City Council,Direct Services,Materials,D3021,17/05/2016,60055644_0,4877.83,Revenue,20002254,GRAFTON MERCHANTING GB LTD
Oxford City Council,Direct Services,Materials,D3021,17/05/2016,60055645_1,895.75,Revenue,20002254,GRAFTON MERCHANTING GB LTD
Oxford City Council,Direct Services,Direct Services Supplies & Services,D3311,17/05/2016,60055646_0,647.64,Revenue,20002254,GRAFTON MERCHANTING GB LTD
Oxford City Council,Direct Services,Direct Services Supplies & Services,D3311,24/05/2016,60055672_0,628.19,Revenue,20002254,GRAFTON MERCHANTING GB LTD
Oxford City Council,Direct Services,Direct Services Supplies & Services,D3311,24/05/2016,60055675_1,1370.45,Revenue,20002254,GRAFTON MERCHANTING GB LTD
Oxford City Council,Direct Services,Materials,D3021,24/05/2016,60055681_1,511.07,Revenue,20002254,GRAFTON MERCHANTING GB LTD
Oxford City Council,Direct Services,Direct Services Supplies & Services,D3311,24/05/2016,60055707_0,583.16,Revenue,20002254,GRAFTON MERCHANTING GB LTD
Oxford City Council,Direct Services,Materials,D3021,24/05/2016,60055746_1,7042.49,Revenue,20002254,GRAFTON MERCHANTING GB LTD
Oxford City Council,Direct Services,Direct Services Supplies & Services,D3311,24/05/2016,60055747_0,1101.35,Revenue,20002254,GRAFTON MERCHANTING GB LTD
Oxford City Council,Direct Services,Direct Services Supplies & Services,D3311,24/05/2016,60055748_1,983.92,Revenue,20002254,GRAFTON MERCHANTING GB LTD
Oxford City Council,Direct Services,Direct Services Supplies & Services,D3311,24/05/2016,60055749_0,1017.59,Revenue,20002254,GRAFTON MERCHANTING GB LTD
Oxford City Council,Direct Services,Direct Services Supplies & Services,D3311,24/05/2016,60055750_1,618.86,Revenue,20002254,GRAFTON MERCHANTING GB LTD
Oxford City Council,Direct Services,Direct Services Supplies & Services,D3311,24/05/2016,60055757_1,549.36,Revenue,20002254,GRAFTON MERCHANTING GB LTD
Oxford City Council,Direct Services,Direct Services Supplies & Services,D3311,24/05/2016,60055760_0,604.13,Revenue,20002254,GRAFTON MERCHANTING GB LTD
Oxford City Council,Direct Services,Direct Services Supplies & Services,D3311,24/05/2016,60055761_1,579.16,Revenue,20002254,GRAFTON MERCHANTING GB LTD
Oxford City Council,Direct Services,Direct Services Supplies & Services,D3311,24/05/2016,60055762_0,500.37,Revenue,20002254,GRAFTON MERCHANTING GB LTD
Oxford City Council,Direct Services,Materials,D3021,24/05/2016,60055771_0,1166.61,Revenue,20002254,GRAFTON MERCHANTING GB LTD
Oxford City Council,Direct Services,Direct Services Supplies & Services,D3311,01/06/2016,60055958_0,514.27,Revenue,20002254,GRAFTON MERCHANTING GB LTD
Oxford City Council,Direct Services,Materials,D3021,01/06/2016,60055970_1,3713.36,Revenue,20002254,GRAFTON MERCHANTING GB LTD
Oxford City Council,Direct Services,Direct Services Supplies & Services,D3311,01/06/2016,60055971_0,612.65,Revenue,20002254,GRAFTON MERCHANTING GB LTD
Oxford City Council,Direct Services,Direct Services Supplies & Services,D3311,01/06/2016,60055972_1,514.27,Revenue,20002254,GRAFTON MERCHANTING GB LTD
Oxford City Council,Direct Services,Materials,D3021,01/06/2016,60055974_1,817.96,Revenue,20002254,GRAFTON MERCHANTING GB LTD
Oxford City Council,Direct Services,Materials,D3021,01/06/2016,60055975_0,619.2,Revenue,20002254,GRAFTON MERCHANTING GB LTD
Oxford City Council,Direct Services,Materials,D3021,01/06/2016,60055976_1,1789,Revenue,20002254,GRAFTON MERCHANTING GB LTD
Oxford City Council,Direct Services,Direct Services Supplies & Services,D3311,01/06/2016,60056013_1,657.68,Revenue,20002254,GRAFTON MERCHANTING GB LTD
Oxford City Council,Direct Services,Direct Services Supplies & Services,D3311,01/06/2016,60056080_1,537.02,Revenue,20002254,GRAFTON MERCHANTING GB LTD
Oxford City Council,Direct Services,Direct Services Supplies & Services,D3311,01/06/2016,60056081_0,514.27,Revenue,20002254,GRAFTON MERCHANTING GB LTD
Oxford City Council,Direct Services,Direct Services Supplies & Services,D3311,01/06/2016,60056082_1,514.27,Revenue,20002254,GRAFTON MERCHANTING GB LTD
Oxford City Council,Direct Services,Direct Services Supplies & Services,D3311,01/06/2016,60056086_1,526.83,Revenue,20002254,GRAFTON MERCHANTING GB LTD
Oxford City Council,Direct Services,Direct Services Supplies & Services,D3311,01/06/2016,60056087_0,561.43,Revenue,20002254,GRAFTON MERCHANTING GB LTD
Oxford City Council,Direct Services,Direct Services Supplies & Services,D3311,01/06/2016,60056088_0,580.2,Revenue,20002254,GRAFTON MERCHANTING GB LTD
Oxford City Council,Direct Services,Materials,D3021,01/06/2016,60056108_0,3182.56,Revenue,20002254,GRAFTON MERCHANTING GB LTD
Oxford City Council,Direct Services,Materials,D3021,01/06/2016,60056112_1,1138.41,Revenue,20002254,GRAFTON MERCHANTING GB LTD
Oxford City Council,Direct Services,Materials,D3021,01/06/2016,60056113_0,2767.22,Revenue,20002254,GRAFTON MERCHANTING GB LTD
Oxford City Council,Direct Services,Direct Services Supplies & Services,D3311,07/06/2016,60056241_1,632.84,Revenue,20002254,GRAFTON MERCHANTING GB LTD
Oxford City Council,Direct Services,Direct Services Supplies & Services,D3311,07/06/2016,60056242_0,549.37,Revenue,20002254,GRAFTON MERCHANTING GB LTD
Oxford City Council,Direct Services,Direct Services Supplies & Services,D3311,07/06/2016,60056243_1,583.16,Revenue,20002254,GRAFTON MERCHANTING GB LTD
Oxford City Council,Direct Services,Direct Services Supplies & Services,D3311,07/06/2016,60056245_1,618.86,Revenue,20002254,GRAFTON MERCHANTING GB LTD
Oxford City Council,Direct Services,Direct Services Supplies & Services,D3311,07/06/2016,60056250_0,628.19,Revenue,20002254,GRAFTON MERCHANTING GB LTD
Oxford City Council,Direct Services,Direct Services Supplies & Services,D3311,07/06/2016,60056251_1,514.27,Revenue,20002254,GRAFTON MERCHANTING GB LTD
Oxford City Council,Direct Services,Direct Services Supplies & Services,D3311,07/06/2016,60056252_0,591.68,Revenue,20002254,GRAFTON MERCHANTING GB LTD
Oxford City Council,Direct Services,Direct Services Supplies & Services,D3311,07/06/2016,60056253_1,612.65,Revenue,20002254,GRAFTON MERCHANTING GB LTD
Oxford City Council,Direct Services,Direct Services Supplies & Services,D3311,07/06/2016,60056323_1,534.13,Revenue,20002254,GRAFTON MERCHANTING GB LTD
Oxford City Council,Direct Services,Direct Services Supplies & Services,D3311,07/06/2016,60056324_0,612.65,Revenue,20002254,GRAFTON MERCHANTING GB LTD
Oxford City Council,Direct Services,Direct Services Supplies & Services,D3311,07/06/2016,60056325_1,626.96,Revenue,20002254,GRAFTON MERCHANTING GB LTD
Oxford City Council,Direct Services,Direct Services Supplies & Services,D3311,07/06/2016,60056326_0,583.16,Revenue,20002254,GRAFTON MERCHANTING GB LTD
Oxford City Council,Direct Services,Direct Services Supplies & Services,D3311,07/06/2016,60056327_1,667.16,Revenue,20002254,GRAFTON MERCHANTING GB LTD
Oxford City Council,Direct Services,Direct Services Supplies & Services,D3311,07/06/2016,60056328_0,612.65,Revenue,20002254,GRAFTON MERCHANTING GB LTD
Oxford City Council,Direct Services,Direct Services Supplies & Services,D3311,07/06/2016,60056329_1,529.99,Revenue,20002254,GRAFTON MERCHANTING GB LTD
Oxford City Council,Direct Services,Direct Services Supplies & Services,D3311,07/06/2016,60056330_0,618.86,Revenue,20002254,GRAFTON MERCHANTING GB LTD
Oxford City Council,Direct Services,Direct Services Supplies & Services,D3311,07/06/2016,60056331_1,640.36,Revenue,20002254,GRAFTON MERCHANTING GB LTD
Oxford City Council,Direct Services,Materials,D3021,07/06/2016,60056332_0,573.12,Revenue,20002254,GRAFTON MERCHANTING GB LTD
Oxford City Council,Direct Services,Materials,D3021,07/06/2016,60056337_1,536.6,Revenue,20002254,GRAFTON MERCHANTING GB LTD
Oxford City Council,Direct Services,Materials,D3021,07/06/2016,60056341_1,2462.94,Revenue,20002254,GRAFTON MERCHANTING GB LTD
Oxford City Council,Direct Services,Materials,D3021,07/06/2016,60056342_0,704.55,Revenue,20002254,GRAFTON MERCHANTING GB LTD
Oxford City Council,Direct Services,Direct Services Supplies & Services,D3311,14/06/2016,60056438_1,549.37,Revenue,20002254,GRAFTON MERCHANTING GB LTD
Oxford City Council,Direct Services,Direct Services Supplies & Services,D3311,14/06/2016,60056439_0,572.95,Revenue,20002254,GRAFTON MERCHANTING GB LTD
Oxford City Council,Direct Services,Direct Services Supplies & Services,D3311,14/06/2016,60056440_1,537.85,Revenue,20002254,GRAFTON MERCHANTING GB LTD
Oxford City Council,Direct Services,Direct Services Supplies & Services,D3311,14/06/2016,60056441_0,537.85,Revenue,20002254,GRAFTON MERCHANTING GB LTD
Oxford City Council,Direct Services,Direct Services Supplies & Services,D3311,14/06/2016,60056442_1,634.4,Revenue,20002254,GRAFTON MERCHANTING GB LTD
Oxford City Council,Direct Services,Direct Services Supplies & Services,D3311,14/06/2016,60056443_0,583.16,Revenue,20002254,GRAFTON MERCHANTING GB LTD
Oxford City Council,Direct Services,Materials,D3021,14/06/2016,60056451_0,1089.83,Revenue,20002254,GRAFTON MERCHANTING GB LTD
Oxford City Council,Direct Services,Direct Services Supplies & Services,D3311,14/06/2016,60056458_1,582.54,Revenue,20002254,GRAFTON MERCHANTING GB LTD
Oxford City Council,Direct Services,Direct Services Supplies & Services,D3311,14/06/2016,60056459_0,577.19,Revenue,20002254,GRAFTON MERCHANTING GB LTD
Oxford City Council,Direct Services,Direct Services Supplies & Services,D3311,14/06/2016,60056461_0,561.72,Revenue,20002254,GRAFTON MERCHANTING GB LTD
Oxford City Council,Direct Services,Direct Services Supplies & Services,D3311,14/06/2016,60056462_1,500.74,Revenue,20002254,GRAFTON MERCHANTING GB LTD
Oxford City Council,Direct Services,Materials,D3021,14/06/2016,60056525_1,955.35,Revenue,20002254,GRAFTON MERCHANTING GB LTD
Oxford City Council,Direct Services,Direct Services Supplies & Services,D3311,14/06/2016,60056526_0,1097.27,Revenue,20002254,GRAFTON MERCHANTING GB LTD
Oxford City Council,Direct Services,Materials,D3021,14/06/2016,60056527_1,2785.12,Revenue,20002254,GRAFTON MERCHANTING GB LTD
Oxford City Council,Direct Services,Direct Services Supplies & Services,D3311,14/06/2016,60056528_0,943.64,Revenue,20002254,GRAFTON MERCHANTING GB LTD
Oxford City Council,Direct Services,Direct Services Supplies & Services,D3311,14/06/2016,60056529_1,1041.73,Revenue,20002254,GRAFTON MERCHANTING GB LTD
Oxford City Council,Direct Services,Materials,D3021,14/06/2016,60056552_1,711.17,Revenue,20002254,GRAFTON MERCHANTING GB LTD
Oxford City Council,Direct Services,Materials,D3021,14/06/2016,60056557_0,1767.95,Revenue,20002254,GRAFTON MERCHANTING GB LTD
Oxford City Council,Direct Services,Materials,D3021,14/06/2016,60056559_0,748.24,Revenue,20002254,GRAFTON MERCHANTING GB LTD
Oxford City Council,Direct Services,Materials,D3021,21/06/2016,60056766_0,578.43,Revenue,20002254,GRAFTON MERCHANTING GB LTD
Oxford City Council,Direct Services,Direct Services Supplies & Services,D3311,21/06/2016,60056767_1,514.27,Revenue,20002254,GRAFTON MERCHANTING GB LTD
Oxford City Council,Direct Services,Direct Services Supplies & Services,D3311,21/06/2016,60056772_1,823.64,Revenue,20002254,GRAFTON MERCHANTING GB LTD
Oxford City Council,Direct Services,Direct Services Supplies & Services,D3311,21/06/2016,60056773_0,652.78,Revenue,20002254,GRAFTON MERCHANTING GB LTD
Oxford City Council,Direct Services,Direct Services Supplies & Services,D3311,21/06/2016,60056774_1,544.03,Revenue,20002254,GRAFTON MERCHANTING GB LTD
Oxford City Council,Direct Services,Direct Services Supplies & Services,D3311,21/06/2016,60056776_1,658.69,Revenue,20002254,GRAFTON MERCHANTING GB LTD
Oxford City Council,Direct Services,Direct Services Supplies & Services,D3311,21/06/2016,60056777_0,833.74,Revenue,20002254,GRAFTON MERCHANTING GB LTD
Oxford City Council,Direct Services,Direct Services Supplies & Services,D3311,21/06/2016,60056778_1,555.58,Revenue,20002254,GRAFTON MERCHANTING GB LTD
Oxford City Council,Direct Services,Direct Services Supplies & Services,D3311,21/06/2016,60056779_0,514.27,Revenue,20002254,GRAFTON MERCHANTING GB LTD
Oxford City Council,Direct Services,Materials,D3021,21/06/2016,60056792_0,1005.36,Revenue,20002254,GRAFTON MERCHANTING GB LTD
Oxford City Council,Direct Services,Materials,D3021,21/06/2016,60056793_1,751.1,Revenue,20002254,GRAFTON MERCHANTING GB LTD
Oxford City Council,Direct Services,Materials,D3021,21/06/2016,60056794_0,3541.5,Revenue,20002254,GRAFTON MERCHANTING GB LTD
Oxford City Council,Direct Services,Materials,D3021,21/06/2016,60056796_1,3274.77,Revenue,20002254,GRAFTON MERCHANTING GB LTD
Oxford City Council,Direct Services,Direct Services Supplies & Services,D3311,21/06/2016,60056861_1,751.59,Revenue,20002254,GRAFTON MERCHANTING GB LTD
Oxford City Council,Direct Services,Direct Services Supplies & Services,D3311,21/06/2016,60056863_1,1509.09,Revenue,20002254,GRAFTON MERCHANTING GB LTD
Oxford City Council,Direct Services,Direct Services Supplies & Services,D3311,21/06/2016,60056868_0,979.72,Revenue,20002254,GRAFTON MERCHANTING GB LTD
Oxford City Council,Direct Services,Direct Services Supplies & Services,D3311,21/06/2016,60056870_0,821.98,Revenue,20002254,GRAFTON MERCHANTING GB LTD
Oxford City Council,Direct Services,Materials,D3021,21/06/2016,60056885_0,6973.37,Revenue,20002254,GRAFTON MERCHANTING GB LTD
Oxford City Council,Direct Services,Direct Services Supplies & Services,D3311,21/06/2016,60056887_0,925.93,Revenue,20002254,GRAFTON MERCHANTING GB LTD
Oxford City Council,Direct Services,Materials,D3021,21/06/2016,60056951_1,2946.3,Revenue,20002254,GRAFTON MERCHANTING GB LTD
Oxford City Council,Direct Services,Materials,D3021,21/06/2016,60056955_1,1902.41,Revenue,20002254,GRAFTON MERCHANTING GB LTD
Oxford City Council,Direct Services,Direct Services Supplies & Services,D3311,28/06/2016,60057067_0,564.07,Revenue,20002254,GRAFTON MERCHANTING GB LTD
Oxford City Council,Direct Services,Direct Services Supplies & Services,D3311,28/06/2016,60057068_1,956.39,Revenue,20002254,GRAFTON MERCHANTING GB LTD
Oxford City Council,Direct Services,Direct Services Supplies & Services,D3311,28/06/2016,60057069_0,678.74,Revenue,20002254,GRAFTON MERCHANTING GB LTD
Oxford City Council,Direct Services,Direct Services Supplies & Services,D3311,28/06/2016,60057070_1,612.65,Revenue,20002254,GRAFTON MERCHANTING GB LTD
Oxford City Council,Direct Services,Direct Services Supplies & Services,D3311,28/06/2016,60057072_1,536.52,Revenue,20002254,GRAFTON MERCHANTING GB LTD
Oxford City Council,Direct Services,Direct Services Supplies & Services,D3311,28/06/2016,60057073_0,514.27,Revenue,20002254,GRAFTON MERCHANTING GB LTD
Oxford City Council,Direct Services,Materials,D3021,28/06/2016,60057075_0,649.9,Revenue,20002254,GRAFTON MERCHANTING GB LTD
Oxford City Council,Direct Services,Direct Services Supplies & Services,D3311,28/06/2016,60057077_0,1117.63,Revenue,20002254,GRAFTON MERCHANTING GB LTD
Oxford City Council,Direct Services,Direct Services Supplies & Services,D3311,28/06/2016,60057078_1,718.42,Revenue,20002254,GRAFTON MERCHANTING GB LTD
Oxford City Council,Direct Services,Direct Services Supplies & Services,D3311,28/06/2016,60057080_1,1101.45,Revenue,20002254,GRAFTON MERCHANTING GB LTD
Oxford City Council,Direct Services,Materials,D3021,28/06/2016,60057082_1,1175.25,Revenue,20002254,GRAFTON MERCHANTING GB LTD
Oxford City Council,Direct Services,Materials,D3021,28/06/2016,60057087_0,5448.74,Revenue,20002254,GRAFTON MERCHANTING GB LTD
Oxford City Council,Direct Services,Direct Services Supplies & Services,D3311,28/06/2016,60057093_0,860,Revenue,20002254,GRAFTON MERCHANTING GB LTD
Oxford City Council,Direct Services,Direct Services Supplies & Services,D3311,28/06/2016,60057097_0,579.64,Revenue,20002254,GRAFTON MERCHANTING GB LTD
Oxford City Council,Direct Services,Direct Services Supplies & Services,D3311,28/06/2016,60057099_0,567.36,Revenue,20002254,GRAFTON MERCHANTING GB LTD
Oxford City Council,Direct Services,Materials,D3021,28/06/2016,60057103_0,529.97,Revenue,20002254,GRAFTON MERCHANTING GB LTD
Oxford City Council,Direct Services,Materials,D3021,28/06/2016,60057104_1,880.72,Revenue,20002254,GRAFTON MERCHANTING GB LTD
Oxford City Council,Direct Services,Materials,D3021,28/06/2016,60057167_0,734.37,Revenue,20002254,GRAFTON MERCHANTING GB LTD
Oxford City Council,Direct Services,Materials,D3021,28/06/2016,60057168_1,2179.94,Revenue,20002254,GRAFTON MERCHANTING GB LTD
Oxford City Council,Direct Services,Direct Services Supplies & Services,D3311,28/06/2016,60057169_0,544.03,Revenue,20002254,GRAFTON MERCHANTING GB LTD
Oxford City Council,Direct Services,Materials,D3021,28/06/2016,60057170_1,2037.44,Revenue,20002254,GRAFTON MERCHANTING GB LTD
Oxford City Council,Direct Services,Direct Services Supplies & Services,D3311,28/06/2016,60057172_1,664.04,Revenue,20002254,GRAFTON MERCHANTING GB LTD
Oxford City Council,Direct Services,Materials,D3021,28/06/2016,60057173_0,1626.03,Revenue,20002254,GRAFTON MERCHANTING GB LTD
Oxford City Council,Direct Services,Materials,D3021,28/06/2016,60057177_0,1224.83,Revenue,20002254,GRAFTON MERCHANTING GB LTD
Oxford City Council,Direct Services,Materials,D3021,28/06/2016,60057181_0,1005.36,Revenue,20002254,GRAFTON MERCHANTING GB LTD
Oxford City Council,Direct Services,Materials,D3021,28/06/2016,60057218_1,1730.96,Revenue,20002254,GRAFTON MERCHANTING GB LTD
Oxford City Council,Direct Services,Materials,D3021,28/06/2016,60057220_1,2825.87,Revenue,20002254,GRAFTON MERCHANTING GB LTD
Oxford City Council,Direct Services,Materials,D3021,28/06/2016,60057222_2,983.88,Revenue,20002254,GRAFTON MERCHANTING GB LTD
Oxford City Council,Direct Services,Materials,D3021,28/06/2016,60057224_1,703.9,Revenue,20002254,GRAFTON MERCHANTING GB LTD
Oxford City Council,Direct Services,Materials,D3021,28/06/2016,60057230_1,2619.57,Revenue,20002254,GRAFTON MERCHANTING GB LTD
Oxford City Council,Direct Services,Materials,D3021,26/04/2016,60054631_1,2767,Revenue,20002278,MF HYDRAULICS LTD
Oxford City Council,Direct Services,Waste Disposal & Skip Hire,D3420,10/05/2016,1028227_0,501.6,Revenue,20002279,M & M SKIP HIRE LTD
Oxford City Council,Direct Services,Waste Disposal & Skip Hire,D3420,14/06/2016,1028986_0,660,Revenue,20002279,M & M SKIP HIRE LTD
Oxford City Council,Direct Services,Waste Disposal & Skip Hire,D3420,14/06/2016,1028987_0,601.2,Revenue,20002279,M & M SKIP HIRE LTD
Oxford City Council,Direct Services,Software Maintenance/Running Costs,D3513,17/05/2016,1027948_0,1499.5,Revenue,20002296,METRIC GROUP LIMITED
Oxford City Council,Direct Services,Materials,D3021,19/04/2016,60054126_0,820.07,Revenue,20002299,C BREWER & SONS LTD
Oxford City Council,Direct Services,Materials,D3021,17/05/2016,60055325_0,717.7,Revenue,20002299,C BREWER & SONS LTD
Oxford City Council,Direct Services,Materials,D3021,17/05/2016,60055333_0,1003.79,Revenue,20002299,C BREWER & SONS LTD
Oxford City Council,Direct Services,Materials,D3021,17/05/2016,60055334_1,515.86,Revenue,20002299,C BREWER & SONS LTD
Oxford City Council,Direct Services,Materials,D3021,01/06/2016,60056004_0,832.46,Revenue,20002299,C BREWER & SONS LTD
Oxford City Council,Direct Services,Materials,D3021,14/06/2016,60056465_0,963.46,Revenue,20002299,C BREWER & SONS LTD
Oxford City Council,Business Improvement,Hardware Purchase,D3520,26/04/2016,1027854_0,7778,Revenue,20002302,MISCO
Oxford City Council,Business Improvement,Hardware Purchase,D3520,26/04/2016,1027941_0,1752,Revenue,20002302,MISCO
Oxford City Council,Business Improvement,Hardware Purchase,D3520,26/04/2016,1027942_0,1619.5,Revenue,20002302,MISCO
Oxford City Council,Business Improvement,Hardware Purchase,D3520,17/05/2016,1028095_0,4307.7,Revenue,20002302,MISCO
Oxford City Council,Business Improvement,Hardware Purchase,D3520,24/05/2016,1028279_0,12084.95,Revenue,20002302,MISCO
Oxford City Council,Business Improvement,Postage & Carriage,D3501,24/05/2016,1028279_1,9.99,Revenue,20002302,MISCO
Oxford City Council,Business Improvement,Hardware Purchase,D3520,01/06/2016,1028377_1,4307.7,Revenue,20002302,MISCO
Oxford City Council,Business Improvement,Postage & Carriage,D3501,01/06/2016,1028377_2,9.99,Revenue,20002302,MISCO
Oxford City Council,Business Improvement,Other Insurances,D3801,01/06/2016,1028417_0,1168.5,Revenue,20002302,MISCO
Oxford City Council,Business Improvement,Hardware Purchase,D3520,07/06/2016,1028446_0,1605.95,Revenue,20002302,MISCO
Oxford City Council,Business Improvement,Postage & Carriage,D3501,07/06/2016,1028446_1,6.99,Revenue,20002302,MISCO
Oxford City Council,Community Services,Hardware Purchase,D3520,07/06/2016,1028573_0,1666.39,Revenue,20002302,MISCO
Oxford City Council,Business Improvement,Hardware Purchase,D3520,14/06/2016,1028710_0,1440,Revenue,20002302,MISCO
Oxford City Council,Business Improvement,Postage & Carriage,D3501,14/06/2016,1028710_1,9.99,Revenue,20002302,MISCO
Oxford City Council,Business Improvement,Hardware Purchase,D3520,14/06/2016,1028883_0,686.85,Revenue,20002302,MISCO
Oxford City Council,Business Improvement,Hardware Purchase,D3520,21/06/2016,1028968_0,2583,Revenue,20002302,MISCO
Oxford City Council,Business Improvement,Postage & Carriage,D3501,21/06/2016,1028968_1,9.99,Revenue,20002302,MISCO
Oxford City Council,Business Improvement,Hardware Purchase,D3520,14/06/2016,1029140_0,5290,Revenue,20002302,MISCO
Oxford City Council,Assistant Chief Executive,Hardware Purchase,D3520,14/06/2016,1029175_0,1365.07,Revenue,20002302,MISCO
Oxford City Council,Business Improvement,Other Insurances,D3801,28/06/2016,1029468_0,1168.5,Revenue,20002302,MISCO
Oxford City Council,Direct Services,Materials,D3021,24/05/2016,1028574_0,600,Revenue,20002335,OXFORD FENCING SUPPLIES
Oxford City Council,Direct Services,Materials,D3021,24/05/2016,1028575_0,521.29,Revenue,20002335,OXFORD FENCING SUPPLIES
Oxford City Council,Direct Services,Materials,D3021,24/05/2016,1028576_0,638.94,Revenue,20002335,OXFORD FENCING SUPPLIES
Oxford City Council,Direct Services,Materials,D3021,24/05/2016,60055878_0,795.8,Revenue,20002335,OXFORD FENCING SUPPLIES
Oxford City Council,Direct Services,Sign Shop Materials,D3018,05/04/2016,60053368_0,733.02,Revenue,20002347,REXEL UK LIMITED
Oxford City Council,Direct Services,Materials,D3021,05/04/2016,60053687_1,916.58,Revenue,20002347,REXEL UK LIMITED
Oxford City Council,Direct Services,Materials,D3021,12/04/2016,60053877_1,7550,Revenue,20002347,REXEL UK LIMITED
Oxford City Council,Direct Services,Services Maintenance (Planned),B1103,05/04/2016,1027424_1,7467.67,Revenue,20002351,PHS GROUP PLC
Oxford City Council,Direct Services,Services Maintenance (Planned),B1103,05/04/2016,1027438_1,510.37,Revenue,20002351,PHS GROUP PLC
Oxford City Council,Direct Services,Services Maintenance (Planned),B1103,26/04/2016,1027604_1,690,Revenue,20002351,PHS GROUP PLC
Oxford City Council,Direct Services,Services Maintenance (Planned),B1103,26/04/2016,1027605_1,1843.6,Revenue,20002351,PHS GROUP PLC
Oxford City Council,Direct Services,Materials,D3021,07/06/2016,46290067_1,1191.74,Revenue,20002387,AEBI SCHMIDT UK LTD
Oxford City Council,Direct Services,Materials,D3021,19/04/2016,47984728_1,229.43,Revenue,20002387,AEBI SCHMIDT UK LTD
Oxford City Council,Direct Services,Materials,D3021,19/04/2016,47984728_2,317.52,Revenue,20002387,AEBI SCHMIDT UK LTD
Oxford City Council,Direct Services,Materials,D3021,19/04/2016,47984728_3,10,Revenue,20002387,AEBI SCHMIDT UK LTD
Oxford City Council,Direct Services,Materials,D3021,01/06/2016,47985355_1,850.94,Revenue,20002387,AEBI SCHMIDT UK LTD
Oxford City Council,Direct Services,Materials,D3021,01/06/2016,47985355_2,132.41,Revenue,20002387,AEBI SCHMIDT UK LTD
Oxford City Council,Law and Governance,General Stationery Supplies,D3301,26/04/2016,1027517_0,1848,Revenue,20002389,SHAW & SONS LTD
Oxford City Council,Direct Services,Sign Shop Materials,D3018,05/04/2016,60053377_0,2679.58,Revenue,20002393,SIGNPOST SOLUTIONS LTD T/AS SIGNFIX
Oxford City Council,Direct Services,Materials,D3021,21/06/2016,60057013_0,564,Revenue,20002395,SMITH & LOW LTD.
Oxford City Council,Direct Services,Business Rates/Council Tax,B1702,26/04/2016,46289639_1,6534,Revenue,20002401,SOUTH OXFORDSHIRE DISTRICT COUNCIL
Oxford City Council,Housing and Property,Electricity,B1501,26/04/2016,1023446_1,697.57,Revenue,20002402,SOUTHERN ELECTRIC PLC
Oxford City Council,HRA,Electricity,B1501,07/06/2016,1028781_1,719.41,Revenue,20002402,SOUTHERN ELECTRIC PLC
Oxford City Council,HRA,Gas,B1502,07/06/2016,1028873_1,1401.84,Revenue,20002402,SOUTHERN ELECTRIC PLC
Oxford City Council,Housing and Property,Electricity,B1501,26/04/2016,47013734_0,815.06,Revenue,20002402,SOUTHERN ELECTRIC PLC
Oxford City Council,Housing and Property,Electricity,B1501,26/04/2016,47013752_0,586.14,Revenue,20002402,SOUTHERN ELECTRIC PLC
Oxford City Council,Direct Services,Electricity,B1501,26/04/2016,47013809_0,1225.12,Revenue,20002402,SOUTHERN ELECTRIC PLC
Oxford City Council,Direct Services,Electricity,B1501,26/04/2016,47013897_1,661.36,Revenue,20002402,SOUTHERN ELECTRIC PLC
Oxford City Council,Direct Services,Electricity,B1501,26/04/2016,47013899_1,711.62,Revenue,20002402,SOUTHERN ELECTRIC PLC
Oxford City Council,HRA,Electricity,B1501,04/05/2016,47014032_0,991.99,Revenue,20002402,SOUTHERN ELECTRIC PLC
Oxford City Council,HRA,Electricity,B1501,04/05/2016,47014062_0,573.45,Revenue,20002402,SOUTHERN ELECTRIC PLC
Oxford City Council,HRA,Electricity,B1501,04/05/2016,47014065_1,651.92,Revenue,20002402,SOUTHERN ELECTRIC PLC
Oxford City Council,HRA,Electricity,B1501,04/05/2016,47014100_0,907.6,Revenue,20002402,SOUTHERN ELECTRIC PLC
Oxford City Council,HRA,Electricity,B1501,04/05/2016,47014102_1,1146.86,Revenue,20002402,SOUTHERN ELECTRIC PLC
Oxford City Council,HRA,Electricity,B1501,04/05/2016,47014109_0,1016.66,Revenue,20002402,SOUTHERN ELECTRIC PLC
Oxford City Council,HRA,Electricity,B1501,04/05/2016,47014201_0,2042.54,Revenue,20002402,SOUTHERN ELECTRIC PLC
Oxford City Council,HRA,Electricity,B1501,04/05/2016,47014213_0,834.51,Revenue,20002402,SOUTHERN ELECTRIC PLC
Oxford City Council,HRA,Electricity,B1501,04/05/2016,47014232_1,956.13,Revenue,20002402,SOUTHERN ELECTRIC PLC
Oxford City Council,HRA,Electricity,B1501,04/05/2016,47014234_1,1002.1,Revenue,20002402,SOUTHERN ELECTRIC PLC
Oxford City Council,HRA,Electricity,B1501,04/05/2016,47014265_0,730.23,Revenue,20002402,SOUTHERN ELECTRIC PLC
Oxford City Council,HRA,Electricity,B1501,04/05/2016,47014268_1,1495.12,Revenue,20002402,SOUTHERN ELECTRIC PLC
Oxford City Council,HRA,Electricity,B1501,04/05/2016,47014285_0,1017.35,Revenue,20002402,SOUTHERN ELECTRIC PLC
Oxford City Council,HRA,Electricity,B1501,04/05/2016,47014286_1,2098.7,Revenue,20002402,SOUTHERN ELECTRIC PLC
Oxford City Council,Housing and Property,Electricity,B1501,04/05/2016,47014318_1,1128.4,Revenue,20002402,SOUTHERN ELECTRIC PLC
Oxford City Council,Business Improvement,Electricity,B1501,04/05/2016,47014321_0,1397.4,Revenue,20002402,SOUTHERN ELECTRIC PLC
Oxford City Council,HRA,Electricity,B1501,04/05/2016,47014356_1,690.51,Revenue,20002402,SOUTHERN ELECTRIC PLC
Oxford City Council,HRA,Electricity,B1501,04/05/2016,47014380_1,586.97,Revenue,20002402,SOUTHERN ELECTRIC PLC
Oxford City Council,HRA,Electricity,B1501,04/05/2016,47014382_1,582.54,Revenue,20002402,SOUTHERN ELECTRIC PLC
Oxford City Council,HRA,Electricity,B1501,04/05/2016,47014384_1,955.49,Revenue,20002402,SOUTHERN ELECTRIC PLC
Oxford City Council,HRA,Electricity,B1501,04/05/2016,47014386_1,534.53,Revenue,20002402,SOUTHERN ELECTRIC PLC
Oxford City Council,HRA,Electricity,B1501,04/05/2016,47014392_1,811.92,Revenue,20002402,SOUTHERN ELECTRIC PLC
Oxford City Council,HRA,Electricity,B1501,04/05/2016,47014399_0,925.33,Revenue,20002402,SOUTHERN ELECTRIC PLC
Oxford City Council,HRA,Electricity,B1501,04/05/2016,47014401_0,963.09,Revenue,20002402,SOUTHERN ELECTRIC PLC
Oxford City Council,HRA,Electricity,B1501,04/05/2016,47014407_0,844.05,Revenue,20002402,SOUTHERN ELECTRIC PLC
Oxford City Council,Direct Services,Electricity,B1501,17/05/2016,47014453_0,1265.18,Revenue,20002402,SOUTHERN ELECTRIC PLC
Oxford City Council,HRA,Electricity,B1501,17/05/2016,47014513_0,560.4,Revenue,20002402,SOUTHERN ELECTRIC PLC
Oxford City Council,Direct Services,Electricity,B1501,17/05/2016,47014514_1,1684.32,Revenue,20002402,SOUTHERN ELECTRIC PLC
Oxford City Council,Direct Services,Electricity,B1501,17/05/2016,47014526_1,3124.68,Revenue,20002402,SOUTHERN ELECTRIC PLC
Oxford City Council,Direct Services,Electricity,B1501,17/05/2016,47014531_1,863.03,Revenue,20002402,SOUTHERN ELECTRIC PLC
Oxford City Council,HRA,Gas,B1502,17/05/2016,47014563_0,879.93,Revenue,20002402,SOUTHERN ELECTRIC PLC
Oxford City Council,Direct Services,Electricity,B1501,17/05/2016,47014565_1,1042.46,Revenue,20002402,SOUTHERN ELECTRIC PLC
Oxford City Council,Direct Services,Electricity,B1501,17/05/2016,47014566_0,706.6,Revenue,20002402,SOUTHERN ELECTRIC PLC
Oxford City Council,Housing and Property,Electricity,B1501,17/05/2016,47014568_1,1231.37,Revenue,20002402,SOUTHERN ELECTRIC PLC
Oxford City Council,Housing and Property,Electricity,B1501,17/05/2016,47014569_0,890.47,Revenue,20002402,SOUTHERN ELECTRIC PLC
Oxford City Council,Direct Services,Electricity,B1501,17/05/2016,47014570_0,549.6,Revenue,20002402,SOUTHERN ELECTRIC PLC
Oxford City Council,Direct Services,Electricity,B1501,17/05/2016,47014571_1,656.15,Revenue,20002402,SOUTHERN ELECTRIC PLC
Oxford City Council,Housing and Property,Electricity,B1501,17/05/2016,47014593_0,623.32,Revenue,20002402,SOUTHERN ELECTRIC PLC
Oxford City Council,Direct Services,Electricity,B1501,17/05/2016,47014614_0,1407.29,Revenue,20002402,SOUTHERN ELECTRIC PLC
Oxford City Council,Direct Services,Electricity,B1501,17/05/2016,47014616_0,1452.65,Revenue,20002402,SOUTHERN ELECTRIC PLC
Oxford City Council,Direct Services,Electricity,B1501,17/05/2016,47014618_0,1271.31,Revenue,20002402,SOUTHERN ELECTRIC PLC
Oxford City Council,Direct Services,Electricity,B1501,17/05/2016,47014620_0,1468.79,Revenue,20002402,SOUTHERN ELECTRIC PLC
Oxford City Council,Direct Services,Electricity,B1501,17/05/2016,47014623_1,1498.02,Revenue,20002402,SOUTHERN ELECTRIC PLC
Oxford City Council,HRA,Electricity,B1501,24/05/2016,47014653_1,511.6,Revenue,20002402,SOUTHERN ELECTRIC PLC
Oxford City Council,HRA,Electricity,B1501,24/05/2016,47014705_1,658.85,Revenue,20002402,SOUTHERN ELECTRIC PLC
Oxford City Council,HRA,Electricity,B1501,24/05/2016,47014784_1,685.33,Revenue,20002402,SOUTHERN ELECTRIC PLC
Oxford City Council,Direct Services,Electricity,B1501,14/06/2016,47014955_0,1146.96,Revenue,20002402,SOUTHERN ELECTRIC PLC
Oxford City Council,Direct Services,Electricity,B1501,28/06/2016,47014959_1,797.17,Revenue,20002402,SOUTHERN ELECTRIC PLC
Oxford City Council,Community Services,Electricity,B1501,28/06/2016,47014962_0,2226.5,Revenue,20002402,SOUTHERN ELECTRIC PLC
Oxford City Council,Community Services,Electricity,B1501,28/06/2016,47014975_1,952.5,Revenue,20002402,SOUTHERN ELECTRIC PLC
Oxford City Council,Community Services,Electricity,B1501,28/06/2016,47014976_0,595.57,Revenue,20002402,SOUTHERN ELECTRIC PLC
Oxford City Council,Direct Services,Electricity,B1501,28/06/2016,47014984_0,631.92,Revenue,20002402,SOUTHERN ELECTRIC PLC
Oxford City Council,Direct Services,Electricity,B1501,28/06/2016,47014986_0,679.79,Revenue,20002402,SOUTHERN ELECTRIC PLC
Oxford City Council,Housing and Property,Water & Sewerage Charges,B1830,19/04/2016,47013741_1,879.54,Revenue,20002423,THAMES WATER UTILITIES LTD
Oxford City Council,Direct Services,Water & Sewerage Charges,B1830,19/04/2016,47013743_1,943.93,Revenue,20002423,THAMES WATER UTILITIES LTD
Oxford City Council,HRA,Water & Sewerage Charges,B1830,26/04/2016,47013801_1,3869.17,Revenue,20002423,THAMES WATER UTILITIES LTD
Oxford City Council,HRA,Water & Sewerage Charges,B1830,26/04/2016,47013802_0,1912.41,Revenue,20002423,THAMES WATER UTILITIES LTD
Oxford City Council,Direct Services,Water & Sewerage Charges,B1830,26/04/2016,47013803_1,3975.36,Revenue,20002423,THAMES WATER UTILITIES LTD
Oxford City Council,Direct Services,Water & Sewerage Charges,B1830,26/04/2016,47013811_0,779.42,Revenue,20002423,THAMES WATER UTILITIES LTD
Oxford City Council,HRA,Water & Sewerage Charges,B1830,26/04/2016,47013812_1,2912.77,Revenue,20002423,THAMES WATER UTILITIES LTD
Oxford City Council,Direct Services,Water & Sewerage Charges,B1830,26/04/2016,47013815_0,4342.96,Revenue,20002423,THAMES WATER UTILITIES LTD
Oxford City Council,Direct Services,Water & Sewerage Charges,B1830,26/04/2016,47013816_1,813.54,Revenue,20002423,THAMES WATER UTILITIES LTD
Oxford City Council,Direct Services,Water & Sewerage Charges,B1830,26/04/2016,47013820_1,1139.86,Revenue,20002423,THAMES WATER UTILITIES LTD
Oxford City Council,Housing and Property,Water & Sewerage Charges,B1830,26/04/2016,47013823_0,1842.64,Revenue,20002423,THAMES WATER UTILITIES LTD
Oxford City Council,Direct Services,Water & Sewerage Charges,B1830,26/04/2016,47013902_0,511.26,Revenue,20002423,THAMES WATER UTILITIES LTD
Oxford City Council,HRA,Water & Sewerage Charges,B1830,26/04/2016,47014015_0,655.76,Revenue,20002423,THAMES WATER UTILITIES LTD
Oxford City Council,Housing and Property,Water & Sewerage Charges,B1830,04/05/2016,47014429_1,1525.02,Revenue,20002423,THAMES WATER UTILITIES LTD
Oxford City Council,Housing and Property,Water & Sewerage Charges,B1830,04/05/2016,47014430_0,622.18,Revenue,20002423,THAMES WATER UTILITIES LTD
Oxford City Council,HRA,Water & Sewerage Charges,B1830,04/05/2016,47014431_0,1125.04,Revenue,20002423,THAMES WATER UTILITIES LTD
Oxford City Council,HRA,Water & Sewerage Charges,B1830,04/05/2016,47014435_1,1445.87,Revenue,20002423,THAMES WATER UTILITIES LTD
Oxford City Council,Direct Services,Water & Sewerage Charges,B1830,17/05/2016,47014455_0,539.53,Revenue,20002423,THAMES WATER UTILITIES LTD
Oxford City Council,Direct Services,Water & Sewerage Charges,B1830,24/05/2016,47014633_1,786.55,Revenue,20002423,THAMES WATER UTILITIES LTD
Oxford City Council,HRA,Water & Sewerage Charges,B1830,24/05/2016,47014642_0,1415.6,Revenue,20002423,THAMES WATER UTILITIES LTD
Oxford City Council,Community Services,Water & Sewerage Charges,B1830,24/05/2016,47014647_1,1047.06,Revenue,20002423,THAMES WATER UTILITIES LTD
Oxford City Council,Housing and Property,Water & Sewerage Charges,B1830,01/06/2016,47014857_0,768.82,Revenue,20002423,THAMES WATER UTILITIES LTD
Oxford City Council,HRA,Water & Sewerage Charges,B1830,28/06/2016,47014982_0,3987.96,Revenue,20002423,THAMES WATER UTILITIES LTD
Oxford City Council,HRA,Water & Sewerage Charges,B1830,28/06/2016,47014989_1,1124.43,Revenue,20002423,THAMES WATER UTILITIES LTD
Oxford City Council,Direct Services,Water & Sewerage Charges,B1830,28/06/2016,47014994_1,578.53,Revenue,20002423,THAMES WATER UTILITIES LTD
Oxford City Council,Direct Services,Water & Sewerage Charges,B1830,28/06/2016,47014997_0,2242.51,Revenue,20002423,THAMES WATER UTILITIES LTD
Oxford City Council,HRA,Water & Sewerage Charges,B1830,28/06/2016,47015046_1,2910.11,Revenue,20002423,THAMES WATER UTILITIES LTD
Oxford City Council,HRA,Water & Sewerage Charges,B1830,28/06/2016,47015104_0,1009.95,Revenue,20002423,THAMES WATER UTILITIES LTD
Oxford City Council,Direct Services,Water & Sewerage Charges,B1830,28/06/2016,47015157_1,1203.85,Revenue,20002423,THAMES WATER UTILITIES LTD
Oxford City Council,Direct Services,Water & Sewerage Charges,B1830,28/06/2016,47015158_0,1147.68,Revenue,20002423,THAMES WATER UTILITIES LTD
Oxford City Council,Direct Services,Water & Sewerage Charges,B1830,28/06/2016,47015159_1,818.4,Revenue,20002423,THAMES WATER UTILITIES LTD
Oxford City Council,Direct Services,Water & Sewerage Charges,B1830,28/06/2016,47015175_0,4869.56,Revenue,20002423,THAMES WATER UTILITIES LTD
Oxford City Council,Direct Services,Tools,D3023,10/05/2016,1027593_1,610.25,Revenue,20002434,TOOLMASTER (OXFORD) LTD
Oxford City Council,Direct Services,Tools,D3023,10/05/2016,1028090_0,756.04,Revenue,20002434,TOOLMASTER (OXFORD) LTD
Oxford City Council,Direct Services,Materials,D3021,05/04/2016,60053622_1,700.1,Revenue,20002434,TOOLMASTER (OXFORD) LTD
Oxford City Council,Direct Services,Tools,D3023,12/04/2016,60053886_0,1414,Revenue,20002434,TOOLMASTER (OXFORD) LTD
Oxford City Council,Direct Services,Tools,D3023,12/04/2016,60053892_0,788,Revenue,20002434,TOOLMASTER (OXFORD) LTD
Oxford City Council,Direct Services,Materials,D3021,19/04/2016,60054251_1,726.7,Revenue,20002434,TOOLMASTER (OXFORD) LTD
Oxford City Council,Direct Services,Materials,D3021,26/04/2016,60054593_1,580.75,Revenue,20002434,TOOLMASTER (OXFORD) LTD
Oxford City Council,Direct Services,Materials,D3021,26/04/2016,60054594_0,680.22,Revenue,20002434,TOOLMASTER (OXFORD) LTD
Oxford City Council,Direct Services,Furniture & Equipment Purchase,D3001,17/05/2016,60055484_0,2100,Revenue,20002434,TOOLMASTER (OXFORD) LTD
Oxford City Council,Direct Services,Tools,D3023,24/05/2016,60055893_0,2728.47,Revenue,20002434,TOOLMASTER (OXFORD) LTD
Oxford City Council,Direct Services,Materials,D3021,01/06/2016,60056097_0,685.03,Revenue,20002434,TOOLMASTER (OXFORD) LTD
Oxford City Council,Direct Services,Materials,D3021,28/06/2016,60057270_1,653.09,Revenue,20002434,TOOLMASTER (OXFORD) LTD
Oxford City Council,Direct Services,Materials,D3021,17/05/2016,1027812_0,783,Revenue,20002435,P A TURNEY LTD
Oxford City Council,Direct Services,Materials,D3021,17/05/2016,1027923_0,583,Revenue,20002435,P A TURNEY LTD
Oxford City Council,Direct Services,Plant Purchase,C2002,05/04/2016,47984584_1,695,Revenue,20002435,P A TURNEY LTD
Oxford City Council,Direct Services,Main Contractor,Y021,05/04/2016,47984585_0,31342.5,Capital,20002435,P A TURNEY LTD
Oxford City Council,Direct Services,Main Contractor,Y021,05/04/2016,47984585_1,20,Capital,20002435,P A TURNEY LTD
Oxford City Council,Direct Services,Main Contractor,Y021,05/04/2016,47984585_2,55,Capital,20002435,P A TURNEY LTD
Oxford City Council,Direct Services,Main Contractor,Y021,24/05/2016,47985336_0,28370.25,Capital,20002435,P A TURNEY LTD
Oxford City Council,Direct Services,Main Contractor,Y021,14/06/2016,47985636_1,28370.25,Capital,20002435,P A TURNEY LTD
Oxford City Council,Direct Services,Furniture & Equipment Purchase,D3001,05/04/2016,60053577_0,620,Revenue,20002443,UNIVERSAL ACCESS & POWER PLAN
Oxford City Council,Community Services,Reactive Maintenance & Minor Repairs,B1101,05/04/2016,60053851_0,585.6,Revenue,20002443,UNIVERSAL ACCESS & POWER PLAN
Oxford City Council,Direct Services,Direct Services Supplies & Services,D3311,19/04/2016,60054256_0,1983.52,Revenue,20002443,UNIVERSAL ACCESS & POWER PLAN
Oxford City Council,Direct Services,Materials,D3021,10/05/2016,60055241_0,712,Revenue,20002443,UNIVERSAL ACCESS & POWER PLAN
Oxford City Council,Direct Services,Materials,D3021,10/05/2016,60055242_0,1384,Revenue,20002443,UNIVERSAL ACCESS & POWER PLAN
Oxford City Council,Direct Services,Tools,D3023,10/05/2016,60055245_1,2493.6,Revenue,20002443,UNIVERSAL ACCESS & POWER PLAN
Oxford City Council,Direct Services,Tools,D3023,10/05/2016,60055246_0,2493.6,Revenue,20002443,UNIVERSAL ACCESS & POWER PLAN
Oxford City Council,Direct Services,Materials,D3021,17/05/2016,60055661_1,4125,Revenue,20002443,UNIVERSAL ACCESS & POWER PLAN
Oxford City Council,Direct Services,Tools,D3023,17/05/2016,60055666_0,633.5,Revenue,20002443,UNIVERSAL ACCESS & POWER PLAN
Oxford City Council,Direct Services,Tools,D3023,17/05/2016,60055668_0,515,Revenue,20002443,UNIVERSAL ACCESS & POWER PLAN
Oxford City Council,Direct Services,Protective Clothing,D3201,01/06/2016,60056129_1,888.5,Revenue,20002443,UNIVERSAL ACCESS & POWER PLAN
Oxford City Council,Direct Services,Direct Services Supplies & Services,D3311,07/06/2016,60056302_0,1897.28,Revenue,20002443,UNIVERSAL ACCESS & POWER PLAN
Oxford City Council,Direct Services,Materials,D3021,21/06/2016,60056835_1,603.02,Revenue,20002443,UNIVERSAL ACCESS & POWER PLAN
Oxford City Council,Direct Services,Materials,D3021,05/04/2016,60053631_0,1549.77,Revenue,20002464,WOLSELEY UK LIMITED
Oxford City Council,Direct Services,Materials,D3021,12/04/2016,60053962_0,735.71,Revenue,20002464,WOLSELEY UK LIMITED
Oxford City Council,Direct Services,Materials,D3021,12/04/2016,60053963_1,1195.49,Revenue,20002464,WOLSELEY UK LIMITED
Oxford City Council,Direct Services,Materials,D3021,12/04/2016,60053983_0,1585.99,Revenue,20002464,WOLSELEY UK LIMITED
Oxford City Council,Direct Services,Materials,D3021,12/04/2016,60053986_1,558.74,Revenue,20002464,WOLSELEY UK LIMITED
Oxford City Council,Direct Services,Materials,D3021,19/04/2016,60054260_0,847.86,Revenue,20002464,WOLSELEY UK LIMITED
Oxford City Council,Direct Services,Materials,D3021,19/04/2016,60054261_1,1834.11,Revenue,20002464,WOLSELEY UK LIMITED
Oxford City Council,Direct Services,Materials,D3021,19/04/2016,60054262_0,1752.79,Revenue,20002464,WOLSELEY UK LIMITED
Oxford City Council,Direct Services,Materials,D3021,19/04/2016,60054266_0,1677,Revenue,20002464,WOLSELEY UK LIMITED
Oxford City Council,Direct Services,Materials,D3021,19/04/2016,60054267_1,575.06,Revenue,20002464,WOLSELEY UK LIMITED
Oxford City Council,Direct Services,Materials,D3021,19/04/2016,60054291_1,607.45,Revenue,20002464,WOLSELEY UK LIMITED
Oxford City Council,Direct Services,Materials,D3021,26/04/2016,60054601_1,943,Revenue,20002464,WOLSELEY UK LIMITED
Oxford City Council,Direct Services,Materials,D3021,26/04/2016,60054603_1,802.83,Revenue,20002464,WOLSELEY UK LIMITED
Oxford City Council,Direct Services,Materials,D3021,04/05/2016,60054909_1,873.82,Revenue,20002464,WOLSELEY UK LIMITED
Oxford City Council,Direct Services,Materials,D3021,04/05/2016,60054910_0,2445.81,Revenue,20002464,WOLSELEY UK LIMITED
Oxford City Council,Direct Services,Materials,D3021,04/05/2016,60054911_1,788.4,Revenue,20002464,WOLSELEY UK LIMITED
Oxford City Council,Direct Services,Direct Services Supplies & Services,D3311,04/05/2016,60054912_0,706.5,Revenue,20002464,WOLSELEY UK LIMITED
Oxford City Council,Direct Services,Materials,D3021,17/05/2016,60055379_1,736.94,Revenue,20002464,WOLSELEY UK LIMITED
Oxford City Council,Direct Services,Materials,D3021,17/05/2016,60055381_1,581.28,Revenue,20002464,WOLSELEY UK LIMITED
Oxford City Council,Direct Services,Materials,D3021,17/05/2016,60055383_1,1197.89,Revenue,20002464,WOLSELEY UK LIMITED
Oxford City Council,Direct Services,Materials,D3021,17/05/2016,60055384_0,1180.6,Revenue,20002464,WOLSELEY UK LIMITED
Oxford City Council,Direct Services,Materials,D3021,17/05/2016,60055459_0,754.92,Revenue,20002464,WOLSELEY UK LIMITED
Oxford City Council,Direct Services,Materials,D3021,17/05/2016,60055460_1,567.34,Revenue,20002464,WOLSELEY UK LIMITED
Oxford City Council,Direct Services,Materials,D3021,24/05/2016,60055798_0,515.1,Revenue,20002464,WOLSELEY UK LIMITED
Oxford City Council,Direct Services,Materials,D3021,14/06/2016,60056507_1,650.44,Revenue,20002464,WOLSELEY UK LIMITED
Oxford City Council,Direct Services,Materials,D3021,14/06/2016,60056513_1,678.5,Revenue,20002464,WOLSELEY UK LIMITED
Oxford City Council,Direct Services,Materials,D3021,14/06/2016,60056516_0,783.78,Revenue,20002464,WOLSELEY UK LIMITED
Oxford City Council,Direct Services,Materials,D3021,14/06/2016,60056518_0,1350,Revenue,20002464,WOLSELEY UK LIMITED
Oxford City Council,Direct Services,Materials,D3021,14/06/2016,60056519_1,604.8,Revenue,20002464,WOLSELEY UK LIMITED
Oxford City Council,Direct Services,Direct Services Supplies & Services,D3311,14/06/2016,60056550_1,815.75,Revenue,20002464,WOLSELEY UK LIMITED
Oxford City Council,Direct Services,Direct Services Supplies & Services,D3311,28/06/2016,60057148_1,735.12,Revenue,20002464,WOLSELEY UK LIMITED
Oxford City Council,Direct Services,Direct Services Supplies & Services,D3311,28/06/2016,60057149_0,735.12,Revenue,20002464,WOLSELEY UK LIMITED
Oxford City Council,Direct Services,Materials,D3021,28/06/2016,60057152_1,767.55,Revenue,20002464,WOLSELEY UK LIMITED
Oxford City Council,Direct Services,Materials,D3021,28/06/2016,60057155_0,839.74,Revenue,20002464,WOLSELEY UK LIMITED
Oxford City Council,HRA,Environmental Open Space Improvements,B1003,05/04/2016,60053410_1,3368.48,Revenue,20002466,WYBONE LTD
Oxford City Council,HRA,Environmental Open Space Improvements,B1003,05/04/2016,60053411_0,2134.35,Revenue,20002466,WYBONE LTD
Oxford City Council,HRA,Environmental Open Space Improvements,B1003,05/04/2016,60053412_1,1684.24,Revenue,20002466,WYBONE LTD
Oxford City Council,Direct Services,Supply & Collection Of Litter Bins,B1171,05/04/2016,60053413_0,2065.13,Revenue,20002466,WYBONE LTD
Oxford City Council,Direct Services,Materials,D3021,10/05/2016,1027946_0,1389.04,Revenue,20002467,AWBS LTD
Oxford City Council,Direct Services,Materials,D3021,01/06/2016,1028443_0,1110,Revenue,20002467,AWBS LTD
Oxford City Council,Direct Services,Materials,D3021,28/06/2016,1029406_0,950,Revenue,20002467,AWBS LTD
Oxford City Council,Regeneration and Major Projects Team,Main Contractor,Y021,07/06/2016,48021537_1,66390.1,Capital,20002494,E W BEARD LTD
Oxford City Council,Regeneration and Major Projects Team,Main Contractor,Y021,28/06/2016,48021546_1,66390.1,Capital,20002494,E W BEARD LTD
Oxford City Council,General Fund,VAT Pro Forma Invoices,Z110205,28/06/2016,48021546_2,13278.02,Revenue,20002494,E W BEARD LTD
Oxford City Council,Housing and Property,Reactive Maintenance & Minor Repairs,B1101,10/05/2016,1028213_0,748,Revenue,20002507,THE CHILTERN LIFT CO LTD
Oxford City Council,Housing and Property,Services Maintenance (Planned),B1103,10/05/2016,1027840_0,509,Revenue,20002568,PYROTEC SERVICES LTD
Oxford City Council,Housing and Property,Services Maintenance (Planned),B1103,10/05/2016,1027842_0,989,Revenue,20002568,PYROTEC SERVICES LTD
Oxford City Council,Community Services,Furniture & Equipment Purchase,D3001,07/06/2016,1028975_0,2440,Revenue,20002568,PYROTEC SERVICES LTD
Oxford City Council,HRA,Fire Alarms and Emergency Lighting,B1241,05/04/2016,46289377_1,6929.84,Revenue,20002568,PYROTEC SERVICES LTD
Oxford City Council,Housing and Property,Reactive Maintenance & Minor Repairs,B1101,05/04/2016,46289377_10,40,Revenue,20002568,PYROTEC SERVICES LTD
Oxford City Council,HRA,Main Contractor,Y021,05/04/2016,46289377_11,10160,Capital,20002568,PYROTEC SERVICES LTD
Oxford City Council,Direct Services,Fire Alarms and Emergency Lighting,B1241,05/04/2016,46289377_2,243.75,Revenue,20002568,PYROTEC SERVICES LTD
Oxford City Council,Direct Services,Fire Alarms and Emergency Lighting,B1241,05/04/2016,46289377_3,281.25,Revenue,20002568,PYROTEC SERVICES LTD
Oxford City Council,Housing and Property,Fire Alarms and Emergency Lighting,B1241,05/04/2016,46289377_4,350,Revenue,20002568,PYROTEC SERVICES LTD
Oxford City Council,Housing and Property,Fire Alarms and Emergency Lighting,B1241,05/04/2016,46289377_5,137.49,Revenue,20002568,PYROTEC SERVICES LTD
Oxford City Council,Housing and Property,Fire Alarms and Emergency Lighting,B1241,05/04/2016,46289377_6,3998.05,Revenue,20002568,PYROTEC SERVICES LTD
Oxford City Council,Housing and Property,Fire Alarms and Emergency Lighting,B1241,05/04/2016,46289377_7,180,Revenue,20002568,PYROTEC SERVICES LTD
Oxford City Council,Direct Services,Reactive Maintenance & Minor Repairs,B1101,05/04/2016,46289377_8,1242.99,Revenue,20002568,PYROTEC SERVICES LTD
Oxford City Council,Housing and Property,Reactive Maintenance & Minor Repairs,B1101,05/04/2016,46289377_9,8935,Revenue,20002568,PYROTEC SERVICES LTD
Oxford City Council,HRA,Fire Alarms and Emergency Lighting,B1241,01/06/2016,46290021_1,12454.74,Revenue,20002568,PYROTEC SERVICES LTD
Oxford City Council,Housing and Property,Fire Alarms and Emergency Lighting,B1241,01/06/2016,46290021_10,213.7,Revenue,20002568,PYROTEC SERVICES LTD
Oxford City Council,Housing and Property,Fire Alarms and Emergency Lighting,B1241,01/06/2016,46290021_2,889.6,Revenue,20002568,PYROTEC SERVICES LTD
Oxford City Council,Direct Services,Fire Alarms and Emergency Lighting,B1241,01/06/2016,46290021_3,185.01,Revenue,20002568,PYROTEC SERVICES LTD
Oxford City Council,Direct Services,Fire Alarms and Emergency Lighting,B1241,01/06/2016,46290021_4,43.74,Revenue,20002568,PYROTEC SERVICES LTD
Oxford City Council,Direct Services,Fire Alarms and Emergency Lighting,B1241,01/06/2016,46290021_5,150,Revenue,20002568,PYROTEC SERVICES LTD
Oxford City Council,Housing and Property,Fire Alarms and Emergency Lighting,B1241,01/06/2016,46290021_6,432.49,Revenue,20002568,PYROTEC SERVICES LTD
Oxford City Council,HRA,Fire Alarms and Emergency Lighting,B1241,01/06/2016,46290021_7,62.5,Revenue,20002568,PYROTEC SERVICES LTD
Oxford City Council,Housing and Property,Fire Alarms and Emergency Lighting,B1241,01/06/2016,46290021_8,1291.3,Revenue,20002568,PYROTEC SERVICES LTD
Oxford City Council,Housing and Property,Fire Alarms and Emergency Lighting,B1241,01/06/2016,46290021_9,19.65,Revenue,20002568,PYROTEC SERVICES LTD
Oxford City Council,HRA,Fire Alarms and Emergency Lighting,B1241,14/06/2016,46290158_1,13575.82,Revenue,20002568,PYROTEC SERVICES LTD
Oxford City Council,Housing and Property,Fire Alarms and Emergency Lighting,B1241,14/06/2016,46290158_10,1149.99,Revenue,20002568,PYROTEC SERVICES LTD
Oxford City Council,Housing and Property,Fire Alarms and Emergency Lighting,B1241,14/06/2016,46290158_2,1084.8,Revenue,20002568,PYROTEC SERVICES LTD
Oxford City Council,Direct Services,Fire Alarms and Emergency Lighting,B1241,14/06/2016,46290158_3,255.4,Revenue,20002568,PYROTEC SERVICES LTD
Oxford City Council,Housing and Property,Fire Alarms and Emergency Lighting,B1241,14/06/2016,46290158_4,237.5,Revenue,20002568,PYROTEC SERVICES LTD
Oxford City Council,HRA,Fire Alarms and Emergency Lighting,B1241,14/06/2016,46290158_5,392.7,Revenue,20002568,PYROTEC SERVICES LTD
Oxford City Council,Housing and Property,Fire Alarms and Emergency Lighting,B1241,14/06/2016,46290158_6,1960,Revenue,20002568,PYROTEC SERVICES LTD
Oxford City Council,Housing and Property,Fire Alarms and Emergency Lighting,B1241,14/06/2016,46290158_7,50,Revenue,20002568,PYROTEC SERVICES LTD
Oxford City Council,Housing and Property,Fire Alarms and Emergency Lighting,B1241,14/06/2016,46290158_8,200,Revenue,20002568,PYROTEC SERVICES LTD
Oxford City Council,Direct Services,Fire Alarms and Emergency Lighting,B1241,14/06/2016,46290158_9,75,Revenue,20002568,PYROTEC SERVICES LTD
Oxford City Council,HRA,Fire Alarms and Emergency Lighting,B1241,28/06/2016,46290248_1,7928.89,Revenue,20002568,PYROTEC SERVICES LTD
Oxford City Council,Housing and Property,Fire Alarms and Emergency Lighting,B1241,28/06/2016,46290248_10,586.8,Revenue,20002568,PYROTEC SERVICES LTD
Oxford City Council,Housing and Property,Fire Alarms and Emergency Lighting,B1241,28/06/2016,46290248_11,40,Revenue,20002568,PYROTEC SERVICES LTD
Oxford City Council,Housing and Property,Fire Alarms and Emergency Lighting,B1241,28/06/2016,46290248_12,296.85,Revenue,20002568,PYROTEC SERVICES LTD
Oxford City Council,Housing and Property,Fire Alarms and Emergency Lighting,B1241,28/06/2016,46290248_2,350,Revenue,20002568,PYROTEC SERVICES LTD
Oxford City Council,Housing and Property,Fire Alarms and Emergency Lighting,B1241,28/06/2016,46290248_3,241.34,Revenue,20002568,PYROTEC SERVICES LTD
Oxford City Council,Housing and Property,Fire Alarms and Emergency Lighting,B1241,28/06/2016,46290248_4,4322.71,Revenue,20002568,PYROTEC SERVICES LTD
Oxford City Council,Direct Services,Fire Alarms and Emergency Lighting,B1241,28/06/2016,46290248_5,1554.9,Revenue,20002568,PYROTEC SERVICES LTD
Oxford City Council,Housing and Property,Fire Alarms and Emergency Lighting,B1241,28/06/2016,46290248_6,180,Revenue,20002568,PYROTEC SERVICES LTD
Oxford City Council,Direct Services,Fire Alarms and Emergency Lighting,B1241,28/06/2016,46290248_7,292.44,Revenue,20002568,PYROTEC SERVICES LTD
Oxford City Council,Direct Services,Fire Alarms and Emergency Lighting,B1241,28/06/2016,46290248_8,150,Revenue,20002568,PYROTEC SERVICES LTD
Oxford City Council,Direct Services,Fire Alarms and Emergency Lighting,B1241,28/06/2016,46290248_9,458.41,Revenue,20002568,PYROTEC SERVICES LTD
Oxford City Council,Suspense,Materials,D3021,17/05/2016,60055563_1,577,Revenue,20002653,H TUCKWELL & SONS LTD
Oxford City Council,Direct Services,Category 'B' Stores,D3022,21/06/2016,60056932_0,553.92,Revenue,20002653,H TUCKWELL & SONS LTD
Oxford City Council,Direct Services,Materials,D3021,12/04/2016,60053950_0,581.5,Revenue,20002679,LOCKS & LATCHES (STAFFORD) LTD
Oxford City Council,Direct Services,Materials,D3021,19/04/2016,60054347_0,700.4,Revenue,20002679,LOCKS & LATCHES (STAFFORD) LTD
Oxford City Council,Direct Services,Materials,D3021,26/04/2016,60054503_1,898.2,Revenue,20002679,LOCKS & LATCHES (STAFFORD) LTD
Oxford City Council,Direct Services,Materials,D3021,24/05/2016,60055691_1,861.2,Revenue,20002679,LOCKS & LATCHES (STAFFORD) LTD
Oxford City Council,Direct Services,Materials,D3021,24/05/2016,60055692_0,650.4,Revenue,20002679,LOCKS & LATCHES (STAFFORD) LTD
Oxford City Council,Direct Services,Protective Clothing,D3201,05/04/2016,60053381_0,3287.35,Revenue,20002680,OXFORD SAFETY SUPPLIES
Oxford City Council,Direct Services,Protective Clothing,D3201,05/04/2016,60053381_1,59.5,Revenue,20002680,OXFORD SAFETY SUPPLIES
Oxford City Council,Direct Services,Materials,D3021,05/04/2016,60053568_2,1232.7,Revenue,20002680,OXFORD SAFETY SUPPLIES
Oxford City Council,Direct Services,Materials,D3021,12/04/2016,60053952_0,612.67,Revenue,20002680,OXFORD SAFETY SUPPLIES
Oxford City Council,Direct Services,Materials,D3021,26/04/2016,60054507_1,1359.4,Revenue,20002680,OXFORD SAFETY SUPPLIES
Oxford City Council,Direct Services,Materials,D3021,26/04/2016,60054725_0,1096.4,Revenue,20002680,OXFORD SAFETY SUPPLIES
Oxford City Council,Direct Services,Protective Clothing,D3201,04/05/2016,60054944_0,671.7,Revenue,20002680,OXFORD SAFETY SUPPLIES
Oxford City Council,Direct Services,Materials,D3021,10/05/2016,60055123_1,700.7,Revenue,20002680,OXFORD SAFETY SUPPLIES
Oxford City Council,Direct Services,Materials,D3021,10/05/2016,60055215_0,1650.4,Revenue,20002680,OXFORD SAFETY SUPPLIES
Oxford City Council,Direct Services,Materials,D3021,01/06/2016,60055986_0,708.7,Revenue,20002680,OXFORD SAFETY SUPPLIES
Oxford City Council,Direct Services,Materials,D3021,01/06/2016,60055990_0,722.45,Revenue,20002680,OXFORD SAFETY SUPPLIES
Oxford City Council,Direct Services,Materials,D3021,01/06/2016,60055992_0,1065.75,Revenue,20002680,OXFORD SAFETY SUPPLIES
Oxford City Council,Direct Services,Materials,D3021,07/06/2016,60056271_1,860.1,Revenue,20002680,OXFORD SAFETY SUPPLIES
Oxford City Council,Direct Services,Materials,D3021,21/06/2016,60056805_1,653.6,Revenue,20002680,OXFORD SAFETY SUPPLIES
Oxford City Council,Direct Services,Materials,D3021,21/06/2016,60056806_0,617.95,Revenue,20002680,OXFORD SAFETY SUPPLIES
Oxford City Council,Direct Services,Materials,D3021,21/06/2016,60056807_1,979.6,Revenue,20002680,OXFORD SAFETY SUPPLIES
Oxford City Council,Direct Services,Materials,D3021,21/06/2016,60056812_0,663.25,Revenue,20002680,OXFORD SAFETY SUPPLIES
Oxford City Council,Direct Services,Materials,D3021,21/06/2016,60056814_1,1994.05,Revenue,20002680,OXFORD SAFETY SUPPLIES
Oxford City Council,Community Services,General Contracted Services,D3401,28/06/2016,1029470_0,557.36,Revenue,20002683,INITIAL TEXTILE SERVICES (OXF)
Oxford City Council,Direct Services,Sign Shop Materials,D3018,05/04/2016,60053526_1,2873.88,Revenue,20002698,SPANDEX  LTD.  (UK)  COLLECTIONS
Oxford City Council,Housing and Property,Temporary Bureau Staffing,A0108,26/04/2016,1027925_0,851,Revenue,20002820,BADENOCH & CLARK LTD
Oxford City Council,Financial Services,Consultants Fees,D3411,24/05/2016,1028294_0,1600,Revenue,20002820,BADENOCH & CLARK LTD
Oxford City Council,Financial Services,Consultants Fees,D3411,07/06/2016,1028409_0,1280,Revenue,20002820,BADENOCH & CLARK LTD
Oxford City Council,Financial Services,Consultants Fees,D3411,07/06/2016,1028546_0,1600,Revenue,20002820,BADENOCH & CLARK LTD
Oxford City Council,Financial Services,Consultants Fees,D3411,01/06/2016,1028547_0,1600,Revenue,20002820,BADENOCH & CLARK LTD
Oxford City Council,Financial Services,Consultants Fees,D3411,24/05/2016,1028644_0,1600,Revenue,20002820,BADENOCH & CLARK LTD
Oxford City Council,Financial Services,Consultants Fees,D3411,01/06/2016,1028645_0,1600,Revenue,20002820,BADENOCH & CLARK LTD
Oxford City Council,Financial Services,Consultants Fees,D3411,01/06/2016,1028646_0,1280,Revenue,20002820,BADENOCH & CLARK LTD
Oxford City Council,Financial Services,Consultants Fees,D3411,01/06/2016,1028647_0,1280,Revenue,20002820,BADENOCH & CLARK LTD
Oxford City Council,Financial Services,Consultants Fees,D3411,24/05/2016,1028648_0,1600,Revenue,20002820,BADENOCH & CLARK LTD
Oxford City Council,Financial Services,Consultants Fees,D3411,21/06/2016,1028694_0,1600,Revenue,20002820,BADENOCH & CLARK LTD
Oxford City Council,Housing and Property,Temporary Bureau Staffing,A0108,28/06/2016,1028696_1,851,Revenue,20002820,BADENOCH & CLARK LTD
Oxford City Council,Housing and Property,Temporary Bureau Staffing,A0108,28/06/2016,1028697_0,851,Revenue,20002820,BADENOCH & CLARK LTD
Oxford City Council,Financial Services,Consultants Fees,D3411,21/06/2016,1028927_0,640,Revenue,20002820,BADENOCH & CLARK LTD
Oxford City Council,Financial Services,Consultants Fees,D3411,28/06/2016,1029037_0,1280,Revenue,20002820,BADENOCH & CLARK LTD
Oxford City Council,Planning & Regulatory,Consultants Fees,D3411,19/04/2016,1027726_0,30000,Revenue,20002893,CHERWELL DISTRICT COUNCIL
Oxford City Council,Direct Services,Protective Clothing,D3201,24/05/2016,1028567_0,635.93,Revenue,20002919,HONEY BROTHERS LTD
Oxford City Council,Direct Services,Postage & Carriage,D3501,24/05/2016,1028567_1,7.95,Revenue,20002919,HONEY BROTHERS LTD
Oxford City Council,Environmental Sustainability,Other Contributions,Y995,04/05/2016,48021522_1,350000,Capital,20002929,ENVIRONMENT AGENCY
Oxford City Council,Direct Services,General Contracted Services,D3401,10/05/2016,60055140_0,1881,Revenue,20002929,ENVIRONMENT AGENCY
Oxford City Council,Law and Governance,Consultants Fees,D3411,05/04/2016,1027023_0,2709.47,Revenue,20002930,OXFORDSHIRE COUNTY COUNCIL
Oxford City Council,HRA,Other Miscellaneous Expenses,D3811,05/04/2016,1027046_1,10000,Revenue,20002930,OXFORDSHIRE COUNTY COUNCIL
Oxford City Council,Business Improvement,General Contracted Services,D3401,05/04/2016,1027241_1,20116.2,Revenue,20002930,OXFORDSHIRE COUNTY COUNCIL
Oxford City Council,Law and Governance,General Stationery Supplies,D3301,05/04/2016,1027409_0,3130.5,Revenue,20002930,OXFORDSHIRE COUNTY COUNCIL
Oxford City Council,Business Improvement,General Contracted Services,D3401,12/04/2016,1027441_1,8301.38,Revenue,20002930,OXFORDSHIRE COUNTY COUNCIL
Oxford City Council,Business Improvement,General Contracted Services,D3401,12/04/2016,1027442_1,17556.72,Revenue,20002930,OXFORDSHIRE COUNTY COUNCIL
Oxford City Council,Planning & Regulatory,Subscriptions,D3703,10/05/2016,1027531_1,2665,Revenue,20002930,OXFORDSHIRE COUNTY COUNCIL
Oxford City Council,Community Services,Instructors & Coaching Fees,D3413,12/04/2016,1027549_0,10000,Revenue,20002930,OXFORDSHIRE COUNTY COUNCIL
Oxford City Council,Business Improvement,Contract Printing (External),D3303,06/05/2016,1027886_0,7075,Revenue,20002930,OXFORDSHIRE COUNTY COUNCIL
Oxford City Council,Business Improvement,Contract Printing (External),D3303,03/06/2016,1028494_0,4191,Revenue,20002930,OXFORDSHIRE COUNTY COUNCIL
Oxford City Council,Housing and Property,Grants,D3701,28/06/2016,1029108_1,42992,Revenue,20002930,OXFORDSHIRE COUNTY COUNCIL
Oxford City Council,Community Services,Contributions,D3702,05/04/2016,46289290_1,2060.83,Revenue,20002930,OXFORDSHIRE COUNTY COUNCIL
Oxford City Council,Community Services,Contributions,D3702,05/04/2016,46289291_1,1519.83,Revenue,20002930,OXFORDSHIRE COUNTY COUNCIL
Oxford City Council,HRA,Miscellaneous Fees,Y173,17/05/2016,48021525_1,6787.03,Capital,20002930,OXFORDSHIRE COUNTY COUNCIL
Oxford City Council,Direct Services,Software Rental,D3512,05/04/2016,60053688_0,8350,Revenue,20002930,OXFORDSHIRE COUNTY COUNCIL
Oxford City Council,Direct Services,Tipping Charges,D3421,19/04/2016,60054325_0,76135.79,Revenue,20002930,OXFORDSHIRE COUNTY COUNCIL
Oxford City Council,Direct Services,Tipping Charges,D3421,19/04/2016,60054326_1,70956.97,Revenue,20002930,OXFORDSHIRE COUNTY COUNCIL
Oxford City Council,Direct Services,Tipping Charges,D3421,19/04/2016,60054388_1,64612.92,Revenue,20002930,OXFORDSHIRE COUNTY COUNCIL
Oxford City Council,Housing and Property,Engineering Internal Works,B1302,14/06/2016,60056631_0,4166.67,Revenue,20002930,OXFORDSHIRE COUNTY COUNCIL
Oxford City Council,Law and Governance,General Contracted Services,D3401,17/05/2016,1028465_0,2605,Revenue,20002955,PORTAKABIN LIMITED
Oxford City Council,Law and Governance,Books & Publications,D3302,19/04/2016,46289509_1,7546,Revenue,20002981,THOMSON REUTERS
Oxford City Council,Direct Services,Furniture & Equipment Purchase,D3001,14/06/2016,1028718_0,508,Revenue,20002998,JBL
Oxford City Council,Community Services,Furniture & Equipment Purchase,D3001,14/06/2016,1028719_0,1016,Revenue,20002998,JBL
Oxford City Council,Direct Services,Repairs & Refurbishment,B1107,05/04/2016,60053566_1,3110.9,Revenue,20002998,JBL
Oxford City Council,Direct Services,Reactive Maintenance & Minor Repairs,B1101,17/05/2016,60055402_0,1534,Revenue,20002998,JBL
Oxford City Council,Direct Services,Advertising & Publicity,D3802,21/06/2016,1029390_0,990,Revenue,20003020,BEMROSE BOOTH LTD
Oxford City Council,Assistant Chief Executive,General Contracted Services,D3401,10/05/2016,1028246_1,570,Revenue,20003025,PETE RUSSELL
Oxford City Council,Direct Services,Materials,D3021,12/04/2016,60053883_1,767.62,Revenue,20003094,YARNTON NURSERIES LLP
Oxford City Council,Direct Services,Materials,D3021,17/05/2016,47985110_0,865,Revenue,20003118,TRAILPARTS
Oxford City Council,Direct Services,Materials,D3021,17/05/2016,47985110_1,35,Revenue,20003118,TRAILPARTS
Oxford City Council,Direct Services,Business Rates/Council Tax,B1702,26/04/2016,46289635_1,2855.6,Revenue,20003139,VALE OF WHITE HORSE DISTRICT DC BUSINESS RATES ACCOUNT
Oxford City Council,Organisational Development,Online Services,D3510,14/06/2016,1029103_1,5190.36,Revenue,20003171,WOLTERS KLUWER (UK) LIMITED
Oxford City Council,Community Services,Contract Cleaning,B1602,05/04/2016,1027244_0,759.21,Revenue,20003172,RENTOKIL INITIAL SERVICES NO1
Oxford City Council,Community Services,Contract Cleaning,B1602,01/06/2016,1028807_0,557.36,Revenue,20003172,RENTOKIL INITIAL SERVICES NO1
Oxford City Council,Community Services,Contract Cleaning,B1602,21/06/2016,1029388_0,756.09,Revenue,20003172,RENTOKIL INITIAL SERVICES NO1
Oxford City Council,Financial Services,Consultants Fees,D3411,07/06/2016,1028479_1,1855.4,Revenue,20003176,SLOUGH BOROUGH COUNCIL
Oxford City Council,Business Improvement,Software Maintenance/Running Costs,D3513,14/06/2016,1029191_0,775.36,Revenue,20003193,ORDNANCE SURVEY
Oxford City Council,Direct Services,Materials,D3021,05/04/2016,60053582_1,1756.61,Revenue,20003233,AKW MEDICARE LIMITED
Oxford City Council,Direct Services,Materials,D3021,12/04/2016,60054075_1,1689.38,Revenue,20003233,AKW MEDICARE LIMITED
Oxford City Council,Direct Services,Materials,D3021,26/04/2016,60054519_1,689.36,Revenue,20003233,AKW MEDICARE LIMITED
Oxford City Council,Direct Services,Materials,D3021,04/05/2016,60054913_1,1495.64,Revenue,20003233,AKW MEDICARE LIMITED
Oxford City Council,Direct Services,Materials,D3021,17/05/2016,60055312_1,601.76,Revenue,20003233,AKW MEDICARE LIMITED
Oxford City Council,Direct Services,Materials,D3021,17/05/2016,60055410_1,1646.01,Revenue,20003233,AKW MEDICARE LIMITED
Oxford City Council,Direct Services,Materials,D3021,24/05/2016,60055741_0,2491.67,Revenue,20003233,AKW MEDICARE LIMITED
Oxford City Council,Direct Services,Materials,D3021,01/06/2016,60055950_0,889.71,Revenue,20003233,AKW MEDICARE LIMITED
Oxford City Council,Direct Services,Materials,D3021,14/06/2016,60056580_1,1702.82,Revenue,20003233,AKW MEDICARE LIMITED
Oxford City Council,Direct Services,Materials,D3021,21/06/2016,60056818_1,1079,Revenue,20003233,AKW MEDICARE LIMITED
Oxford City Council,Law and Governance,Equipment Hire Charges,D3006,24/05/2016,1028441_0,815,Revenue,20003374,CITY AUDIO VISUAL
Oxford City Council,Organisational Development,Conferences/Seminars,A0636,21/06/2016,1029147_0,555,Revenue,20003374,CITY AUDIO VISUAL
Oxford City Council,Direct Services,Street Furniture,B1014,01/06/2016,60056069_0,3450,Revenue,20003415,TAYLORMADE CASTINGS LTD
Oxford City Council,Direct Services,Street Furniture,B1014,14/06/2016,60056658_1,3775,Revenue,20003415,TAYLORMADE CASTINGS LTD
Oxford City Council,Housing and Property,Consultants Fees,D3411,05/04/2016,1027301_0,1416.67,Revenue,20003549,BOSSOMS BOATYARD LTD
Oxford City Council,Housing and Property,Consultants Fees,D3411,07/06/2016,1028901_0,1416.67,Revenue,20003549,BOSSOMS BOATYARD LTD
Oxford City Council,Suspense,Other Insurances,D3801,04/05/2016,1027993_1,49451,Revenue,20003579,MUNICIPAL MUTUAL INSURANCE LTD
Oxford City Council,Direct Services,Plants,D3025,14/06/2016,1029141_0,1571.4,Revenue,20003592,BARCHAM TREES PLC
Oxford City Council,Housing and Property,Services Maintenance (Planned),B1103,26/04/2016,1027702_0,230,Revenue,20003609,PTSG ELECTRICAL SEVICES LTD
Oxford City Council,Housing and Property,Services Maintenance (Planned),B1103,26/04/2016,1027702_1,1018,Revenue,20003609,PTSG ELECTRICAL SEVICES LTD
Oxford City Council,Housing and Property,Services Maintenance (Planned),B1103,26/04/2016,1027702_2,138,Revenue,20003609,PTSG ELECTRICAL SEVICES LTD
Oxford City Council,Community Services,General Contracted Services,D3401,04/05/2016,1028089_0,24496.7,Revenue,20003616,THAMES VALLEY POLICE AUTHORITY
Oxford City Council,Direct Services,Postage & Carriage,D3501,26/04/2016,1027906_1,1792,Revenue,20003730,ROYAL MAIL
Oxford City Council,Law and Governance,Postage & Carriage,D3501,14/06/2016,1029111_1,1580.4,Revenue,20003730,ROYAL MAIL
Oxford City Council,Law and Governance,Contract Printing (External),D3303,24/05/2016,1028427_0,9163.13,Revenue,20003799,LYNX DPM LIMITED
Oxford City Council,Law and Governance,Contract Printing (External),D3303,24/05/2016,1028428_0,9764.55,Revenue,20003799,LYNX DPM LIMITED
Oxford City Council,Direct Services,Materials,D3021,17/05/2016,47985196_0,263,Revenue,20003882,SPALDINGS (UK) LTD
Oxford City Council,Direct Services,Materials,D3021,17/05/2016,47985196_1,260,Revenue,20003882,SPALDINGS (UK) LTD
Oxford City Council,Direct Services,Materials,D3021,17/05/2016,47985196_2,65,Revenue,20003882,SPALDINGS (UK) LTD
Oxford City Council,Planning & Regulatory,Contract Printing (External),D3303,24/05/2016,1028298_0,2189,Revenue,20003983,LOVELL JOHNS
Oxford City Council,Law and Governance,Postage & Carriage,D3501,26/04/2016,1027696_0,1619.3,Revenue,20004216,DX NETWORK SERVICES LIMITED
Oxford City Council,Direct Services,Refuse Containers,D3004,12/04/2016,60053879_1,10742.8,Revenue,20004221,SSI SCHAEFER LTD
Oxford City Council,Direct Services,Protective Clothing,D3201,19/04/2016,60054330_1,2060,Revenue,20004221,SSI SCHAEFER LTD
Oxford City Council,Housing and Property,Reactive Maintenance & Minor Repairs,B1101,05/04/2016,46289404_1,564,Revenue,20004271,DIANA BELL
Oxford City Council,Community Services,Grants,D3701,28/06/2016,46290218_1,13750,Revenue,20004327,THE PORCH
Oxford City Council,HRA,Lift Maintenance / Servicing,B1203,05/04/2016,46289338_1,2718.47,Revenue,20004494,COTSWOLD LIFTS LTD
Oxford City Council,HRA,Lift Maintenance / Servicing,B1203,01/06/2016,46290046_1,3051.21,Revenue,20004494,COTSWOLD LIFTS LTD
Oxford City Council,HRA,Lift Maintenance / Servicing,B1203,01/06/2016,46290047_1,11223.37,Revenue,20004494,COTSWOLD LIFTS LTD
Oxford City Council,HRA,Lift Maintenance / Servicing,B1203,01/06/2016,46290047_2,383.78,Revenue,20004494,COTSWOLD LIFTS LTD
Oxford City Council,Direct Services,Lift Maintenance / Servicing,B1203,01/06/2016,46290047_3,1579.06,Revenue,20004494,COTSWOLD LIFTS LTD
Oxford City Council,HRA,Lift Maintenance / Servicing,B1203,28/06/2016,46290247_1,5482.4,Revenue,20004494,COTSWOLD LIFTS LTD
Oxford City Council,Direct Services,Lift Maintenance / Servicing,B1203,28/06/2016,46290247_2,116.55,Revenue,20004494,COTSWOLD LIFTS LTD
Oxford City Council,HRA,Lift Maintenance / Servicing,B1203,28/06/2016,46290247_3,116.55,Revenue,20004494,COTSWOLD LIFTS LTD
Oxford City Council,Financial Services,Counsel & External Legal Fees,D3417,01/06/2016,1028665_0,1249.6,Revenue,20004629,EVERSHEDS
Oxford City Council,Financial Services,Counsel & External Legal Fees,D3417,21/06/2016,1029383_0,2284.9,Revenue,20004629,EVERSHEDS
Oxford City Council,Community Services,Grants,D3701,12/04/2016,46289439_1,5000,Revenue,20004720,THE ARCHWAY FOUNDATION
Oxford City Council,Community Services,Contributions,D3702,19/04/2016,46289558_1,500,Revenue,20004720,THE ARCHWAY FOUNDATION
Oxford City Council,Funding,Parishes,J8527,05/04/2016,46289371_1,38500,Revenue,20004730,LITTLEMORE PARISH COUNCIL
Oxford City Council,Funding,Parishes,J8527,05/04/2016,46289373_1,15300,Revenue,20004751,BLACKBIRD LEYS PARISH COUNCIL
Oxford City Council,Suspense,CIL Capital Reciepts in Advance,W3001,04/05/2016,46289704_1,2241.24,Revenue,20004751,BLACKBIRD LEYS PARISH COUNCIL
Oxford City Council,Direct Services,Direct Services Supplies & Services,D3311,26/04/2016,60054799_0,682,Revenue,20004960,SI PUMPS LTD
Oxford City Council,Direct Services,Direct Services Supplies & Services,D3311,28/06/2016,60057446_0,4897.61,Revenue,20004960,SI PUMPS LTD
Oxford City Council,Planning & Regulatory,Books & Publications,D3302,26/04/2016,1027453_1,1698,Revenue,20005063,CHARTERED INSTITUTE OF ENVIRONMENTAL HEALTH
Oxford City Council,Direct Services,Postage & Carriage,D3501,10/05/2016,1027901_1,500,Revenue,20005077,FRANCOTYP POSTALIA LTD - RENT
Oxford City Council,Direct Services,Postage & Carriage,D3501,07/06/2016,1028851_1,500,Revenue,20005077,FRANCOTYP POSTALIA LTD - RENT
Oxford City Council,Direct Services,Postage & Carriage,D3501,14/06/2016,1029077_1,500,Revenue,20005077,FRANCOTYP POSTALIA LTD - RENT
Oxford City Council,Direct Services,Postage & Carriage,D3501,07/06/2016,46289965_1,500,Revenue,20005077,FRANCOTYP POSTALIA LTD - RENT
Oxford City Council,Organisational Development,Compliance Training (H&S),A0630,05/04/2016,1027234_0,930,Revenue,20005249,READING BOROUGH COUNCIL
Oxford City Council,Direct Services,Main Contractor,Y021,05/04/2016,47984559_1,43335,Capital,20005675,ECON ENGINEERING LTD
Oxford City Council,Direct Services,Main Contractor,Y021,05/04/2016,47984559_2,45792.3,Capital,20005675,ECON ENGINEERING LTD
Oxford City Council,Direct Services,Main Contractor,Y021,05/04/2016,47984559_3,12801.14,Capital,20005675,ECON ENGINEERING LTD
Oxford City Council,Direct Services,Main Contractor,Y021,05/04/2016,47984560_0,43335,Capital,20005675,ECON ENGINEERING LTD
Oxford City Council,Direct Services,Main Contractor,Y021,05/04/2016,47984560_2,55313.76,Capital,20005675,ECON ENGINEERING LTD
Oxford City Council,Direct Services,Main Contractor,Y021,05/04/2016,47984561_0,38542,Capital,20005675,ECON ENGINEERING LTD
Oxford City Council,Direct Services,Main Contractor,Y021,05/04/2016,47984561_1,41286.26,Capital,20005675,ECON ENGINEERING LTD
Oxford City Council,Direct Services,Materials,D3021,01/06/2016,47985416_0,1249.39,Revenue,20005675,ECON ENGINEERING LTD
Oxford City Council,Direct Services,Materials,D3021,05/04/2016,60053442_1,1353.36,Revenue,20005720,CAPITOL TILE SUPPLIES LTD
Oxford City Council,Direct Services,Materials,D3021,12/04/2016,60053912_0,1916.2,Revenue,20005720,CAPITOL TILE SUPPLIES LTD
Oxford City Council,Direct Services,Materials,D3021,19/04/2016,60054112_1,1227.6,Revenue,20005720,CAPITOL TILE SUPPLIES LTD
Oxford City Council,Direct Services,Materials,D3021,19/04/2016,60054113_0,910.8,Revenue,20005720,CAPITOL TILE SUPPLIES LTD
Oxford City Council,Direct Services,Materials,D3021,19/04/2016,60054175_1,1365.2,Revenue,20005720,CAPITOL TILE SUPPLIES LTD
Oxford City Council,Direct Services,Materials,D3021,26/04/2016,60054488_0,910.8,Revenue,20005720,CAPITOL TILE SUPPLIES LTD
Oxford City Council,Direct Services,Materials,D3021,26/04/2016,60054490_0,534.6,Revenue,20005720,CAPITOL TILE SUPPLIES LTD
Oxford City Council,Direct Services,Materials,D3021,04/05/2016,60054854_1,1531.56,Revenue,20005720,CAPITOL TILE SUPPLIES LTD
Oxford City Council,Direct Services,Materials,D3021,04/05/2016,60055008_0,910.8,Revenue,20005720,CAPITOL TILE SUPPLIES LTD
Oxford City Council,Direct Services,Materials,D3021,10/05/2016,60055204_1,688.6,Revenue,20005720,CAPITOL TILE SUPPLIES LTD
Oxford City Council,Direct Services,Materials,D3021,24/05/2016,60055682_0,910.8,Revenue,20005720,CAPITOL TILE SUPPLIES LTD
Oxford City Council,Direct Services,Materials,D3021,24/05/2016,60055683_1,534.6,Revenue,20005720,CAPITOL TILE SUPPLIES LTD
Oxford City Council,Direct Services,Materials,D3021,01/06/2016,60056115_0,2296.8,Revenue,20005720,CAPITOL TILE SUPPLIES LTD
Oxford City Council,Direct Services,Materials,D3021,14/06/2016,60056468_1,910.8,Revenue,20005720,CAPITOL TILE SUPPLIES LTD
Oxford City Council,Direct Services,Materials,D3021,14/06/2016,60056469_0,534.6,Revenue,20005720,CAPITOL TILE SUPPLIES LTD
Oxford City Council,Direct Services,Materials,D3021,21/06/2016,60056797_0,1064.8,Revenue,20005720,CAPITOL TILE SUPPLIES LTD
Oxford City Council,Direct Services,Materials,D3021,21/06/2016,60056899_0,1076.49,Revenue,20005720,CAPITOL TILE SUPPLIES LTD
Oxford City Council,Direct Services,Materials,D3021,21/06/2016,60056901_1,544.32,Revenue,20005720,CAPITOL TILE SUPPLIES LTD
Oxford City Council,Direct Services,Materials,D3021,28/06/2016,60057105_0,1850.04,Revenue,20005720,CAPITOL TILE SUPPLIES LTD
Oxford City Council,Direct Services,Materials,D3021,28/06/2016,60057106_1,1069.2,Revenue,20005720,CAPITOL TILE SUPPLIES LTD
Oxford City Council,Law and Governance,Hire Of Premises/Temp Accom,B1820,07/06/2016,46289911_1,960,Revenue,20005968,WESLEY MEMORIAL METHODIST CHR
Oxford City Council,Direct Services,Materials,D3021,04/05/2016,60055016_1,618.18,Revenue,20006027,ACE MINIMIX
Oxford City Council,Direct Services,Materials,D3021,12/04/2016,60053947_1,591.41,Revenue,20006089,ICI CONTRACT DIRECT
Oxford City Council,Direct Services,Materials,D3021,26/04/2016,60054525_1,1205.28,Revenue,20006089,ICI CONTRACT DIRECT
Oxford City Council,Direct Services,Materials,D3021,10/05/2016,60055228_0,629.49,Revenue,20006089,ICI CONTRACT DIRECT
Oxford City Council,Direct Services,Materials,D3021,10/05/2016,60055230_0,560.74,Revenue,20006089,ICI CONTRACT DIRECT
Oxford City Council,Direct Services,Materials,D3021,24/05/2016,60055793_1,856.16,Revenue,20006089,ICI CONTRACT DIRECT
Oxford City Council,Direct Services,Materials,D3021,07/06/2016,60056288_0,666.05,Revenue,20006089,ICI CONTRACT DIRECT
Oxford City Council,Direct Services,Materials,D3021,28/06/2016,60057260_1,603.72,Revenue,20006089,ICI CONTRACT DIRECT
Oxford City Council,Direct Services,Services Maintenance (Planned),B1103,10/05/2016,1028098_0,680.3,Revenue,20006133,GREENFLOW
Oxford City Council,Direct Services,General Contracted Services,D3401,28/06/2016,1029453_0,8750,Revenue,20006303,COMPLETE TREE SERVICES
Oxford City Council,Direct Services,Direct Services Supplies & Services,D3311,07/06/2016,60056320_1,2030,Revenue,20006342,JEWSON LTD
Oxford City Council,Direct Services,Materials,D3021,21/06/2016,60056912_1,522.82,Revenue,20006342,JEWSON LTD
Oxford City Council,Direct Services,Materials,D3021,28/06/2016,60057134_1,733.8,Revenue,20006342,JEWSON LTD
Oxford City Council,Direct Services,Materials,D3021,28/06/2016,60057136_1,1926.04,Revenue,20006342,JEWSON LTD
Oxford City Council,Direct Services,Sign Shop Materials,D3018,05/04/2016,60053378_1,3842,Revenue,20006398,STREET FURNISHING SERVICES
Oxford City Council,Direct Services,Materials,D3021,05/04/2016,60053657_1,2100,Revenue,20006398,STREET FURNISHING SERVICES
Oxford City Council,Direct Services,Sign Shop Materials,D3018,10/05/2016,60055258_0,563.04,Revenue,20006398,STREET FURNISHING SERVICES
Oxford City Council,Direct Services,Sign Shop Materials,D3018,17/05/2016,60055552_1,926.59,Revenue,20006398,STREET FURNISHING SERVICES
Oxford City Council,Direct Services,Materials,D3021,14/06/2016,60056652_1,1174.9,Revenue,20006398,STREET FURNISHING SERVICES
Oxford City Council,Community Services,Materials,D3021,05/04/2016,1027117_0,615.1,Revenue,20006448,WALLACE CAMERON INTERNATIONAL LTD
Oxford City Council,Community Services,Postage & Carriage,D3501,05/04/2016,1027117_1,6.99,Revenue,20006448,WALLACE CAMERON INTERNATIONAL LTD
Oxford City Council,Direct Services,Reactive Maintenance & Minor Repairs,B1101,05/04/2016,1027275_0,5904.56,Revenue,20006504,BUS SHELTERS LTD
Oxford City Council,Business Improvement,Software Maintenance/Running Costs,D3513,05/04/2016,1026297_0,1510.97,Revenue,20006550,ORACLE CORPORATION UK LTD
Oxford City Council,Business Improvement,Software Maintenance/Running Costs,D3513,05/04/2016,1027324_0,3021.91,Revenue,20006550,ORACLE CORPORATION UK LTD
Oxford City Council,Financial Services,Counsel & External Legal Fees,D3417,05/04/2016,1027280_0,1512.16,Revenue,20006554,LOCAL GOVERNMENT ASSOCIATION
Oxford City Council,Law and Governance,Subscriptions,D3703,10/05/2016,1027770_0,10450,Revenue,20006554,LOCAL GOVERNMENT ASSOCIATION
Oxford City Council,Law and Governance,General Contracted Services,D3401,28/06/2016,1029398_0,625.46,Revenue,20006554,LOCAL GOVERNMENT ASSOCIATION
Oxford City Council,Law and Governance,Staff Advertising,A0702,26/04/2016,1027734_0,995,Revenue,20006577,CENTAUR MEDIA
Oxford City Council,Law and Governance,Staff Advertising,A0702,01/06/2016,1028826_0,1800,Revenue,20006577,CENTAUR MEDIA
Oxford City Council,Business Improvement,Travel Scheme Discount,C2505,04/05/2016,1027984_1,1200.7,Revenue,20006596,OXFORD BUS COMPANY LTD
Oxford City Council,Business Improvement,Travel Scheme Discount,C2505,24/05/2016,1028524_1,1569.35,Revenue,20006596,OXFORD BUS COMPANY LTD
Oxford City Council,Business Improvement,Travel Scheme Discount,C2505,14/06/2016,1028951_1,1172.15,Revenue,20006596,OXFORD BUS COMPANY LTD
Oxford City Council,Planning & Regulatory,Public Transport,C2501,21/06/2016,1029020_0,929,Revenue,20006596,OXFORD BUS COMPANY LTD
Oxford City Council,Financial Services,Subscriptions,D3703,04/05/2016,1027985_1,4270,Revenue,20006804,CIPFA BUSINESS LTD
Oxford City Council,Direct Services,Reactive Maintenance & Minor Repairs,B1101,14/06/2016,1028899_0,680,Revenue,20006929,ISIS SCAFFOLDING LTD
Oxford City Council,Housing and Property,Reactive Maintenance & Minor Repairs,B1101,14/06/2016,1029012_0,600,Revenue,20006929,ISIS SCAFFOLDING LTD
Oxford City Council,HRA,Consultants Fees,D3411,14/06/2016,1027753_1,4793.96,Revenue,20006937,GEMINI CONSULTANTS LTD
Oxford City Council,Business Improvement,Hardware Purchase,D3520,05/04/2016,1027448_0,45000,Revenue,20006940,BT GLOBAL SERVIES
Oxford City Council,Business Improvement,Hardware Purchase,D3520,10/05/2016,1027899_0,5400,Revenue,20006940,BT GLOBAL SERVIES
Oxford City Council,Business Improvement,Hardware Purchase,D3520,24/05/2016,1028577_0,3600,Revenue,20006940,BT GLOBAL SERVIES
Oxford City Council,HRA,Main Contractor,Y021,01/06/2016,1028669_0,2213.19,Capital,20007072,SERS LTD
Oxford City Council,Community Services,Grants,D3701,12/04/2016,46289455_1,2500,Revenue,20007299,RESTORE LTD
Oxford City Council,Community Services,Grants,D3701,12/04/2016,46289443_1,1500,Revenue,20007578,BBOWT
Oxford City Council,Community Services,Gas,B1502,26/04/2016,47013905_1,1339.89,Revenue,20007602,TOTAL GAS & POWER LTD
Oxford City Council,Community Services,Gas,B1502,26/04/2016,47013921_2,715.7,Revenue,20007602,TOTAL GAS & POWER LTD
Oxford City Council,Community Services,Gas,B1502,26/04/2016,47013922_0,1115.69,Revenue,20007602,TOTAL GAS & POWER LTD
Oxford City Council,Community Services,Gas,B1502,26/04/2016,47013928_1,509.24,Revenue,20007602,TOTAL GAS & POWER LTD
Oxford City Council,Community Services,Gas,B1502,26/04/2016,47013948_1,1247.43,Revenue,20007602,TOTAL GAS & POWER LTD
Oxford City Council,Community Services,Gas,B1502,28/06/2016,47015178_0,550.92,Revenue,20007602,TOTAL GAS & POWER LTD
Oxford City Council,Community Services,Gas,B1502,28/06/2016,47015179_1,575.28,Revenue,20007602,TOTAL GAS & POWER LTD
Oxford City Council,Community Services,Gas,B1502,28/06/2016,47015180_0,593.46,Revenue,20007602,TOTAL GAS & POWER LTD
Oxford City Council,Direct Services,Materials,D3021,05/04/2016,47984625_1,1775,Revenue,20007833,GELPACK EXCELSIOR LTD
Oxford City Council,Suspense,Materials,D3021,05/04/2016,60053478_1,5370.17,Revenue,20007833,GELPACK EXCELSIOR LTD
Oxford City Council,Direct Services,Cleaning Materials,B1601,19/04/2016,60054312_0,782.4,Revenue,20007833,GELPACK EXCELSIOR LTD
Oxford City Council,Suspense,Materials,D3021,28/06/2016,60057282_1,1020,Revenue,20007833,GELPACK EXCELSIOR LTD
Oxford City Council,Business Improvement,General Stationery Supplies,D3301,10/05/2016,1027741_0,1487.03,Revenue,20007849,LYRECO UK LTD
Oxford City Council,Direct Services,General Stationery Supplies,D3301,26/04/2016,1027824_0,931.13,Revenue,20007849,LYRECO UK LTD
Oxford City Council,Direct Services,General Stationery Supplies,D3301,24/05/2016,1028291_0,1094.07,Revenue,20007849,LYRECO UK LTD
Oxford City Council,HRA,General Stationery Supplies,D3301,24/05/2016,1028292_0,5899.4,Revenue,20007849,LYRECO UK LTD
Oxford City Council,Community Services,General Stationery Supplies,D3301,28/06/2016,1028921_0,1351.62,Revenue,20007849,LYRECO UK LTD
Oxford City Council,Direct Services,General Stationery Supplies,D3301,28/06/2016,1029034_0,682.78,Revenue,20007849,LYRECO UK LTD
Oxford City Council,Business Improvement,General Stationery Supplies,D3301,28/06/2016,1029409_0,2306.88,Revenue,20007849,LYRECO UK LTD
Oxford City Council,Assistant Chief Executive,Advertising & Publicity,D3802,12/04/2016,1027584_0,875,Revenue,20007856,NEWSQUEST MIDLANDS  WALES & SOUTH WEST
Oxford City Council,Direct Services,Advertising & Publicity,D3802,10/05/2016,1028111_0,1021.44,Revenue,20007856,NEWSQUEST MIDLANDS  WALES & SOUTH WEST
Oxford City Council,Direct Services,Advertising & Publicity,D3802,10/05/2016,1028112_0,1532.16,Revenue,20007856,NEWSQUEST MIDLANDS  WALES & SOUTH WEST
Oxford City Council,Assistant Chief Executive,Advertising & Publicity,D3802,10/05/2016,1028191_0,3500,Revenue,20007856,NEWSQUEST MIDLANDS  WALES & SOUTH WEST
Oxford City Council,Assistant Chief Executive,Advertising & Publicity,D3802,10/05/2016,1028218_0,875,Revenue,20007856,NEWSQUEST MIDLANDS  WALES & SOUTH WEST
Oxford City Council,Law and Governance,Advertising & Publicity,D3802,21/06/2016,1028818_1,1776.59,Revenue,20007856,NEWSQUEST MIDLANDS  WALES & SOUTH WEST
Oxford City Council,Law and Governance,Advertising & Publicity,D3802,28/06/2016,1028942_1,1970.77,Revenue,20007856,NEWSQUEST MIDLANDS  WALES & SOUTH WEST
Oxford City Council,Law and Governance,Advertising & Publicity,D3802,28/06/2016,1029231_1,3447.35,Revenue,20007856,NEWSQUEST MIDLANDS  WALES & SOUTH WEST
Oxford City Council,Business Improvement,Software Maintenance/Running Costs,D3513,17/05/2016,1028107_0,960.58,Revenue,20007875,MIDLAND HR
Oxford City Council,Community Services,Equipment Hire Charges,D3006,17/05/2016,1028425_0,502.06,Revenue,20007876,SIEMENS FINANCIAL SERVICES LTD
Oxford City Council,Business Improvement,Software Maintenance/Running Costs,D3513,24/05/2016,1028243_0,4092.5,Revenue,20007877,COMPUTACENTER (UK) LTD
Oxford City Council,HRA,Furniture & Equipment Purchase,D3001,05/04/2016,1027366_0,2563.84,Revenue,20007932,FURNISHED HOMES (UNDERLEY FURNISHINGS) LTD
Oxford City Council,HRA,Furniture & Equipment Purchase,D3001,05/04/2016,1027367_0,1711.6,Revenue,20007932,FURNISHED HOMES (UNDERLEY FURNISHINGS) LTD
Oxford City Council,HRA,Furniture & Equipment Purchase,D3001,05/04/2016,1027368_0,2905.27,Revenue,20007932,FURNISHED HOMES (UNDERLEY FURNISHINGS) LTD
Oxford City Council,HRA,Furniture & Equipment Purchase,D3001,05/04/2016,1027372_1,2313.28,Revenue,20007932,FURNISHED HOMES (UNDERLEY FURNISHINGS) LTD
Oxford City Council,HRA,Furniture & Equipment Purchase,D3001,26/04/2016,1027511_0,844.99,Revenue,20007932,FURNISHED HOMES (UNDERLEY FURNISHINGS) LTD
Oxford City Council,HRA,Furniture & Equipment Purchase,D3001,26/04/2016,1027512_0,800.22,Revenue,20007932,FURNISHED HOMES (UNDERLEY FURNISHINGS) LTD
Oxford City Council,HRA,Furniture & Equipment Purchase,D3001,26/04/2016,1027513_0,523.96,Revenue,20007932,FURNISHED HOMES (UNDERLEY FURNISHINGS) LTD
Oxford City Council,HRA,Replacement Furniture,D3003,26/04/2016,1027620_0,1203.13,Revenue,20007932,FURNISHED HOMES (UNDERLEY FURNISHINGS) LTD
Oxford City Council,HRA,Furniture & Equipment Purchase,D3001,26/04/2016,1027665_0,1251.44,Revenue,20007932,FURNISHED HOMES (UNDERLEY FURNISHINGS) LTD
Oxford City Council,HRA,Furniture & Equipment Purchase,D3001,04/05/2016,1027670_0,2183.24,Revenue,20007932,FURNISHED HOMES (UNDERLEY FURNISHINGS) LTD
Oxford City Council,HRA,Furniture & Equipment Purchase,D3001,04/05/2016,1027673_0,2080.31,Revenue,20007932,FURNISHED HOMES (UNDERLEY FURNISHINGS) LTD
Oxford City Council,HRA,Furniture & Equipment Purchase,D3001,10/05/2016,1027849_0,2057.41,Revenue,20007932,FURNISHED HOMES (UNDERLEY FURNISHINGS) LTD
Oxford City Council,HRA,Furniture & Equipment Purchase,D3001,10/05/2016,1027940_0,1034.31,Revenue,20007932,FURNISHED HOMES (UNDERLEY FURNISHINGS) LTD
Oxford City Council,HRA,Furniture & Equipment Purchase,D3001,17/05/2016,1028035_0,1130.4,Revenue,20007932,FURNISHED HOMES (UNDERLEY FURNISHINGS) LTD
Oxford City Council,HRA,Furniture & Equipment Purchase,D3001,17/05/2016,1028149_0,1506.45,Revenue,20007932,FURNISHED HOMES (UNDERLEY FURNISHINGS) LTD
Oxford City Council,HRA,Furniture & Equipment Purchase,D3001,17/05/2016,1028151_0,2640.58,Revenue,20007932,FURNISHED HOMES (UNDERLEY FURNISHINGS) LTD
Oxford City Council,HRA,Furniture & Equipment Purchase,D3001,24/05/2016,1028290_0,584.78,Revenue,20007932,FURNISHED HOMES (UNDERLEY FURNISHINGS) LTD
Oxford City Council,HRA,Furniture & Equipment Purchase,D3001,01/06/2016,1028353_0,2775.25,Revenue,20007932,FURNISHED HOMES (UNDERLEY FURNISHINGS) LTD
Oxford City Council,HRA,Furniture & Equipment Purchase,D3001,07/06/2016,1028439_0,1376.62,Revenue,20007932,FURNISHED HOMES (UNDERLEY FURNISHINGS) LTD
Oxford City Council,HRA,Furniture & Equipment Purchase,D3001,07/06/2016,1028533_0,1946.9,Revenue,20007932,FURNISHED HOMES (UNDERLEY FURNISHINGS) LTD
Oxford City Council,HRA,Furniture & Equipment Purchase,D3001,07/06/2016,1028535_0,2082.12,Revenue,20007932,FURNISHED HOMES (UNDERLEY FURNISHINGS) LTD
Oxford City Council,HRA,Furniture & Equipment Purchase,D3001,01/06/2016,1028690_0,719.99,Revenue,20007932,FURNISHED HOMES (UNDERLEY FURNISHINGS) LTD
Oxford City Council,HRA,Furniture & Equipment Purchase,D3001,07/06/2016,1028915_0,2279.48,Revenue,20007932,FURNISHED HOMES (UNDERLEY FURNISHINGS) LTD
Oxford City Council,HRA,Furniture & Equipment Purchase,D3001,07/06/2016,1028917_0,2299.09,Revenue,20007932,FURNISHED HOMES (UNDERLEY FURNISHINGS) LTD
Oxford City Council,HRA,Furniture & Equipment Purchase,D3001,07/06/2016,1028919_0,1225.89,Revenue,20007932,FURNISHED HOMES (UNDERLEY FURNISHINGS) LTD
Oxford City Council,HRA,Furniture & Equipment Purchase,D3001,21/06/2016,1029350_0,1954.13,Revenue,20007932,FURNISHED HOMES (UNDERLEY FURNISHINGS) LTD
Oxford City Council,HRA,Furniture & Equipment Purchase,D3001,21/06/2016,1029353_0,2251.31,Revenue,20007932,FURNISHED HOMES (UNDERLEY FURNISHINGS) LTD
Oxford City Council,HRA,Furniture & Equipment Purchase,D3001,21/06/2016,1029403_0,865.98,Revenue,20007932,FURNISHED HOMES (UNDERLEY FURNISHINGS) LTD
Oxford City Council,HRA,Furniture & Equipment Purchase,D3001,28/06/2016,1029525_1,1240.12,Revenue,20007932,FURNISHED HOMES (UNDERLEY FURNISHINGS) LTD
Oxford City Council,Housing and Property,Homelessness Accommodation Lease Payments,D3611,14/06/2016,1029088_1,2475,Revenue,20007933,LETTING & PROPERTY MANAGEMENT
Oxford City Council,Housing and Property,Homelessness Accommodation Lease Payments,D3611,14/06/2016,1029091_1,4680,Revenue,20007933,LETTING & PROPERTY MANAGEMENT
Oxford City Council,Housing and Property,Homelessness Accommodation Lease Payments,D3611,14/06/2016,1029092_1,2850,Revenue,20007933,LETTING & PROPERTY MANAGEMENT
Oxford City Council,Housing and Property,Homelessness Accommodation Lease Payments,D3611,14/06/2016,1029093_1,3000,Revenue,20007933,LETTING & PROPERTY MANAGEMENT
Oxford City Council,Housing and Property,Homelessness Accommodation Lease Payments,D3611,14/06/2016,1029094_1,2850,Revenue,20007933,LETTING & PROPERTY MANAGEMENT
Oxford City Council,Housing and Property,Homelessness Accommodation Lease Payments,D3611,14/06/2016,1029095_1,4980,Revenue,20007933,LETTING & PROPERTY MANAGEMENT
Oxford City Council,Housing and Property,Rent,B1701,05/04/2016,46289378_1,650,Revenue,20007933,LETTING & PROPERTY MANAGEMENT
Oxford City Council,Housing and Property,Rent,B1701,05/04/2016,46289379_1,675,Revenue,20007933,LETTING & PROPERTY MANAGEMENT
Oxford City Council,Direct Services,Materials,D3021,26/04/2016,47984808_0,437.4,Revenue,20007941,VOLVO TRUCK & BUS LIMITED
Oxford City Council,Direct Services,Materials,D3021,26/04/2016,47984808_1,6.09,Revenue,20007941,VOLVO TRUCK & BUS LIMITED
Oxford City Council,Direct Services,Materials,D3021,26/04/2016,47984808_2,324.49,Revenue,20007941,VOLVO TRUCK & BUS LIMITED
Oxford City Council,Law and Governance,Short Courses,A0622,26/04/2016,1027898_0,698,Revenue,20007943,LGG LIMITED
Oxford City Council,Direct Services,Materials,D3021,19/04/2016,60054115_0,524,Revenue,20007946,ED GLASS LIMITED
Oxford City Council,Direct Services,General Contracted Services,D3401,05/04/2016,47984537_1,882.14,Revenue,20007968,IMPERIAL GARAGE EQUIPMENT
Oxford City Council,Direct Services,Tipping Charges,D3421,17/05/2016,60055489_1,83419.17,Revenue,20007990,VIRIDOR WASTE MANAGEMENT
Oxford City Council,Business Improvement,General Contracted Services,D3401,04/05/2016,1024783_1,797,Revenue,20008015,M TECH COMUNICATIONS BRISTOL LTD
Oxford City Council,Community Services,General Contracted Services,D3401,05/04/2016,1027299_0,2983,Revenue,20008015,M TECH COMUNICATIONS BRISTOL LTD
Oxford City Council,Transformation,Services Maintenance (Planned),B1103,21/06/2016,1028940_0,2850,Revenue,20008015,M TECH COMUNICATIONS BRISTOL LTD
Oxford City Council,Transformation,General Contracted Services,D3401,28/06/2016,1029460_0,2300,Revenue,20008015,M TECH COMUNICATIONS BRISTOL LTD
Oxford City Council,Transformation,General Contracted Services,D3401,28/06/2016,1029461_0,4150,Revenue,20008015,M TECH COMUNICATIONS BRISTOL LTD
Oxford City Council,Direct Services,Direct Services Supplies & Services,D3311,10/05/2016,60055179_1,899,Revenue,20008015,M TECH COMUNICATIONS BRISTOL LTD
Oxford City Council,Business Improvement,Postage & Carriage,D3501,14/06/2016,1028415_1,919.85,Revenue,20008022,NEOPOST FINANCE LIMITED
Oxford City Council,Business Improvement,External Telephone Charges,D3503,19/04/2016,1027606_1,675.83,Revenue,20008028,VODAFONE LIMITED (CORPORATE)
Oxford City Council,Business Improvement,External Telephone Charges,D3503,26/04/2016,1028034_1,13918.45,Revenue,20008028,VODAFONE LIMITED (CORPORATE)
Oxford City Council,Business Improvement,Software Maintenance/Running Costs,D3513,01/06/2016,1028331_1,10928.97,Revenue,20008028,VODAFONE LIMITED (CORPORATE)
Oxford City Council,Assistant Chief Executive,Other Contributions,Y995,21/06/2016,48021544_1,2995,Capital,20008064,ADEPT DIRECT
Oxford City Council,Direct Services,Subscriptions,D3703,04/05/2016,60054987_0,535,Revenue,20008070,CERTSURE LLP
Oxford City Council,HRA,Main Contractor,Y021,17/05/2016,1028147_0,4010,Capital,20008132,ARCADIS LLP
Oxford City Council,HRA,Main Contractor,Y021,14/06/2016,1028649_0,4010,Capital,20008132,ARCADIS LLP
Oxford City Council,Business Improvement,Hospitality,D3803,24/05/2016,1028518_1,2206.07,Revenue,20008142,TRAX
Oxford City Council,Community Services,Grants,D3701,04/05/2016,46289715_1,3000,Revenue,20008142,TRAX
Oxford City Council,Community Services,Performing Rights Fees,D3704,05/04/2016,1027362_1,6356.34,Revenue,20008145,THE PERFORMING RIGHTS SOCIETY
Oxford City Council,Direct Services,Refuse Containers,D3004,24/05/2016,60055816_0,2863,Revenue,20008146,EGBERT H TAYLOR & CO LTD
Oxford City Council,Direct Services,Refuse Containers,D3004,21/06/2016,60056987_0,10455.6,Revenue,20008146,EGBERT H TAYLOR & CO LTD
Oxford City Council,Planning & Regulatory,Consultants Fees,D3411,19/04/2016,1027242_1,11627.18,Revenue,20008178,WEST OXFORDSHIRE DISTRICT COUNCIL GENERAL A/C
Oxford City Council,Community Services,Grants,D3701,19/04/2016,1027822_0,1200,Revenue,20008178,WEST OXFORDSHIRE DISTRICT COUNCIL GENERAL A/C
Oxford City Council,Direct Services,Repairs & Refurbishment,B1107,05/04/2016,60053350_0,4500,Revenue,20008181,EXECUTIVE ALARMS LTD
Oxford City Council,Direct Services,Repairs & Refurbishment,B1107,05/04/2016,60053468_1,3650,Revenue,20008181,EXECUTIVE ALARMS LTD
Oxford City Council,Direct Services,Repairs & Refurbishment,B1107,05/04/2016,60053469_0,710,Revenue,20008181,EXECUTIVE ALARMS LTD
Oxford City Council,Direct Services,Repairs & Refurbishment,B1107,05/04/2016,60053470_1,1450,Revenue,20008181,EXECUTIVE ALARMS LTD
Oxford City Council,Direct Services,Repairs & Refurbishment,B1107,05/04/2016,60053471_0,875,Revenue,20008181,EXECUTIVE ALARMS LTD
Oxford City Council,Direct Services,Repairs & Refurbishment,B1107,05/04/2016,60053529_0,25000,Revenue,20008181,EXECUTIVE ALARMS LTD
Oxford City Council,Direct Services,Services Maintenance (Planned),B1103,05/04/2016,60053530_1,1405,Revenue,20008181,EXECUTIVE ALARMS LTD
Oxford City Council,Direct Services,Repairs & Refurbishment,B1107,05/04/2016,60053533_0,1400,Revenue,20008181,EXECUTIVE ALARMS LTD
Oxford City Council,Direct Services,Repairs & Refurbishment,B1107,05/04/2016,60053663_1,4000,Revenue,20008181,EXECUTIVE ALARMS LTD
Oxford City Council,Direct Services,Direct Services Supplies & Services,D3311,05/04/2016,60053858_1,1670,Revenue,20008181,EXECUTIVE ALARMS LTD
Oxford City Council,Community Services,Grants,D3701,12/04/2016,46289461_1,50000,Revenue,20008184,CITIZENS ADVICE BUREAU
Oxford City Council,Community Services,Grants,D3701,21/06/2016,46290172_1,8110.75,Revenue,20008184,CITIZENS ADVICE BUREAU
Oxford City Council,Community Services,Grants,D3701,26/04/2016,46289634_1,4000,Revenue,20008209,DONNINGTON DOORSTEP
Oxford City Council,Community Services,Grants,D3701,04/05/2016,46289716_1,6000,Revenue,20008209,DONNINGTON DOORSTEP
Oxford City Council,Community Services,Contributions,D3702,28/06/2016,46290279_1,500,Revenue,20008209,DONNINGTON DOORSTEP
Oxford City Council,Direct Services,Short Courses,A0622,05/04/2016,1027084_0,3300,Revenue,20008229,SITESAFE UK LTD
Oxford City Council,Direct Services,Short Courses,A0622,05/04/2016,1027086_0,920,Revenue,20008229,SITESAFE UK LTD
Oxford City Council,Direct Services,Short Courses,A0622,24/05/2016,1028414_0,1950,Revenue,20008229,SITESAFE UK LTD
Oxford City Council,Direct Services,Protective Clothing,D3201,04/05/2016,60054956_1,735.36,Revenue,20008229,SITESAFE UK LTD
Oxford City Council,Direct Services,Protective Clothing,D3201,01/06/2016,60056155_1,735.36,Revenue,20008229,SITESAFE UK LTD
Oxford City Council,Financial Services,Consultants Fees,D3411,10/05/2016,1027894_0,3450,Revenue,20008268,UNIT 4 BUSINESS SOFTWARE LTD.
Oxford City Council,Financial Services,Consultants Fees,D3411,04/05/2016,1028188_0,6400,Revenue,20008268,UNIT 4 BUSINESS SOFTWARE LTD.
Oxford City Council,Direct Services,Direct Services Sub Contractors,B1111,19/04/2016,60054383_0,1400,Revenue,20008285,VPS  THE VACANT PROPERTY SPECIALIST
Oxford City Council,Direct Services,Direct Services Sub Contractors,B1111,19/04/2016,60054384_1,594,Revenue,20008285,VPS  THE VACANT PROPERTY SPECIALIST
Oxford City Council,Direct Services,Direct Services Sub Contractors,B1111,19/04/2016,60054385_0,930,Revenue,20008285,VPS  THE VACANT PROPERTY SPECIALIST
Oxford City Council,Direct Services,Direct Services Sub Contractors,B1111,17/05/2016,60055571_0,1400,Revenue,20008285,VPS  THE VACANT PROPERTY SPECIALIST
Oxford City Council,Direct Services,Direct Services Sub Contractors,B1111,17/05/2016,60055592_1,840,Revenue,20008285,VPS  THE VACANT PROPERTY SPECIALIST
Oxford City Council,Direct Services,Direct Services Sub Contractors,B1111,17/05/2016,60055600_1,518.03,Revenue,20008285,VPS  THE VACANT PROPERTY SPECIALIST
Oxford City Council,Direct Services,Direct Services Sub Contractors,B1111,17/05/2016,60055601_0,504,Revenue,20008285,VPS  THE VACANT PROPERTY SPECIALIST
Oxford City Council,Direct Services,Direct Services Sub Contractors,B1111,14/06/2016,60056679_1,1750,Revenue,20008285,VPS  THE VACANT PROPERTY SPECIALIST
Oxford City Council,Direct Services,Direct Services Sub Contractors,B1111,14/06/2016,60056693_0,1050,Revenue,20008285,VPS  THE VACANT PROPERTY SPECIALIST
Oxford City Council,Direct Services,Direct Services Sub Contractors,B1111,14/06/2016,60056701_1,565.66,Revenue,20008285,VPS  THE VACANT PROPERTY SPECIALIST
Oxford City Council,Direct Services,Direct Services Sub Contractors,B1111,14/06/2016,60056702_0,630,Revenue,20008285,VPS  THE VACANT PROPERTY SPECIALIST
Oxford City Council,Direct Services,Materials,D3021,24/05/2016,1028307_0,1894.4,Revenue,20008377,FLEET (LINE MARKERS) LTD
Oxford City Council,Direct Services,Contract Plant Hire,C2402,14/06/2016,60056749_0,515,Revenue,20008407,2 COUSINS ACCESS LTD
Oxford City Council,Direct Services,Plants,D3025,26/04/2016,1027580_0,4570,Revenue,20008447,AVONCROP AMENITY PRODUCTS LTD
Oxford City Council,Direct Services,Fertiliser & Weedkillers,D3026,26/04/2016,1027885_0,1248,Revenue,20008447,AVONCROP AMENITY PRODUCTS LTD
Oxford City Council,Direct Services,Fertiliser & Weedkillers,D3026,24/05/2016,1028490_0,2884.2,Revenue,20008447,AVONCROP AMENITY PRODUCTS LTD
Oxford City Council,Direct Services,Vehicle Excise Licences,C2202,25/04/2016,46289610_1,165,Revenue,20008465,POST OFFICE LTD
Oxford City Council,Direct Services,Vehicle Excise Licences,C2202,25/04/2016,46289610_2,230,Revenue,20008465,POST OFFICE LTD
Oxford City Council,Direct Services,Vehicle Excise Licences,C2202,25/04/2016,46289610_3,230,Revenue,20008465,POST OFFICE LTD
Oxford City Council,Direct Services,Vehicle Excise Licences,C2202,25/04/2016,46289610_4,230,Revenue,20008465,POST OFFICE LTD
Oxford City Council,Direct Services,Vehicle Excise Licences,C2202,25/04/2016,46289610_5,230,Revenue,20008465,POST OFFICE LTD
Oxford City Council,Direct Services,Vehicle Excise Licences,C2202,25/04/2016,46289610_6,230,Revenue,20008465,POST OFFICE LTD
Oxford City Council,Direct Services,Vehicle Excise Licences,C2202,25/04/2016,46289610_7,230,Revenue,20008465,POST OFFICE LTD
Oxford City Council,Direct Services,Vehicle Excise Licences,C2202,25/04/2016,46289610_8,280,Revenue,20008465,POST OFFICE LTD
Oxford City Council,Direct Services,Vehicle Excise Licences,C2202,25/04/2016,46289610_9,230,Revenue,20008465,POST OFFICE LTD
Oxford City Council,Direct Services,Vehicle Excise Licences,C2202,27/05/2016,46290002_1,145,Revenue,20008465,POST OFFICE LTD
Oxford City Council,Direct Services,Vehicle Excise Licences,C2202,27/05/2016,46290002_10,230,Revenue,20008465,POST OFFICE LTD
Oxford City Council,Direct Services,Vehicle Excise Licences,C2202,27/05/2016,46290002_11,350,Revenue,20008465,POST OFFICE LTD
Oxford City Council,Direct Services,Vehicle Excise Licences,C2202,27/05/2016,46290002_12,350,Revenue,20008465,POST OFFICE LTD
Oxford City Council,Direct Services,Vehicle Excise Licences,C2202,27/05/2016,46290002_13,230,Revenue,20008465,POST OFFICE LTD
Oxford City Council,Direct Services,Vehicle Excise Licences,C2202,27/05/2016,46290002_14,230,Revenue,20008465,POST OFFICE LTD
Oxford City Council,Direct Services,Vehicle Excise Licences,C2202,27/05/2016,46290002_15,230,Revenue,20008465,POST OFFICE LTD
Oxford City Council,Direct Services,Vehicle Excise Licences,C2202,27/05/2016,46290002_16,230,Revenue,20008465,POST OFFICE LTD
Oxford City Council,Direct Services,Vehicle Excise Licences,C2202,27/05/2016,46290002_17,145,Revenue,20008465,POST OFFICE LTD
Oxford City Council,Direct Services,Vehicle Excise Licences,C2202,27/05/2016,46290002_18,165,Revenue,20008465,POST OFFICE LTD
Oxford City Council,Direct Services,Vehicle Excise Licences,C2202,27/05/2016,46290002_2,165,Revenue,20008465,POST OFFICE LTD
Oxford City Council,Direct Services,Vehicle Excise Licences,C2202,27/05/2016,46290002_3,650,Revenue,20008465,POST OFFICE LTD
Oxford City Council,Direct Services,Vehicle Excise Licences,C2202,27/05/2016,46290002_4,650,Revenue,20008465,POST OFFICE LTD
Oxford City Council,Direct Services,Vehicle Excise Licences,C2202,27/05/2016,46290002_5,650,Revenue,20008465,POST OFFICE LTD
Oxford City Council,Direct Services,Vehicle Excise Licences,C2202,27/05/2016,46290002_6,650,Revenue,20008465,POST OFFICE LTD
Oxford City Council,Direct Services,Vehicle Excise Licences,C2202,27/05/2016,46290002_7,170,Revenue,20008465,POST OFFICE LTD
Oxford City Council,Direct Services,Vehicle Excise Licences,C2202,27/05/2016,46290002_8,230,Revenue,20008465,POST OFFICE LTD
Oxford City Council,Direct Services,Vehicle Excise Licences,C2202,27/05/2016,46290002_9,230,Revenue,20008465,POST OFFICE LTD
Oxford City Council,Direct Services,Vehicle Excise Licences,C2202,17/06/2016,46290174_1,230,Revenue,20008465,POST OFFICE LTD
Oxford City Council,Direct Services,Vehicle Excise Licences,C2202,17/06/2016,46290174_10,230,Revenue,20008465,POST OFFICE LTD
Oxford City Council,Direct Services,Vehicle Excise Licences,C2202,17/06/2016,46290174_11,230,Revenue,20008465,POST OFFICE LTD
Oxford City Council,Direct Services,Vehicle Excise Licences,C2202,17/06/2016,46290174_12,230,Revenue,20008465,POST OFFICE LTD
Oxford City Council,Direct Services,Vehicle Excise Licences,C2202,17/06/2016,46290174_13,230,Revenue,20008465,POST OFFICE LTD
Oxford City Council,Direct Services,Vehicle Excise Licences,C2202,17/06/2016,46290174_14,230,Revenue,20008465,POST OFFICE LTD
Oxford City Council,Direct Services,Vehicle Excise Licences,C2202,17/06/2016,46290174_15,230,Revenue,20008465,POST OFFICE LTD
Oxford City Council,Direct Services,Vehicle Excise Licences,C2202,17/06/2016,46290174_16,230,Revenue,20008465,POST OFFICE LTD
Oxford City Council,Direct Services,Vehicle Excise Licences,C2202,17/06/2016,46290174_17,230,Revenue,20008465,POST OFFICE LTD
Oxford City Council,Direct Services,Vehicle Excise Licences,C2202,17/06/2016,46290174_2,230,Revenue,20008465,POST OFFICE LTD
Oxford City Council,Direct Services,Vehicle Excise Licences,C2202,17/06/2016,46290174_3,650,Revenue,20008465,POST OFFICE LTD
Oxford City Council,Direct Services,Vehicle Excise Licences,C2202,17/06/2016,46290174_4,650,Revenue,20008465,POST OFFICE LTD
Oxford City Council,Direct Services,Vehicle Excise Licences,C2202,17/06/2016,46290174_5,650,Revenue,20008465,POST OFFICE LTD
Oxford City Council,Direct Services,Vehicle Excise Licences,C2202,17/06/2016,46290174_6,650,Revenue,20008465,POST OFFICE LTD
Oxford City Council,Direct Services,Vehicle Excise Licences,C2202,17/06/2016,46290174_7,445,Revenue,20008465,POST OFFICE LTD
Oxford City Council,Direct Services,Vehicle Excise Licences,C2202,17/06/2016,46290174_8,230,Revenue,20008465,POST OFFICE LTD
Oxford City Council,Direct Services,Vehicle Excise Licences,C2202,17/06/2016,46290174_9,230,Revenue,20008465,POST OFFICE LTD
Oxford City Council,Partnerships Team,Consultants Fees,D3411,21/06/2016,1029287_0,11522.25,Revenue,20008467,JONES LANG LASALLE LTD
Oxford City Council,Business Improvement,Software Maintenance/Running Costs,D3513,10/05/2016,1026139_1,23122.98,Revenue,20008475,ESRI (UK) LTD
Oxford City Council,Business Improvement,Consultants Fees,D3411,26/04/2016,1027575_0,4380,Revenue,20008475,ESRI (UK) LTD
Oxford City Council,Community Services,Furniture & Equipment Purchase,D3001,05/04/2016,1027025_0,2333.9,Revenue,20008520,NEWAUTO LTD
Oxford City Council,Housing and Property,Consultants Fees,D3411,12/04/2016,1027516_0,2250,Revenue,20008541,KEMP & KEMP LLP T/AS KEMP & KEMP PROPERTY CONSULTANCY
Oxford City Council,Housing and Property,Consultants Fees,D3411,10/05/2016,1028224_0,2250,Revenue,20008541,KEMP & KEMP LLP T/AS KEMP & KEMP PROPERTY CONSULTANCY
Oxford City Council,Community Services,Grants,D3701,01/06/2016,1028411_0,720,Revenue,20008586,THE CHERWELL SCHOOL ACADEMY TRUST
Oxford City Council,Direct Services,Sign Shop Materials,D3018,05/04/2016,60053694_0,8472,Revenue,20008595,PRISMO ROAD MARKINGS LTD T/AS PRISMO PRODUCT SERVICES
Oxford City Council,Community Services,General Contracted Services,D3401,21/06/2016,1028795_0,525,Revenue,20008609,BAKERS COMMERCIAL SERVICES LTD
Oxford City Council,Business Improvement,Consultants Fees,D3411,05/04/2016,1027237_1,3462.62,Revenue,20008662,ARTIFAX SOFTWARE LTD
Oxford City Council,Direct Services,Reactive Maintenance & Minor Repairs,B1101,01/06/2016,1027522_0,10229,Revenue,20008668,CLEARVIEW INTELLIGENCE LTD
Oxford City Council,Direct Services,General Contracted Services,D3401,01/06/2016,60056162_0,7884,Revenue,20008671,WALLGATE LTD
Oxford City Council,Direct Services,Short Courses,A0622,26/04/2016,1027482_0,1220,Revenue,20008682,ICCM
Oxford City Council,Community Services,Grants,D3701,10/05/2016,46289743_1,13725.75,Revenue,20008698,OXFORD HOMELESS PATHWAYS
Oxford City Council,Community Services,Grants,D3701,01/06/2016,46290026_1,11963,Revenue,20008698,OXFORD HOMELESS PATHWAYS
Oxford City Council,Community Services,Performance Fees,D3412,24/05/2016,1028593_0,900,Revenue,20008713,OXFORD CONTEMPORARY MUSIC
Oxford City Council,Community Services,Grants,D3701,12/04/2016,46289459_1,7000,Revenue,20008713,OXFORD CONTEMPORARY MUSIC
Oxford City Council,Direct Services,Materials,D3021,07/06/2016,1028603_0,2203.12,Revenue,20008752,BARLOW & SONS (HERMITAGE) LTD
Oxford City Council,Funding,Parishes,J8527,05/04/2016,46289370_1,22750,Revenue,20008779,RISINGHURST & SANDHILLS PARISH COUNCIL
Oxford City Council,Community Services,Grants,D3701,12/04/2016,46289464_1,5000,Revenue,20008780,LEYS NEWS LTD
Oxford City Council,Direct Services,Plant Purchase,C2002,05/04/2016,47984571_1,1790,Revenue,20008907,FAROL LTD
Oxford City Council,Direct Services,Plant Purchase,C2002,05/04/2016,47984571_2,4760,Revenue,20008907,FAROL LTD
Oxford City Council,Direct Services,Materials,D3021,05/04/2016,47984626_0,4220.92,Revenue,20008907,FAROL LTD
Oxford City Council,HRA,Consultants Fees,D3411,10/05/2016,1027427_1,998.14,Revenue,20008923,TROWERS & HAMLINS
Oxford City Council,Direct Services,Materials,D3021,05/04/2016,60053840_1,3005.58,Revenue,20008954,SNOWS TIMBERLIMITED
Oxford City Council,Business Improvement,Software Purchase,D3511,28/06/2016,1029023_0,1500,Revenue,20009001,BOTTOMLINE TECHNOLOGIES LTD
Oxford City Council,Direct Services,Postage & Carriage,D3501,26/04/2016,46289617_1,500,Revenue,20009008,NEOPOST LTD RCB CREDIFON  A/C
Oxford City Council,Direct Services,Postage & Carriage,D3501,17/05/2016,46289859_1,500,Revenue,20009008,NEOPOST LTD RCB CREDIFON  A/C
Oxford City Council,Direct Services,Postage & Carriage,D3501,17/05/2016,46289860_1,500,Revenue,20009008,NEOPOST LTD RCB CREDIFON  A/C
Oxford City Council,Direct Services,Postage & Carriage,D3501,24/05/2016,46289967_1,1000,Revenue,20009008,NEOPOST LTD RCB CREDIFON  A/C
Oxford City Council,HRA,Main Contractor,Y021,05/04/2016,1027283_0,970,Capital,20009112,PRESERVATION SPECIALIST TREATMENTS
Oxford City Council,HRA,Main Contractor,Y021,05/04/2016,1027284_0,880,Capital,20009112,PRESERVATION SPECIALIST TREATMENTS
Oxford City Council,HRA,Main Contractor,Y021,05/04/2016,1027285_0,960,Capital,20009112,PRESERVATION SPECIALIST TREATMENTS
Oxford City Council,HRA,Main Contractor,Y021,05/04/2016,1027286_0,860,Capital,20009112,PRESERVATION SPECIALIST TREATMENTS
Oxford City Council,HRA,Main Contractor,Y021,05/04/2016,1027287_0,980,Capital,20009112,PRESERVATION SPECIALIST TREATMENTS
Oxford City Council,HRA,Main Contractor,Y021,12/04/2016,1027638_0,860,Capital,20009112,PRESERVATION SPECIALIST TREATMENTS
Oxford City Council,HRA,Main Contractor,Y021,12/04/2016,1027640_0,860,Capital,20009112,PRESERVATION SPECIALIST TREATMENTS
Oxford City Council,HRA,Main Contractor,Y021,04/05/2016,1028071_0,860,Capital,20009112,PRESERVATION SPECIALIST TREATMENTS
Oxford City Council,HRA,Main Contractor,Y021,07/06/2016,1028946_0,840,Capital,20009112,PRESERVATION SPECIALIST TREATMENTS
Oxford City Council,HRA,Main Contractor,Y021,07/06/2016,1028947_0,860,Capital,20009112,PRESERVATION SPECIALIST TREATMENTS
Oxford City Council,HRA,Main Contractor,Y021,07/06/2016,1028948_0,920,Capital,20009112,PRESERVATION SPECIALIST TREATMENTS
Oxford City Council,Direct Services,Direct Services Supplies & Services,D3311,05/04/2016,60053701_1,2930,Revenue,20009112,PRESERVATION SPECIALIST TREATMENTS
Oxford City Council,Direct Services,Direct Services Supplies & Services,D3311,05/04/2016,60053702_0,3840,Revenue,20009112,PRESERVATION SPECIALIST TREATMENTS
Oxford City Council,Direct Services,Direct Services Supplies & Services,D3311,05/04/2016,60053704_0,3580,Revenue,20009112,PRESERVATION SPECIALIST TREATMENTS
Oxford City Council,Direct Services,Direct Services Supplies & Services,D3311,05/04/2016,60053721_0,3620,Revenue,20009112,PRESERVATION SPECIALIST TREATMENTS
Oxford City Council,Direct Services,Direct Services Supplies & Services,D3311,12/04/2016,60054027_0,4110,Revenue,20009112,PRESERVATION SPECIALIST TREATMENTS
